{"text_format":"1","workbook":"xlsx","n_sheets":50,"sheets":["Содержание","Примечания","Газпром в мире","Фин. показатели","Макроэкономика","Индикаторы","Запасы","Запасы ассоц. и СП","Движение запасов","Открытые месторождения","Лицензии","Основные лицензии","Добыча","Макс. суточная добыча газа","Добыча ассоц. и СП","ГРР и бурение в России","Месторождения Группы","Месторождения ассоц. и СП","ГРР и добыча за рубежом","Проекты за рубежом","Транспортировка","Собственные нужды ГТС и ПХГ","Газотранспортные проекты","Подземное хранение","Объекты подземного хранения","Контракты на хранение","Переработка","ГПЗ и НПЗ","Проекты на действующ. ГПЗ и НПЗ","Проекты Группы в переработке","СПГ проекты Группы","Проекты с участием Группы","Электроэнергетика","Проекты в электроэнергетике ","Реализация газа","Продажи СПГ","Конечные потребители","Газораспределение","Продажа жидких и продуктов","Продажи энергии ","Услуги по транспортировке","Воздействие на окружающую среду","Выбросы парниковых газов","Энергосбережение","Производственная безопасность","НИОКР","Персонал","Услов. обознач.","Глоссарий","Фин. коэффициенты"],"not_rendered":{"charts":0,"images":1,"macros":1,"external_links":0,"defined_names":1,"comments":0,"pivot_tables":0},"unopened":[],"bounds":{"document_bytes":16777216,"sheet_cells":100000,"rows_first":2000,"rows_last":500,"rows_between":2000,"halvings":0,"cell_chars":16384,"cell_head_chars":4096},"cells_cut":0,"cells_raw":0,"read":"whole","date_system":"1900"}

{"sheet":"Содержание","index":0,"n_rows":147,"n_cols":2,"rows_kept":147,"cut":false,"hidden":false,"merged":[[6,0,6,1]]}
["Свернуть"]
[]
[]
[]
[]
[]
["Газпром в цифрах 2020 г. Справочник."]
[null,"Примечания"]
[null,"Газпром в энергетике России и мира"]
[null,"Финансовые показатели"]
[null,"Макроэкономические данные"]
[null,"Рыночные индикаторы"]
[null,"Разведка и добыча на территории Российской Федерации"]
["+","Запасы"]
[null,"Запасы углеводородов Группы Газпром на территории Российской Федерации"]
[null,"Месторождения и залежи углеводородов, открытые Группой Газпром на территории \nРоссийской Федерации"]
[null,"Коэффициент восполнения разведанных запасов углеводородов Группы Газпром по российской\nклассификации"]
[null,"Запасы природного газа Группы Газпром по стандартам PRMS на территории Российской Федерации"]
[null,"Запасы газового конденсата Группы Газпром по стандартам PRMS на территории Российской Федерации"]
[null,"Запасы нефти Группы Газпром по стандартам PRMS на территории Российской Федерации"]
[null,"Распределение разведанных запасов углеводородов по российской классификации Группы Газпром \nна территории Российской Федерации"]
[null,"Разведанные запасы углеводородов по российской классификации ассоциированных организаций и совместных предприятий на территории Российской Федерации в доле, приходящейся на Группу Газпром"]
[null,"Движение разведанных запасов углеводородов Группы Газпром по российской классификации на территории Российской Федерации"]
[null,"Наименования месторождений углеводородов, открытых Группой Газпром на территории \nРоссийской Федерации"]
["+","Лицензии"]
[null,"Лицензионные участки на территории Российской Федерации"]
[null,"Распределение площади лицензионных участков на территории Российской Федерации"]
[null,"Лицензии на основные месторождения углеводородов"]
["+","Добыча"]
[null,"Добыча углеводородов Группой Газпром на территории Российской Федерации"]
[null,"Среднесуточная добыча углеводородов Группой Газпром на территории Российской Федерации"]
[null,"Добыча углеводородов Группой Газпром на территории Российской Федерации"]
[null,"Распределение добычи углеводородов Группы Газпром на территории Российской Федерации"]
[null,"Полезное использование ПНГ Группой Газпром на территории Российской Федерации"]
[null,"Фактическая максимальная суточная добыча природного и попутного газа в осенне-зимний период"]
[null,"Добыча углеводородов ассоциированными организациями и совместными предприятиями на территории России в доле, приходящейся на Группу Газпром "]
["+","Геологоразведка, эксплуатационное бурение и промысловые мощности"]
[null,"Основные показатели ГРР Группы Газпром на углеводороды "]
[null,"Основные показатели ГРР на углеводороды организаций, инвестиции в которые классифицированы \nкак совместные операции "]
[null,"Эксплуатационное бурение Группы Газпром"]
[null,"Эксплуатационное бурение организаций, инвестиции в которые классифицированы \nкак совместные операции "]
[null,"Производственные мощности Группы Газпром в добыче углеводородов"]
[null,"Производственные мощности в добыче углеводородов организаций, инвестиции в которые классифицированы как совместные операции"]
["+","Перспективные месторождения"]
[null,"Разрабатываемые месторождения Группы Газпром"]
[null,"Разведываемые месторождения и перспективные лицензионные участки Группы Газпром"]
[null,"Месторождения и перспективные лицензионные участки совместных предприятий и ассоциированных организаций Группы Газпром"]
["+","Разведка и добыча на территории зарубежных стран"]
[null,"Основные показатели ГРР Группы Газпром на углеводороды на территории зарубежных стран"]
[null,"Производственные мощности Группы Газпром в добыче углеводородов на территории зарубежных стран"]
[null,"Эксплуатационное бурение Группы Газпром на газ и нефть на территории зарубежных стран"]
[null,"Добыча углеводородов дочерними организациями Группы Газпром на территории зарубежных стран"]
[null,"Добыча углеводородов в рамках основных зарубежных проектов с участием Группы Газпром"]
[null,"Добыча углеводородов ассоциированными организациями и совместными предприятиями в области\nпоиска, разведки и добычи углеводородов в зарубежных странах "]
[null,"Проекты Группы Газпром в области разведки и добычи углеводородов в зарубежных странах, находящиеся \nна стадии поиска и разведки"]
[null,"Проекты Группы Газпром в области разведки и добычи углеводородов в зарубежных странах, находящиеся \nна стадиях освоения и добычи"]
[null,"Деятельность ассоциированных организаций и совместных предприятий в области поиска, разведки и \nдобычи углеводородов в зарубежных странах"]
["-","Транспортировка и подземное хранение"]
["+","Транспортировка"]
[null,"Развитие и капитальный ремонт ГТС на территории России"]
[null,"Диагностическое обследование ГТС на территории России"]
[null,"Основные технические характеристики газотранспортных активов, эксплуатируемых \nгазотранспортными дочерними обществами Группы Газпром в России"]
[null,"Структура эксплуатируемых газотранспортными дочерними обществами Группы Газпром МГ и \nгазопроводов-отводов на территории России по сроку эксплуатации"]
[null,"Поступление газа в ГТС Газпрома на территории Российской Федерации"]
[null,"Объемы транспортировки газа по газопроводам «Сила Сибири», «Северный поток», «Голубой поток», «Турецкий поток»"]
[null,"Оказание для ПАО «Газпром» услуг по транспортировке газа по территории сопредельных государств"]
[null,"Основные характеристики объектов транспорта газа дочерних обществ Группы Газпром на территории \nзарубежных стран "]
[null,"Объем газа, использованный на собственные технологические нужды ГТС и ПХГ \nна территории Российской Федерации"]
[null,"Основные действующие маршруты транспортировки газа ПАО «Газпром» на экспорт"]
[null,"Основные газотранспортные проекты Группы Газпром"]
["+","Подземное хранение газа"]
[null,"Характеристика российских ПХГ Газпрома"]
[null,"Хранение газа на территории России"]
[null,"Закачка и отбор газа Группы Газпром из ПХГ зарубежных стран"]
[null,"Основные проекты по развитию подземного хранения газа на территории России"]
[null,"Характеристика зарубежных объектов ПХГ с участием Группы Газпром"]
[null,"Среднесрочные коммерческие контракты на использование ООО «Газпром экспорт» мощностей ПХГ в европейских странах дальнего зарубежья, действовавшие к началу сезона отбора 2020/2021 г."]
[null,"Перспективные объекты ПХГ с участием Группы Газпром за рубежом"]
["+","Переработка углеводородного сырья, газо- и нефтехимия, проекты производства СПГ"]
[null,"Объемы переработки углеводородов Группой Газпром"]
[null,"Переработка (очистка и стабилизация) нестабильного газового конденсата основными дочерними обществами ПАО «Газпром»"]
[null,"Переработка на мощностях основных дочерних обществ ПАО «Газпром» природного и попутного газа \nкомпаний, не входящих в Группу Газпром"]
[null,"Производство основных видов продукции переработки, газо- и нефтехимии Группой Газпром"]
[null,"Области применения отдельных видов продукции переработки, газо- и нефтехимии, производимой \nГруппой Газпром"]
[null,"Производство основных видов продукции переработки дочерними обществами Группы Газпром"]
[null,"Предприятия по переработке углеводородного сырья и производству газо- и нефтехимической продукции"]
[null,"Основные инвестиционные проекты на действующих предприятиях по переработке углеводородного сырья, производству газо- и нефтехимической продукции Группы Газпром"]
[null,"Основные проекты Группы Газпром по созданию новых предприятий по переработке углеводородного сырья, производству продукции газо- и нефтехимии"]
[null,"Проекты Группы Газпром по транспортировке жидких углеводородов из \nНадым-Пур-Тазовского региона"]
[null,"Мощности Группы Газпром по транспортировке жидких углеводородов из \nНадым-Пур-Тазовского региона"]
[null,"Мощности Группы Газпром по приему, хранению и регазификации СПГ"]
[null,"Перспективные проекты Группы Газпром по производству мало- и среднетоннажного СПГ"]
[null,"Перспективные проекты по переработке углеводородного сырья, производству крупнотоннажного СПГ с участием Группы Газпром"]
["+","Электроэнергетика"]
[null,"Электрические мощности Группы Газпром"]
[null,"Тепловые мощности Группы Газпром"]
[null,"Производство электроэнергии Группой Газпром"]
[null,"Производство тепла Группой Газпром"]
["+","Инвестиционные проекты в электроэнергетике"]
[null,"Основные проекты по созданию новых мощностей"]
[null,"Основные проекты по реконструкции и модернизации"]
["-","Маркетинг"]
["+","Реализация газа"]
[null,"Выручка от продажи газа"]
[null,"Средняя цена реализации газа"]
[null,"Реализация газа Группой Газпром"]
[null,"Реализация газа Группой Газпром в зарубежные страны"]
[null,"Участие Газпрома в обеспечении внутреннего потребления газа в России"]
[null,"Средневзвешенные оптовые регулируемые цены на газ в России"]
[null,"Объемы реализации газа конечным потребителям дочерними организациями Группы Газпром \nв странах дальнего зарубежья"]
[null,"Объемы продаж крупнотоннажного СПГ Группой Газпром на рынки зарубежных стран"]
[null,"Газораспределение и газификация в России"]
[null,"Деятельность Группы Газпром в области газораспределения на территории зарубежных стран"]
["+","Реализация нефти, газового конденсата и продуктов переработки"]
[null,"Выручка от реализации нефти и газового конденсата"]
[null,"Объемы реализации нефти и газового конденсата Группой Газпром по географическим сегментам"]
[null,"Выручка от реализации продуктов нефтегазопереработки"]
[null,"Объемы реализация продуктов переработки Группой Газпром по географическим сегментам"]
[null,"Реализация продуктов переработки, газо- и нефтехимии Группой Газпром по видам"]
[null,"Реализация гелия Группой Газпром"]
["+","Реализация электроэнергии и тепла, услуг по транспортировке газа"]
[null,"Выручка от продажи электрической и тепловой энергии"]
[null,"Выручка от продажи услуг по транспортировке газа "]
[null,"Оказание услуг по транспортировке газа компаниям, не входящим в Группу Газпром"]
["+","Экология и энергосбережение"]
[null,"Основные показатели воздействия Группы Газпром на окружающую среду в Российской Федерации"]
[null,"Затраты на охрану окружающей среды по Группе Газпром в Российской Федерации"]
[null,"Выбросы парниковых газов (область охвата 1) по Группе Газпром в Российской Федерации"]
[null,"Удельные выбросы парниковых газов (область охвата 1) на т н. э. реализованных продуктов в организациях Группы Газпром в Российской Федерации"]
[null,"Удельные выбросы парниковых газов (область охвата 1) на барр. н. э. реализованных продуктов в организациях Группы Газпром в Российской Федерации"]
[null,"Выбросы парниковых газов (область охвата 1) по Группе Газпром в Российской Федерации в детализации по видам парниковых газов"]
[null,"Выбросы парниковых газов (область охвата 2) в Российской Федерации в организациях Группы Газпром"]
[null,"Выбросы парниковых газов (область охвата 3) для реализованных продуктов Группы Газпром в детализации по видам реализованных продуктов"]
[null,"Удельные выбросы парниковых газов (область охвата 3) для реализованных продуктов Группы Газпром"]
[null,"Энергосбережение в ПАО «Газпром» и его дочерних обществах, включенных в программы энергосбережения ПАО «Газпром»"]
["+","Производственная безопасность"]
[null,"Показатели производственной безопасности организаций Группы Газпром, входящих \nв сферу действия ЕСУПБ"]
[null,"Показатели производственной безопасности организаций Группы Газпром, не входящих \nв сферу действия ЕСУПБ"]
["+","Управление патентными правами, НИОКР"]
[null,"Количество патентов на объекты патентных прав, принадлежащих ПАО «Газпром» и его дочерним \nобществам, и их использование в производственной деятельности"]
[null,"Объем НИОКР в денежном выражении, выполненных по заказу Группы Газпром"]
["-","Персонал"]
["+","Справочная информация"]
[null,"Условные обозначения"]
[null,"Коэффициенты пересчета"]
[null,"Порядок расчета скорректированных показателей финансовой отчетности \nи финансовых коэффициентов"]
[null,"Глоссарий основных понятий и сокращений"]

{"sheet":"Примечания","index":1,"n_rows":12,"n_cols":1,"rows_kept":12,"cut":false,"hidden":false,"merged":[]}
["Примечания"]
["Настоящий информационно-статистический материал подготовлен в формате электронных таблиц на основе Cправочника «Газпром в цифрах 2016–2020»."]
["Справочник «Газпром в цифрах 2016–2020» является информационно-статистическим изданием, подготовленным к годовому Общему собранию акционеров ПАО «Газпром» в 2021 г. Справочник подготовлен на основе данных корпоративной отчетности ПАО «Газпром», а также с использованием материалов, содержащихся в российских и зарубежных информационных изданиях."]
["Показатели консолидированной финансовой отчетности Группы Газпром, подготовленной в соответствии с МСФО (далее – консолидированная финансовая отчетность по МСФО) дополнены данными за 2010–2015 гг., а производственные и иные показатели – сопоставимыми данными из Справочников, Годовых отчетов, Отчетов руководства ПАО «Газпром» за 2015 г. и предыдущие периоды. "]
["В настоящем Справочнике термины ПАО «Газпром», Компания относятся к головной компании Группы Газпром — Публичному акционерному обществу «Газпром» (до 17 июля 2015 г. — Открытое акционерное общество «Газпром», ОАО «Газпром»). "]
["Под Группой Газпром, Группой или Газпромом следует понимать совокупность компаний, состоящую из ПАО «Газпром» и его дочерних организаций. Для целей настоящего Справочника использованы перечни дочерних организаций, организаций, инвестиции в которые классифицированы как совместные операции, ассоциированных организаций и совместных предприятий Группы Газпром, составленные на основе принципов формирования консолидированной финансовой отчетности Группы Газпром, подготовленной в соответствии с Международными стандартами финансовой отчетности (МСФО). Аналогично под терминами Группа Газпром нефть и Газпром нефть подразумеваются ПАО «Газпром нефть» и его дочерние организации, под термином Газпром энергохолдинг — ООО «Газпром энергохолдинг» и его дочерние общества, под термином Газпром нефтехим Салават — ООО «Газпром нефтехим Салават» и его дочерние общества."]
["Приведенные в издании показатели деятельности Газпрома в целом сформированы на основании принципов составления консолидированной финансовой отчетности Группы Газпром, подготовленной в соответствии с МСФО (далее — консолидированная финансовая отчетность по МСФО), и (или) в отношении совокупности организаций Группы Газпром, принятой для целей составления консолидированной финансовой отчетности Группы Газпром по МСФО. В соответствии с МСФО 11 «Совместное предпринимательство» объемы запасов, добычи и переработки углеводородного сырья отражаются с учетом доли Группы Газпром в показателях организаций, инвестиции в которые классифицированы как совместные операции."]
["Ряд показателей деятельности ПАО «Газпром», его дочерних организаций приводится на основе управленческой отчетности. В связи с различиями в методологии подготовки консолидированной финансовой отчетности и ведения управленческой отчетности показатели, рассчитанные по данным методикам, могут быть несопоставимы."]
["Группа осуществляет управленческий учет в метрических единицах измерения. Приведенные данные в баррелях нефтяного эквивалента (барр. н. э.) получены расчетным путем по указанным коэффициентам пересчета."]
["Финансовые показатели Группы приводятся в соответствии с консолидированной финансовой отчетностью Группы Газпром по МСФО. Валютой отчетности Группы Газпром является российский рубль. Приведенные данные в долларах США и евро получены расчетным путем по указанным обменным курсам и не являются данными финансовой отчетности Группы."]
[]
["Вернуться к содержанию"]

{"sheet":"Газпром в мире","index":2,"n_rows":19,"n_cols":17,"rows_kept":19,"cut":false,"hidden":false,"merged":[[16,0,16,16],[0,0,0,16],[1,1,1,16],[13,0,13,16],[14,0,14,16],[15,0,15,16]]}
["Газпром в энергетике России и мира"]
[null,"За год и по состоянию на 31 декабря"]
[null,2005,2006,2007,2008,2009,2010,2011,2012,2013,2014,2015,2016,2017,2018,2019,2020]
["Вклад в формирование показателей мировой газовой промышленности"]
["Запасы газа*,***",0.16600000000000001,0.16800000000000001,0.16500000000000001,0.18,0.18,0.17599999999999999,0.183,0.183,0.16600000000000001,0.16800000000000001,0.16900000000000001,0.17100000000000001,0.16700000000000001,0.16200000000000001,0.16300000000000001,"15,6 %"]
["Добыча газа*,***",{"$f":"0.185","v":0.185},{"$f":"0.181","v":0.18099999999999999},{"$f":"0.174","v":0.17399999999999999},0.16700000000000001,0.14499999999999999,0.14799999999999999,0.14499999999999999,0.13600000000000001,0.13500000000000001,0.121,0.112,0.112,0.12,0.121,0.11700000000000001,"10,9 %"]
["Вклад в формирование показателей топливно-энергетического комплекса России"]
["Контролируемые российские запасы \nгаза***",0.60899999999999999,0.624,0.621,0.68899999999999995,0.69799999999999995,0.68700000000000006,0.71799999999999997,0.72,0.72299999999999998,0.72299999999999998,0.71599999999999997,0.71699999999999997,0.71699999999999997,0.71099999999999997,0.71099999999999997,"70,3 %"]
["Добыча газа**,***",0.86599999999999999,0.84699999999999998,0.83899999999999997,0.82699999999999996,0.79200000000000004,0.78100000000000003,0.76500000000000001,0.746,0.73099999999999998,0.69299999999999995,0.66,0.65600000000000003,0.68300000000000005,0.68700000000000006,0.67900000000000005,"65,6 %"]
["Добыча нефти и газового \nконденсата**,***",4.4999999999999998E-2,9.4E-2,9.1999999999999998E-2,8.7999999999999995E-2,8.4000000000000005E-2,8.5999999999999993E-2,8.6999999999999994E-2,0.106,0.109,0.11,0.111,0.115,0.11799999999999999,0.11600000000000001,0.115,"12,4 %"]
["Первичная переработка нефти и стабильного газового конденсата**,***",4.9000000000000002E-2,0.14000000000000001,0.14099999999999999,0.14499999999999999,0.155,0.16500000000000001,0.17199999999999999,0.188,0.19400000000000001,0.189,0.185,0.184,0.17699999999999999,0.182,0.182,"18,7 %"]
["Выработка электроэнергии**,***","–","–",3.1E-2,0.105,0.13900000000000001,0.16900000000000001,0.16900000000000001,0.16200000000000001,0.153,0.14599999999999999,0.14299999999999999,0.14599999999999999,0.14799999999999999,0.14099999999999999,0.13700000000000001,"12,5 %"]
["Протяженность эксплуатируемых \nгазотранспортными дочерними обществами \nГруппы Газпром магистральных \nгазопроводов (МГ) и отводов на территории \nРоссии****, тыс. км",155,156.9,158.19999999999999,159.5,160.4,161.69999999999999,164.7,168.3,168.9,170.7,171.2,171.8,172.1,172.6,175.2,176.8]
["* Рассчитано на основе данных Международного центра по природному газу CEDIGAZ и ПАО «Газпром». Данные международной статистики по добыче приведены к российским стандартным условиям с применением коэффициента 1,07."]
["** Рассчитано на основе данных Росстата, Минэнерго России, Системного оператора Единой энергетической системы России и ПАО «Газпром»."]
["*** Начиная с 1 января 2012 г. рассчитано с учетом доли Группы Газпром в запасах и добыче компаний, инвестиции в которые классифицированы как совместные операции."]
["**** Начиная с данных по состоянию на 31 декабря 2013 г., протяженность приведена с учетом технологических перемычек."]
[]
["Вернуться к содержанию"]

{"sheet":"Фин. показатели","index":3,"n_rows":57,"n_cols":12,"rows_kept":57,"cut":false,"hidden":false,"merged":[[54,0,54,11],[0,0,0,11],[1,0,1,11],[2,1,2,11],[52,0,52,11],[53,0,53,11]]}
["Финансовые показатели"]
["Основные финансовые показатели и коэффициенты Группы Газпром "]
[null,"За год и по состоянию на 31 декабря"]
[null,2010,2011,2012,2013,2014,2015,2016,2017,2018,2019,2020]
["Показатели отчета о совокупном доходе"]
["Выручка от продаж, млн руб.",3597054,4637090,4766495,5249965,5589811,6073318,6111051,6546143,8224177,7659623,"6 321 559"]
["Операционные расходы, млн руб.",2440777,2942181,3421847,3600908,4128330,4762444,5280876,5697056,6181191,6387071,"5 665 762"]
["Прибыль от продаж, млн руб.",1113822,1656843,1350677,1587209,1309509,1237422,726639,871405,1930030,1119857,"614 851"]
["Приведенный показатель EBITDA, млн руб.",1363778,1930533,1645921,2009475,1961643,1883847,1323258,1467692,2599284,1859679,"1 466 541"]
["Прибыль за год, млн руб.",997993,1342442,1252415,1165705,157192,805199,997104,766879,1528996,1269517,"162 407"]
["Прибыль за год, относящаяся к акционерам\nПАО «Газпром», млн руб.",968557,1307018,1224474,1139261,159004,787056,951637,714302,1456270,1202887,"135 341"]
["Базовая и разводненная прибыль в расчете на одну акцию, относящаяся к акционерам ПАО «Газпром» \n(в российских рублях), руб.",42.2,56.95,53.35,49.64,6.93,34.29,42.19,32.32,65.89,53.47,5.66]
["Показатели бухгалтерского баланса"]
["Активы, млн руб.",9235993,10900696,11956836,13436236,15177470,17052040,16918938,18238770,20810440,21882348,"23 352 185"]
["Оборотные активы, млн руб.",1865895,2240293,2420803,2862670,3461155,3993722,3234346,3469266,4212230,3828153,"3 774 289"]
["Товарно-материальные запасы, млн руб.",325739,407530,462746,569724,671916,804364,711199,772314,909677,946361,971789]
["Краткосрочные обязательства, млн руб.",1011261,1309255,1492066,1391465,1855947,2124701,1921808,2589516,2473695,2527476,"2 626 964"]
["Общий долг, млн руб.",1315447,1536819,1500592,1801928,2688824,3442215,2829623,3266518,3863822,3863904,"4 907 614"]
["Чистый долг, млн руб.",870993,1028176,"1 071 214",1112798,1650633,2083120,1932895,2397511,3014403,3167847,"3 872 695"]
["Акционерный (собственный) капитал, не включая неконтролирующую долю участия, млн руб.",6249751,7463571,8170733,9319590,9816558,10589586,11094531,11629086,13300009,14104833,"14 237 943"]
["Акционерный (собственный) капитал, включая неконтролирующую долю участия, млн руб.",6536361,7760991,8479945,9634354,10120021,10914622,11441839,12015481,13776153,14615687,"14 804 732"]
["Капитальные вложения*, млн руб.",920133,1351590,1233210,1213850,1221328,1349635,1357336,1504600,1795884,1818677,"1 494 185"]
["Показатели отчета о движении денежных средств "]
["Чистые денежные средства от операционной деятельности, млн руб.",1460116,1637450,1472779,1741804,1915769,2030927,1571323,1187022,1617384,1709384,"1 918 891"]
["Капитальные вложения, млн руб.",-1042642,-1553118,-1349114,-1397195,-1262140,-1641024,-1369052,-1405780,-1639474,-1775923,"-1 522 565"]
["Чистые денежные средства, использованные в инвестиционной деятельности, млн руб.",-1050307,-1605245,-1287216,-1466512,-1441305,-1664156,-1445965,-1368131,-1617718,-1938109,"-1 545 602"]
["Чистые денежные средства, (использованные в) полученные от финансовой деятельности, млн руб.",-212384,31814,-253870,-33262,-262587,-138305,-460479,149944,-96070,152375,"-106 421"]
["Денежные средства и их эквиваленты на конец отчетного года, млн руб.",440786,501344,425720,689130,1038191,1359095,896728,869007,849419,696057,"1 034 919"]
["Коэффициент самофинансирования",1.4,1.05,1.0900000000000001,1.25,1.52,1.24,1.1499999999999999,0.84,0.99,0.96,1.26]
["Скорректированные показатели финансовой отчетности**"]
["Прибыль за год, относящаяся к акционерам \nПАО «Газпром», (скорректированная), млн руб.",null,null,null,null,null,1329369,609184,651670,1678319,994309,594143]
["Чистый долг (скорректированный), млн руб.",null,null,null,null,null,1951528,1746630,2067983,2216831,2491425,"3 856 032"]
["Коэффициенты рентабельности***"]
["Рентабельность прибыли от продаж (операционная рентабельность)",0.31,0.36,0.28000000000000003,0.3,0.23,0.2,0.12,0.13,0.23,0.15,0.1]
["Рентабельность приведенного показателя EBITDA",0.38,0.42,0.35,0.38,0.35,0.31,0.22,0.22,0.32,0.24,0.23]
["Рентабельность прибыли за год",0.28000000000000003,0.28999999999999998,0.26,0.22,0.03,0.13,0.16,0.12,0.19,0.17,0.03]
["Рентабельность активов (ROA)",0.1133791711799486,0.13,0.11,0.09,0.01,0.05,0.06,0.04,0.08,0.06,0.01]
["Рентабельность акционерного (собственного) \nкапитала (ROE)",0.16379764382494144,0.19,0.15,0.13,0.02,0.08,0.09,7.0000000000000007E-2,0.12,0.09,0.01]
["Коэффициенты общего и чистого долга"]
["Отношение общего долга к сумме акционерного капитала и неконтролирующей доле участия",0.2,0.2,0.18,0.19,0.27,0.32,0.25,0.27,0.28000000000000003,0.26,0.33]
["Отношение общего долга к сумме общего долга, акционерного капитала и неконтролирующей доле участия",0.17,0.17,0.15,0.16,0.21,0.24,0.2,0.21,0.22,0.21,0.25]
["Отношение общего долга к общим активам",0.14000000000000001,0.14000000000000001,0.13,0.13,0.18,0.2,0.17,0.18,0.19,0.18,0.21]
["Отношение общего долга к \nприведенному показателю EBITDA",0.96,0.8,0.91,0.9,1.37,1.83,2.14,2.23,1.49,2.08,3.35]
["Отношение чистого долга к \nприведенному показателю EBITDA",0.64,0.54,0.65,0.55000000000000004,0.84,1.1100000000000001,1.46,1.63,1.1599999999999999,1.7,2.64]
["Отношение чистого долга (скорректированного) к приведенному показателю EBITDA",null,null,null,null,null,1.04,1.32,1.41,0.85,1.34,2.63]
["Коэффициенты ликвидности***"]
["Коэффициент текущей ликвидности",1.85,1.71,1.62,2.06,1.86,1.88,1.68,1.34,1.7,1.51,1.44]
["Коэффициент быстрой ликвидности",1.523005435787596,1.4,1.31,1.65,1.5,1.5,1.31,1.04,1.34,1.1399999999999999,1.07]
["Прочие коэффициенты***"]
["Коэффициент EV / EBITDA",3.999667517512381,2.6,2.7,2.2000000000000002,2.4,2.8,4.2,3.7,2.6,5,6.1]
["Коэффициент P / E",4.5881516587677726,3,2.7,2.8,18.8,4,3.6,4,2.2999999999999998,4.8,37.6]
["Коэффициент P / S",1.2742832239098996,0.9,0.7,0.6,0.6,0.5,0.6,0.5,0.4,0.8,0.8]
["* Приведены капитальные вложения, отраженные в составе информации по сегментам в консолидированной финансовой отчетности Группы Газпром по МСФО."]
["** Показатели не являются частью финансовой отчетности. Расчет производится в соответствии с Дивидендной политикой ПАО «Газпром», утвержденной Советом директоров ПАО «Газпром» в 2019 г. (решение Совета директоров ПАО «Газпром» от 24 декабря 2019 г. № 3363). Формулы расчета показателей приведены в разделе «Порядок расчета скорректированных показателей финансовой отчетности и финансовых коэффициентов»."]
["*** Формулы расчета коэффициентов приведены в разделе «Порядок расчета скорректированных показателей финансовой отчетности и финансовых коэффициентов»."]
[]
["Вернуться к содержанию"]

{"sheet":"Макроэкономика","index":4,"n_rows":17,"n_cols":18,"rows_kept":17,"cut":false,"hidden":false,"merged":[[0,0,0,17],[14,0,14,12],[1,0,2,0],[1,1,2,1],[1,2,1,17],[13,0,13,17]]}
["Макроэкономические данные"]
["Показатель*","Единица измерения","За год и по состоянию на 31 декабря"]
[null,null,2005,2006,2007,2008,2009,2010,2011,2012,2013,2014,2015,2016,2017,2018,2019,2020]
["Индекс потребительских цен (декабрь к декабрю предыдущего года), прирост","%",0.109,0.09,0.11899999999999999,0.13300000000000001,8.7999999999999995E-2,8.7999999999999995E-2,6.0999999999999999E-2,6.6000000000000003E-2,6.5000000000000002E-2,0.114,0.129,5.3999999999999999E-2,2.5000000000000001E-2,4.2999999999999997E-2,0.03,4.9000000000000002E-2]
["Индекс цен производителей промышленных товаров (декабрь к декабрю предыдущего года), прирост","%",0.13400000000000001,0.104,0.251,-7.0000000000000007E-2,0.13900000000000001,0.16700000000000001,0.12,5.0999999999999997E-2,3.6999999999999998E-2,5.8999999999999997E-2,0.107,7.3999999999999996E-2,8.4000000000000005E-2,0.11700000000000001,-4.2999999999999997E-2,3.5999999999999997E-2]
["Средний обменный курс рубля к доллару за период","руб./долл.",28.32,27.14,25.55,24.87,31.75,30.38,29.39,31.08,31.9,38.6,61.32,66.83,58.31,62.9,64.64,72.430000000000007]
["Обменный курс рубля к доллару на конец периода","руб./долл.",28.78,26.33,24.55,29.38,30.24,30.36,32.200000000000003,30.37,32.729999999999997,56.26,72.88,60.66,57.6,69.47,61.91,73.88]
["Средний обменный курс рубля к евро за период","руб./евро",35.15,34.11,35.03,36.450000000000003,44.19,40.21,40.9,39.92,42.39,50.99,67.989999999999995,73.989999999999995,66.02,74.11,72.349999999999994,82.89]
["Обменный курс рубля к евро на конец периода","руб./евро",34.19,34.700000000000003,35.93,41.44,43.39,39.9,41.67,40.229999999999997,44.97,68.34,79.7,63.81,68.87,79.459999999999994,69.34,90.68]
["Цена нефти Brent (Dated)**","долл./барр.",58.21,58.93,96.02,36.549999999999997,77.67,92.54,106.51,109.99,110.28,"55,98 ",35.74,54.94,66.540000000000006,50.21,66.77,50.49]
["Цена нефти Urals (среднее CIF MED/RDAM)**","долл./барр.",53.61,55.26,93.09,35.89,77,90.27,104.29,108.09,109.1,"53,40 ",33.11,53.27,66.19,51.18,62.38,49.2]
["Среднегодовая цена нефти Brent (Dated)**","долл./барр.",54.52,65.14,72.39,97.28,61.67,79.5,111.26,111.67,108.66,"98,95 ",52.39,43.73,54.19,71.31,64.209999999999994,41.84]
["Среднегодовая цена нефти Urals \n(среднее CIF MED/RDAM)**","долл./барр.",50.59,61.28,69.28,94.82,61.18,78.28,109.1,110.37,107.71,"96,94 ",51.42,42.1,53.06,70.05,63.37,41.88]
["* Экономические показатели и обменные курсы представлены по данным Банка России и Росстата. Средние обменные курсы рассчитаны по данным Банка России как среднее значение курсов в рабочие дни соответствующего года."]
["** По данным агентства Platts."]
[]
["Вернуться к содержанию"]

{"sheet":"Индикаторы","index":5,"n_rows":38,"n_cols":18,"rows_kept":38,"cut":false,"hidden":false,"merged":[[0,0,0,16383],[33,0,33,17],[35,0,35,17],[1,0,2,0],[1,1,2,1],[1,2,1,17],[30,0,30,17],[31,0,31,17],[32,0,32,17],[34,0,34,16383]]}
["Рыночные индикаторы"]
["Показатель","Единица измерения","За год и по состоянию на 31 декабря"]
[null,null,2005,2006,2007,2008,2009,2010,2011,2012,2013,2014,2015,2016,2017,2018,2019,2020]
["Цена за акцию на закрытие торгов на ПАО Московская Биржа"]
["на конец года","руб.",194.3,302.89,342.88,108.6,183.21,193.62,171.37,143.91,138.75,"130,31 ",136.09,154.55000000000001,130.5,153.5,256.39999999999998,212.69]
["минимальная за год","руб.",69.599999999999994,216,227.99,86.6,101.91,142.84,143.03,137.18,107.17,"117,87 ",130.9,124.6,115.35,132.19999999999999,149.49,154.28]
["максимальная за год","руб.",195,350.25,357.2,367.4,200.16,197.34,243.93,199.69,158,"153,25 ",163,168.47,157.97,172.11,270.74,259]
["Цена за АДР* на закрытие торгов на ЛФБ"]
["на конец года","долл.",28.68,46,56.7,14.25,25.5,25.25,10.66,9.4600000000000009,8.5500000000000007,"4,65 ",3.69,5.05,4.41,4.43,8.23,5.59]
["минимальная за год","долл.",11.92,29.48,35.4,11.91,12.26,18.059999999999999,8.74,8.6999999999999993,6.48,"3,73 ",3.62,3.02,3.85,4.1399999999999997,4.47,3.83]
["максимальная за год","долл.",31.4,52.64,58.5,62.5,27.3,26.64,17.399999999999999,13.53,9.82,"9,06 ",6.24,5.27,5.27,5.31,8.35,8.42]
["Количество выпущенных обыкновенных акций \nПАО «Газпром» по состоянию на конец года","млн шт.",23674,23674,23674,23674,23674,23674,23674,23674,23674,"23 674 ","23 674 ",23673.512900000002,23673.512900000002,23673.512900000002,23674,23674]
["Количество выпущенных обыкновенных акций в собственности дочерних организаций ПАО «Газпром» по состоянию на конец года","млн шт.",848,749,66,30,724,723,726,724,"723 ","723 ",723,1573,1573,1573,29,29]
["Количество выпущенных обыкновенных акций \nПАО «Газпром» за вычетом акций, находящихся в собственности дочерних организаций ПАО «Газпром», по состоянию на конец года**","млн шт.",{"$f":"C12-C13","v":22826},22925,23608,23644,22950,22951,22948,22950,"22 951 ","22 951 ","22 951 ",22101,22101,22101,23645,"23 645"]
["Рыночная капитализация на конец года***","млрд долл.",160.30000000000001,272,330.9,86,144.5,150.9,122.6,111.6,99.9,"54,8 ",44.2,60.3,53.6,52.3,98,68.2]
["изменение к прошлому году","%",1.4179999999999999,{"$f":"ROUND((D15-C15)/C15,3)","v":0.69699999999999995},0.217,-0.74,0.68,4.3999999999999997E-2,-0.188,-0.09,-0.105,-0.45100000000000001,-0.193,0.36399999999999999,-0.111,-2.4E-2,0.875,-0.30499999999999999]
["Индекс МосБиржи (ранее – индекс ММВБ)","пункты",1011,1693,1889,620,1370,1688,1402,1475,1504," 1 397 ",1761,2233,2110,2369,3046,3289]
["изменение к прошлому году","%",0.83199999999999996,{"$f":"ROUND((D17-C17)/C17,3)","v":0.67500000000000004},0.11600000000000001,-0.67200000000000004,1.21,0.23200000000000001,-0.16900000000000001,5.1999999999999998E-2,0.02,-7.0999999999999994E-2,0.26100000000000001,0.26800000000000002,-5.5E-2,0.123,0.28599999999999998,0.08]
["Индекс РТС","пункты",1126,1922,2291,632,1445,1770,1382,1527,1443,"791 ",757,1152,1154,1069,1549,1387]
["изменение к прошлому году","%",0.85799999999999998,{"$f":"ROUND((D19-C19)/C19,3)","v":0.70699999999999996},0.192,-0.72399999999999998,1.286,0.22500000000000001,-0.219,0.105,-5.5E-2,-0.45200000000000001,-4.2999999999999997E-2,0.52200000000000002,2E-3,-7.3999999999999996E-2,0.44900000000000001,-0.105]
["Среднедневной объем торгов \nна ПАО Московская Биржа","млн акций",20.8,49.2,47.8,67.2,85.2,56.4,74.599999999999994,39.4,43.9,"52,5 ",32.5,29.9,28.9,26.3,37,56.6]
["Среднедневной объем торгов на ЛФБ","млн АДР",1.7,4.4000000000000004,7.2,16.899999999999999,12.6,13.7,43.2,32.1,25,"27,6 ",16.399999999999999,15.9,12,9.1999999999999993,8.1,8.4]
["Дивиденды на обыкновенную акцию****","руб.",1.5,2.54,2.66,0.36,2.39,3.85,8.9700000000000006,5.99,7.2,"7,20 ",7.89,8.0396999999999998,8.0399999999999991,16.61,15.24,12.55]
["Структура акционерного капитала"]
["Российская Федерация в лице Федерального агентства по управлению государственным имуществом*****","%",0.38373000000000002,0.38373000000000002,0.38373000000000002,0.38373000000000002,0.38373000000000002,0.38373000000000002,0.38369999999999999,0.38369999999999999,0.38369999999999999,0.38369999999999999,0.38369999999999999,0.38369999999999999,0.38369999999999999,0.38369999999999999,0.38369999999999999,0.38369999999999999]
["АО «РОСНЕФТЕГАЗ»","%",0.1074,0.1074,0.1074,0.1074,0.1074,0.1074,0.1074,0.1074,0.10970000000000001,0.10970000000000001,0.10970000000000001,0.10970000000000001,0.10970000000000001,0.10970000000000001,0.10970000000000001,0.10970000000000001]
["АО «Росгазификация»","%",8.8900000000000003E-3,8.8900000000000003E-3,8.8900000000000003E-3,8.8900000000000003E-3,8.8900000000000003E-3,8.8900000000000003E-3,8.8999999999999999E-3,8.8999999999999999E-3,8.8999999999999999E-3,8.8999999999999999E-3,8.8999999999999999E-3,8.8999999999999999E-3,8.8999999999999999E-3,8.8999999999999999E-3,8.8999999999999999E-3,8.8999999999999999E-3]
["Владельцы АДР******","%",4.4220000000000002E-2,0.13200000000000001,0.2102,0.2215,0.24349999999999999,0.2757,0.28349999999999997,0.26960000000000001,0.25779999999999997,0.28050000000000003,0.27829999999999999,0.26860000000000001,0.252,0.24129999999999999,0.19700000000000001,0.1671]
["Прочие зарегистрированные лица","%",0.45576,0.36797999999999997,0.28977999999999998,0.27848000000000001,0.25647999999999999,0.22428000000000001,0.2165,0.23039999999999999,0.2399,0.2172,0.21940000000000001,0.2291,0.2457,0.25640000000000002,0.30070000000000002,0.3306]
["Всего","%",{"$f":"SUM(C25:C29)","v":1},1,1,1,1,1,1,1,1,1,1,1,1,1,1,1]
["* До апреля 2011 г. одна АДР предоставляла право на четыре обыкновенные акции ОАО «Газпром». Начиная с апреля 2011 г. одна АДР предоставляет право на две обыкновенные акции ОАО «Газпром» \n(после 17 июля 2015 г. – ПАО «Газпром»). "]
["** По состоянию на 31 декабря соответствующего года отсутствовали акции ПАО «Газпром», право собственности на которые перешло к Компании."]
["*** Рыночная капитализация рассчитана по котировкам ПАО Московская Биржа, конвертирована в доллары."]
["**** За 2020 г. приведены рекомендуемые дивиденды."]
["***** По состоянию на 31 декабря соответствующего года суммарная доля акций ПАО «Газпром», находящихся под прямым и косвенным контролем Российской Федерации, полученная путемпрямого сложения, составляет 50,23 % и обеспечивается 100 % долей участия Российской Федерации в АО «РОСНЕФТЕГАЗ», которое также является владельцем 74,55 % акций АО «Росгазификация»."]
["****** Банк-эмитент американских депозитарных расписок (АДР) на акции ПАО «Газпром» – The Bank of New York Mellon."]
[]
["Вернуться к содержанию"]

{"sheet":"Запасы","index":6,"n_rows":203,"n_cols":17,"rows_kept":203,"cut":false,"hidden":false,"merged":[[25,0,25,16],[0,0,0,16],[1,0,1,16],[2,0,2,16],[3,0,3,16],[5,1,5,16],[28,1,28,16],[50,0,50,16],[51,0,51,16],[53,0,53,16],[54,1,54,16],[115,1,115,16],[133,0,133,16],[135,0,135,16],[137,0,137,16],[111,0,111,16],[75,0,75,16],[76,1,76,16],[110,0,110,16],[113,0,113,16],[114,0,114,16],[27,0,27,16],[170,1,170,16],[200,0,200,16],[166,0,166,16],[134,0,134,16],[139,1,139,16],[165,0,165,16],[168,0,168,16],[169,0,169,16],[199,0,199,16],[64,0,64,16],[65,0,65,16],[66,1,66,16],[72,0,72,16],[138,0,138,16],[74,0,74,16]]}
["Разведка и добыча на территории Российской Федерации"]
["Запасы "]
["Запасы углеводородов Группы Газпром на территории Российской Федерации"]
["(с учетом доли в запасах организаций, инвестиции в которые классифицированы как совместные операции)"]
["Метрические единицы"]
[null,"По состоянию на 31 декабря"]
[null,"2005*","2006*","2007*","2008*","2009*","2010*","2011*",2012,2013,2014,2015,2016,2017,2018,2019,2020]
["Природный газ, млрд м3"]
["Разведанные запасы по российской классификации",29130.7,29854.2,29785.4,33123.199999999997,33578.400000000001,33052.300000000003,35046.9,35169.800000000003,35696.6,36101.4,36147.300000000003,36443.9,35355.4,35195.300000000003,34899,33574.5]
["из них прошедшие оценку по стандартам PRMS",0.95,0.93,0.95,0.88,0.89,0.93,0.9,0.94,0.93,0.94,0.94,0.95,0.94,0.93,0.93,0.92]
["Доказанные",16052.1,18187.599999999999,18286.5,18187.8,18609.900000000001,18991.3,19212.599999999999,19133,18939.3,18894.7,18791.2,18596.5,18253.400000000001,17890.400000000001,17715.099999999999,17475.400000000001]
["Вероятные",4757.2,2580,2551.5,3088.2,3338.1,3529,3631.5,4254.1000000000004,4325.2,4616,4913.8,5258.6,5893.2,6364.7,6680.4,7045.6]
["Доказанные и вероятные",20809.3,20767.599999999999,20838,21276,21948,22520.3,22844.1,23387.1,23264.5,23510.7,23705,23855.1,24146.6,24255.1,24395.5,24521]
["Газовый конденсат, млн т"]
["Разведанные запасы по российской классификации",1216.3,1217,1212.5,1287.0999999999999,1325.1,1284.8,1395.5,1386.1,1384.4,1447,1499.5,1534.9,1595.6,1604.4,1569.7,1494.4]
["из них прошедшие оценку по стандартам PRMS",0.9,0.9,0.9,0.85,0.82,0.86,0.83,0.89,0.89,0.92,0.92,0.94,0.93,0.94,0.95,0.95]
["Доказанные",507.9,528.9,568.9,587.9,586,572.1,605.20000000000005,633.79999999999995,638.79999999999995,642.29999999999995,699.5,759.2,797.7,759.7,730.2,750.8]
["Вероятные",184.7,130.1,117.2,141.9,141.19999999999999,147.19999999999999,152.6,174.9,193.6,206.3,233.8,259.7,308,330.5,333,359.4]
["Доказанные и вероятные",692.6,659,686.1,729.8,727.2,719.3,757.8,808.7,832.4,848.6,933.3,1018.9,1105.7,1090.2,1063.2,1110.2]
["Нефть, млн т"]
["Разведанные запасы по российской классификации",1357.5,1386.9,1509.9,1601.7,1785,1732.9,1767.3,1992.2,2019,2053.1,2082,2078.5,2045.3,2015.7,2005.7,2023.8]
["из них прошедшие оценку по стандартам PRMS",0.93,0.93,0.93,0.92,0.85,0.9,0.89,0.89,0.89,0.91,0.92,0.93,0.94,0.94,0.96,0.96]
["Доказанные",528.79999999999995,688.9,727,713.2,718.5,717.4,723.9,819.5,834.8,830.5,792.7,789.5,736.8,712.3,707.5,699.7]
["Вероятные",702.9,377.6,405.5,565,435.5,464.5,492.2,588.79999999999995,572.4,543.9,562.70000000000005,589.20000000000005,623.20000000000005,623.1,667.3,703.5]
["Доказанные и вероятные",1231.7,1066.5,1132.5,1278.2,1154,1181.9000000000001,1216.0999999999999,1408.3,1407.2,1374.4,1355.4,1378.7,1360,1335.4,1374.8,1403.2]
["* Без учета доли Группы Газпром в запасах организаций, инвестиции в которые классифицированы как совместные операции."]
[]
["Нефтяной эквивалент"]
[null,"По состоянию на 31 декабря"]
[null,"2005*","2006*","2007*","2008*","2009*","2010*","2011*",2012,2013,2014,2015,2016,2017,2018,2019,2020]
["Природный газ, млн барр. н. э."]
["Разведанные запасы по российской классификации",{"$f":"B9*6.49","v":189058.24300000002},193753.758,193307.24600000001,214969.568,217923.81600000002,214509.42700000003,227454.38100000002,228252,231670.9,234298.1,234596,236520.9,229456.5,228417.5,226494.5,217898.5]
["Доказанные",104178.2,{"$f":"C11*6.49","v":118037.52399999999},118679.38500000001,118038.822,120778.2,123253.537,124689.77399999999,124173.2,122916.1,122626.6,121954.9,120691.3,118464.5,116108.7,114971,113415.4]
["Вероятные",{"$f":"B12*6.49","v":30874.227999999999},16744.2,16559.235000000001,20042.417999999998,21664.269,22903.21,23568.435000000001,27609.1,28070.5,29957.8,31890.6,34128.300000000003,38246.9,41306.9,43355.8,45725.9]
["Доказанные и вероятные",{"$f":"B13*6.49","v":135052.35699999999},134781.72399999999,135238.62,138081.24,142442.52000000002,146156.747,148258.209,151782.29999999999,150986.6,152584.4,153845.5,154819.6,156711.4,157415.6,158326.79999999999,159141.29999999999]
["Газовый конденсат, млн барр. н. э."]
["Разведанные запасы по российской классификации",9949.2999999999993,9955.1,9918.2999999999993,10528.5,10839.3,10509.7,11415.2,11338.3,11324.4,11836.5,12265.9,12555.5,13052,13124,12840.1,12224.2]
["Доказанные",4154.6000000000004,4326.3999999999996,4653.6000000000004,4809,4793.5,4679.8,4950.5,5184.5,5225.3999999999996,5254,5721.9,6210.3,6525.2,6214.3,5973,6141.5]
["Вероятные",1510.8999999999999,1064.2,958.7,1160.8,1155,1204.0999999999999,1248.3,1430.7,1583.6,1687.5,1912.5,2124.3000000000002,2519.4,2703.5,2723.9,2939.9]
["Доказанные и вероятные",5665.5,5390.6,5612.3,5969.8,5948.5,5883.9,6198.8,6615.2,6809,6941.5,7634.4,8334.6,9044.6,8917.7999999999993,8696.9,9081.4]
["Нефть, млн барр. н. э."]
["Разведанные запасы по российской классификации",9950.5,10166,11067.6,11740.5,13084.1,12702.2,12954.3,14602.8,14799.3,15049.2,15261.1,15235.4,14992.1,14775.1,14701.8,14834.5]
["Доказанные",3876.1,5049.6000000000004,5328.9,5227.8,5266.6,5258.5,5306.2,6006.9,6119.1,6087.6,5810.5,5787,5400.7,5221.2,5186,5128.8]
["Вероятные",5152.3,2767.8,2972.3,4141.3999999999996,3192.2,3404.8,3607.8,4315.8999999999996,4195.7,3986.8,4124.6000000000004,4318.8,4568.1000000000004,4567.3,4891.3,5156.7]
["Доказанные и вероятные",9028.4,7817.4,8301.2000000000007,9369.2000000000007,8458.7999999999993,8663.2999999999993,8914,10322.799999999999,10314.799999999999,10074.4,9935.1,10105.9,9968.7999999999993,9788.5,10077.299999999999,10285.5]
["Всего, млн барр. н. э."]
["Разведанные запасы по российской классификации",{"$f":"B32+B37+B42","v":208958.04300000001},213874.85800000001,214293.14600000001,237238.568,241847.21600000001,237721.32700000005,251823.88100000002,254193.1,257794.6,261183.8,262123,264311.8,"257 500,6",256316.6,254036.4,244957.2]
["Доказанные",112208.90000000001,127413.52399999999,128661.88500000001,128075.622,130838.3,133191.837,134946.47399999999,135364.6,134260.6,133968.20000000001,133487.29999999999,132688.6,"130 390,4",127544.2,126130,124685.7]
["Вероятные",37537.428,20576.2,20490.235000000001,25344.617999999995,26011.469000000001,27512.109999999997,28424.535,33355.699999999997,33849.800000000003,35632.1,37927.699999999997,40571.5,"45 334,4",48577.7,50971,53822.5]
["Доказанные и вероятные",149746.25699999998,147989.72399999999,149152.12,153420.24,156849.82,160703.94699999999,163371.00899999999,168720.3,168110.4,169600.3,171415,173260.1,"175 724,8",176121.9,177101,178508.2]
["* Без учета доли Группы Газпром в запасах организаций, инвестиции в которые классифицированы как совместные операции."]
["Примечание. Группа Газпром осуществляет управленческий учет запасов и добычи углеводородов в метрических единицах измерения. В настоящем Справочнике пересчет объемов запасов газа из метрической системы в баррели нефтяного эквивалента выполнен исходя из соотношения 1 тыс. м3 природного газа = 6,49 барр. н. э. "]
[]
["Месторождения и залежи углеводородов, открытые Группой Газпром на территории Российской Федерации"]
[null,"За год, закончившийся 31 декабря"]
[null,"2005*",2006,2007,2008,2009,2010,2011,2012,2013,2014,2015,2016,2017,2018,2019,2020]
["Группа Газпром"]
["Месторождения",3,4,3,3,7,3,5,5,2,1,2,2,4,3,4,3]
["Залежи на ранее открытых месторождениях",14,30,24,22,14,26,28,49,27,37,22,15,47,12,25,22]
["Организации, инвестиции в которые классифицированы как совместные операции"]
["Месторождения","x","x","x","x","x","x","x","–","–","–","–","–",1,1,1,1]
["Залежи на ранее открытых месторождениях","x","x","x","x","x","x","x",2,1,2,6,3,5,3,2,3]
["* Без учета Группы Газпром нефть."]
[]
["Коэффициент восполнения разведанных запасов углеводородов Группы Газпром по российской классификации"]
["(с учетом доли в запасах и добыче организаций, инвестиции в которые классифицированы как совместные операции)"]
[null,"За год, закончившийся 31 декабря"]
[null,"2005*","2006*","2007*","2008*","2009*","2010*","2011*","2012*",2013,2014,2015,2016,2017,2018,2019,2020]
["Природный газ",1,1.1000000000000001,1.1000000000000001,1.1000000000000001,1,1.1000000000000001,1.4,1.18,1.33,1.86,1.27,1.1000000000000001,1.82,1.6,1.1100000000000001,1.08]
["Газовый конденсат",1.82,1.42,1.18,0.86,5.28,3.99,4.41,2.31,0.52,10.88,6.12,3.25,7.97,1.74,0.88,1.3]
["Нефть",0.51,1.38,0.59,1.69,1.83,2.6,1.78,1.67,1.1399999999999999,0.56999999999999995,0.47,0.41,7.0000000000000007E-2,0.41,0.61,0.21]
["Всего",1.02,1.0900000000000001,1.04,1.1000000000000001,1.1499999999999999,1.24,1.49,1.24,1.29,1.95,1.32,1.08,1.81,1.49,1.06,1]
["* Без учета доли Группы Газпром в запасах и добыче организаций, инвестиции в которые классифицированы как совместные операции."]
[]
["Запасы природного газа Группы Газпром по стандартам PRMS на территории Российской Федерации, млрд м3"]
["(с учетом доли в запасах организаций, инвестиции в которые классифицированы как совместные операции)"]
[null,"По состоянию на 31 декабря"]
[null,"2005*","2006*","2007*","2008*","2009*","2010*","2011*",2012,2013,2014,2015,2016,2017,2018,2019,2020]
["ПАО «Газпром» и его основные \nдочерние общества**"]
["Доказанные",15714.7,17902.5,17319.5,17196.8,17645.5,18029.400000000001,18208.099999999999,18133.7,18036.7,18023.7,17942.5,17780.900000000001,"17 429,6",17075.8,16831.400000000001,15987.4]
["Вероятные",{"$f":"IF(4672<>B82-B80,B82-B80,4672)","v":4671.8999999999978},2572.4,2539.4,2908.8,3255.2,3420.6,3505.7,4068.2,4072.4,4303.7,4587.6000000000004,4930.2,"5 536,8",6007.5,6290.7,6122.6]
["Доказанные и вероятные",20386.599999999999,20474.900000000001,19858.900000000001,20105.599999999999,20900.7,21450,21713.8,22201.9,22109.1,22327.4,22530.1,22711.1,"22 966,4",23083.3,23122.1,22110]
["ПАО «Газпром нефть» и его дочерние общества"]
["Доказанные",66.8,29.5,20.6,73.2,80.7,118.9,147.19999999999999,193.8,216.7,223.5,239.5,243,288.2,322.3,389.1,388.6]
["Вероятные",81.3,3.6,1.8,169.1,72.599999999999994,98.1,106.4,133.1,111.3,168.3,182.1,183,210.5,212.2,259.5,275.5]
["Доказанные и вероятные",148.1,33.1,22.4,242.3,153.30000000000001,217,253.6,326.89999999999998,328,391.8,421.6,426,498.7,534.5,648.6,664.1]
["Объекты месторождений ПАО «Газпром» и его основных дочерних обществ, разрабатываемые ООО «Газпромнефть-Заполярье» "]
["Доказанные","x","x","x","x","x","x","x","x","x","x","x","x","x","x","x",645.5]
["Вероятные","x","x","x","x","x","x","x","x","x","x","x","x","x","x","x",523.70000000000005]
["Доказанные и вероятные","x","x","x","x","x","x","x","x","x","x","x","x","x","x","x","1 169,2"]
["ЗАО «Пургаз»"]
["Доказанные",270.60000000000002,255.6,233.1,217.9,206.4,191.3,188,172.9,158.30000000000001,145,132.30000000000001,120.6,109.7,92,83.2,73.400000000000006]
["Вероятные",4,4,3.9,3.9,3.9,3.9,12.8,12.9,12.9,12.9,12.9,12.9,12.9,12.7,12.8,12.7]
["Доказанные и вероятные",274.60000000000002,259.60000000000002,237,221.8,210.3,195.2,200.8,185.8,171.2,157.9,145.19999999999999,133.5,122.6,104.7,96,86.1]
["ОАО «Севернефтегазпром»"]
["Доказанные","x","x",713.3,699.9,677.3,651.70000000000005,669.3,613.70000000000005,510,484.9,459.8,434.6,409.9,384.8,397.1,367.4]
["Вероятные","x","x",6.4,6.4,6.4,6.4,6.6,36.799999999999997,125.7,125.7,125.7,125.7,125.5,125.4,110.5,104.2]
["Доказанные и вероятные","x","x",719.7,706.3,683.7,658.1,675.9,650.5,635.70000000000005,610.6,585.5,560.29999999999995,535.4,510.2,507.6,471.6]
["Всего без учета доли в запасах организаций, инвестиции в которые классифицированы как совместные операции"]
["Доказанные",16052.1,18187.599999999999,18286.5,18187.8,18609.900000000001,18991.3,19212.599999999999,19114.099999999999,18921.7,18877.099999999999,18774.099999999999,18579.099999999999,"18 237,4",17874.900000000001,17700.8,17462.3]
["Вероятные",4757.2,2580,2551.5,3088.2,3338.1,3529,3631.5,4251,4322.3,4610.6000000000004,4908.3,5251.8,"5 885,7",6357.8,6673.5,7038.7]
["Доказанные и вероятные",20809.3,20767.599999999999,20838,21276,21948,22520.3,22844.1,23365.1,23244,23487.7,23682.400000000001,23830.9,24123.1,24232.7,24374.3,24501]
["Организации, инвестиции в которые классифицированы как совместные операции в доле, приходящейся на Группу Газпром"]
["Доказанные","x","x","x","x","x","x","x",18.899999999999999,17.600000000000001,17.600000000000001,17.100000000000001,17.399999999999999,16,15.5,14.3,13.1]
["Вероятные","x","x","x","x","x","x","x",3.1,2.9,5.4,5.5,6.8,7.5,6.9,6.9,6.9]
["Доказанные и вероятные","x","x","x","x","x","x","x",22,20.5,23,22.6,24.2,23.5,22.4,21.2,20]
["Всего с учетом доли в запасах организаций, инвестиции в которые классифицированы как совместные операции"]
["Доказанные","x","x","x","x","x","x","x",19133,18939.3,18894.7,18791.2,18596.5,"18 253,4",17890.400000000001,17715.099999999999,17475.400000000001]
["Вероятные","x","x","x","x","x","x","x",4254.1000000000004,4325.2,4616,4913.8,5258.6,"5 893,2",6364.7,6680.4,7045.6]
["Доказанные и вероятные","x","x","x","x","x","x","x",23387.1,23264.5,23510.7,23705,23855.1,"24 146,6",24255.1,24395.5,24521]
["* Без учета доли Группы Газпром в запасах корганизаций, инвестиции в которые классифицированы как совместные операции."]
["** Начиная с оценки по состоянию на 31 декабря 2020 г. данные приводятся без учета запасов объектов месторождений, лицензии на право пользования которыми принадлежат ПАО «Газпром» или его основным дочерним обществам, а разработка осуществляется ООО «Газпромнефть-Заполярье» в соответствии с условиями заключенных в 2018–2020 гг. долгосрочных рисковых операторских договоров."]
[]
["Запасы газового конденсата Группы Газпром по стандартам PRMS на территории Российской Федерации, млн т"]
["(с учетом доли в запасах организаций, инвестиции в которые классифицированы как совместные операции)"]
[null,"По состоянию на 31 декабря"]
[null,"2005*","2006*","2007*","2008*","2009*","2010*","2011*",2012,2013,2014,2015,2016,2017,2018,2019,2020]
["ПАО «Газпром» и его основные \nдочерние общества**"]
["Доказанные",507.9,528.9,568.9,587.9,586,572.1,605.20000000000005,633.79999999999995,634.4,637.29999999999995,691.9,751.7,788.9,748.5,719.1,696.9]
["Вероятные",184.7,130.1,117.2,141.9,141.19999999999999,147.19999999999999,152.6,174.9,190.3,202.8,230.2,257,303.5,327.2,329.7,313.5]
["Доказанные и вероятные",692.6,659,686.1,729.8,727.2,719.3,757.8,808.7,824.7,840.1,922.1,1008.7,"1 092,4",1075.7,1048.8,1010.4]
["ПАО «Газпром нефть» и его дочерние общества"]
["Доказанные***","x","x","x","x","x","x","x","x",4.4000000000000004,5,7.6,7.5,8.8000000000000007,11.2,11.1,10.4]
["Вероятные***","x","x","x","x","x","x","x","x",3.3,3.5,3.6,2.7,4.5,3.3,3.3,2.8]
["Доказанные и вероятные***","x","x","x","x","x","x","x","x",7.7,8.5,11.2,10.199999999999999,13.3,14.5,14.4,13.2]
["Объекты месторождений ПАО «Газпром» и его основных дочерних обществ, разрабатываемые ООО «Газпромнефть-Заполярье»"]
["Доказанные","x","x","x","x","x","x","x","x","x","x","x","x","x","x","x",43.5]
["Вероятные","x","x","x","x","x","x","x","x","x","x","x","x","x","x","x",43.1]
["Доказанные и вероятные","x","x","x","x","x","x","x","x","x","x","x","x","x","x","x",86.6]
["Всего"]
["Доказанные",507.9,528.9,568.9,587.9,586,572.1,605.20000000000005,633.79999999999995,638.79999999999995,642.29999999999995,699.5,759.2,797.7,759.7,730.2,750.8]
["Вероятные",184.7,130.1,117.2,141.9,141.19999999999999,147.19999999999999,152.6,174.9,193.6,206.3,233.8,259.7,308,330.5,333,359.4]
["Доказанные и вероятные",692.6,659,686.1,729.8,727.2,719.3,757.8,808.7,832.4,848.6,933.3,"1 018,9","1 105,7",1090.2,1063.2,1110.2]
["* Без учета доли Группы Газпром в запасах и добыче организаций, инвестиции в которые классифицированы как совместные операции."]
["** Начиная с оценки по состоянию на 31 декабря 2020 г. данные приводятся без учета запасов объектов месторождений, лицензии на право пользования которыми принадлежат ПАО «Газпром» или его основным дочерним обществам, а разработка осуществляется ООО «Газпромнефть-Заполярье» в соответствии с условиями заключенных в 2018–2020 гг. долгосрочных рисковых операторских договоров."]
["*** До оценки, подготовленной по состоянию на 31 декабря 2013 г., запасы газового конденсата Группы Газпром нефть учитывались в запасах нефти."]
[]
["Запасы нефти Группы Газпром по стандартам PRMS на территории Российской Федерации, млн т"]
["(с учетом доли в запасах организаций, инвестиции в которые классифицированы как совместные операции)"]
[null,"По состоянию на 31 декабря"]
[null,"2005*","2006*","2007*","2008*","2009*","2010*","2011*",2012,2013,2014,2015,2016,2017,2018,2019,2020]
["ПАО «Газпром» и его основные \nдочерние общества**"]
["Доказанные",67.3,87.1,76.900000000000006,97.6,93,82.9,57.3,58.9,55.5,55.6,44.7,44.6,16.5,17.2,22,10.5]
["Вероятные",232.2,203.8,210,185.7,159.80000000000001,179.1,171.2,105,121,45.9,35,35,46.5,46.7,58.1,48.7]
["Доказанные и вероятные",299.5,290.89999999999998,286.89999999999998,283.3,252.8,262,228.5,163.9,176.5,101.5,79.7,79.599999999999994,63,63.9,80.099999999999994,59.2]
["ПАО «Газпром нефть» и его дочерние общества"]
["Доказанные",461.5,601.79999999999995,650.1,615.6,625.5,634.5,666.6,654.9,683.9,675.9,655.6,652.79999999999995,630.79999999999995,611.1,605,597.4]
["Вероятные",470.7,173.8,195.5,379.3,275.7,285.39999999999998,321,418.8,393.8,432.8,458.7,486.1,507.4,507.7,535.79999999999995,572.6]
["Доказанные и вероятные",932.2,775.6,845.6,994.9,901.2,919.9,987.6,1073.7,1077.7,1108.7,1114.3,1138.9000000000001,"1 138,2",118.8,1140.8,1170]
["Объекты месторождений ПАО «Газпром» и его основных дочерних обществ, разрабатываемые ООО «Газпромнефть-Заполярье»"]
["Доказанные","x","x","x","x","x","x","x","x","x","x","x","x","x","x","x",15]
["Вероятные","x","x","x","x","x","x","x","x","x","x","x","x","x","x","x",10]
["Доказанные и вероятные","x","x","x","x","x","x","x","x","x","x","x","x","x","x","x",25]
["Всего без учета доли в запасах организаций, инвестиции в которые классифицированы как совместные операции"]
["Доказанные",528.79999999999995,688.9,727,713.2,718.5,717.4,723.9,713.8,739.4,731.5,700.3,697.4,647.29999999999995,628.29999999999995,627,622.9]
["Вероятные",702.9,377.6,405.5,565,435.5,464.5,492.2,523.79999999999995,514.79999999999995,478.7,493.7,521.1,553.9,554.4,593.9,631.29999999999995]
["Доказанные и вероятные",1231.7,1066.5,1132.5,1278.2,1154,1181.9000000000001,1216.0999999999999,1237.5999999999999,1254.2,1210.2,1194,1218.5,"1 201,2",1182.7,1220.9000000000001,1254.2]
["Организации, инвестиции в которые классифицированы как совместные операции в доле, приходящейся на Группу Газпром"]
["Доказанные","x","x","x","x","x","x","x",105.7,95.4,99.1,92.4,92.1,89.5,84,80.5,76.900000000000006]
["Вероятные","x","x","x","x","x","x","x",65,57.6,65.099999999999994,69,68.099999999999994,69.3,68.7,73.400000000000006,72.099999999999994]
["Доказанные и вероятные","х","х","х","х","х","х","х",170.7,153,164.2,161.4,160.19999999999999,158.80000000000001,152.69999999999999,153.9,149]
["Всего с учетом доли в запасах организаций, инвестиции в которые классифицированы как совместные операции"]
["Доказанные","x","x","x","x","x","x","x",819.5,834.8,830.5,792.7,789.5,736.8,712.3,707.5,699.8]
["Вероятные","x","x","x","x","x","x","x",588.79999999999995,572.4,543.9,562.70000000000005,589.20000000000005,623.20000000000005,623.1,667.3,703.4]
["Доказанные и вероятные","x","x","x","x","x","x","x",1408.3,1407.2,1374.4,1355.4,1378.7,"1 360,0",1355.4,1374.8,1403.2]
["* Без учета доли Группы Газпром в запасах и добыче организаций, инвестиции в которые классифицированы как совместные операции."]
["** Начиная с оценки по состоянию на 31 декабря 2020 г. данные приводятся без учета запасов объектов месторождений, лицензии на право пользования которыми принадлежат ПАО «Газпром» или его основным дочерним обществам, а разработка осуществляется ООО «Газпромнефть-Заполярье» в соответствии с условиями заключенных в 2018–2020 гг. долгосрочных рисковых операторских договоров."]
[]
["Распределение разведанных запасов углеводородов по российской классификации Группы Газпром на территории Российской Федерации "]
["(с учетом доли в запасах организаций, инвестиции в которые классифицированы как совместные операции)"]
[null,"По состоянию на 31 декабря"]
[null,"2005*","2006*","2007*","2008*","2009*","2010*","2011*",2012,2013,2014,2015,2016,2017,2018,2019,2020]
["Природный газ, млрд м3"]
["Уральский ФО",22341.200000000001,21937.3,21514.1,24265.200000000001,24390.6,23566.799999999999,23401.1,23144.2,22456.6,22032.2,21613.5,21309,"20 302,6",19735.7,19257.7,18372.5]
["Северо-Западный ФО",94.2,93.2,93.3,92.2,90.4,89.3,88.2,87.4,86.9,85.8,85.1,307.3,319.3,318.60000000000002,315.10000000000002,315]
["Южный и Северо-Кавказский ФО",2616.6,2594.8000000000002,2581.8000000000002,2569,2560.6999999999998,2545.4,2523.1,2510.5,2498.9,2997.4,2985.3,2973.1,"2 961,1",2948.2,2924.6,2911.4]
["Приволжский ФО",830.4,810.6,792.8,774.7,758.5,751.3,735.4,717.8,696.2,684.1,663.5,648.9,640.70000000000005,626.9,666.6,452.6]
["Сибирский ФО",303.89999999999998,295,275.5,291.7,284.7,308.3,1668.1,1737.5,1755.1,1936.7,1971.6,2103.3000000000002,"2 102,1",2094.1999999999998,2080.5,1803.8]
["Дальневосточный ФО",8.8000000000000007,8.8000000000000007,22,401.7,402.2,456.6,1106.2,1181,1197.2,1197.2,1402.1,1488.3,"1 420,1",1415.8,1425.4,1420.3]
["Континентальный шельф Российской Федерации",2935.6,4114.5,4505.8999999999996,4728.7,5091.3,5334.6,5524.8,5791.4,7005.7,7168,7426.2,7614,"7 609,5",8055.9,8229.1,8298.9]
["Всего",29130.7,29854.2,29785.4,{"$f":"SUM(E174:E180)","v":33123.200000000004},{"$f":"SUM(F174:F180)","v":33578.400000000001},{"$f":"SUM(G174:G180)","v":33052.299999999996},35046.9,35169.800000000003,35696.6,36101.4,36147.300000000003,36443.9,"35 355,4",35195.300000000003,34899,33574.5]
["Газовый конденсат, млн т"]
["Уральский ФО",688.4,689.7,690.2,760.4,770.9,724,730.5,713.8,712.4,675.7,695.2,690.6,750,744.1,739.2,724.3]
["Северо-Западный ФО",21.5,21.3,21.3,21.2,20.9,20.8,20.7,20.6,20.6,20.5,20.5,31.3,33.1,33,32.299999999999997,32.1]
["Южный и Северо-Кавказский ФО",395.8,392.4,389.2,386,383.5,380.6,377.4,374.3,371.5,447.5,444.7,441.9,439,436,432.4,429.7]
["Приволжский ФО",59.2,58.7,58,57.5,57.2,57.4,57.1,57.4,56.9,56.5,56,55.7,55.6,55.3,55,16.5]
["Сибирский ФО",26.9,26.3,21.8,22.6,21.1,21.2,89.9,92.8,91.4,92.6,92.3,97,96.9,96,94.6,75.400000000000006]
["Дальневосточный ФО",0.1,0.1,0.1,5.8,6,6.9,25.2,26.4,27.3,27.3,29.6,30.5,29.4,29.3,31.6,31.4]
["Континентальный шельф Российской Федерации",24.4,28.5,31.9,33.6,65.5,73.900000000000006,94.7,100.8,104.3,126.9,161.19999999999999,187.9,191.6,210.7,184.6,185]
["Всего",1216.3,1217,1212.5,{"$f":"SUM(E183:E189)","v":1287.0999999999997},{"$f":"SUM(F183:F189)","v":1325.1},{"$f":"SUM(G183:G189)","v":1284.8000000000004},1395.5,1386.1,1384.4,1447,1499.5,1534.9,"1 595,6",1604.4,1569.7,1494.4]
["Нефть, млн т"]
["Уральский ФО",1152,1146,1261.0999999999999,1303.0999999999999,1461.6,1400.1,1400.3,1532.9,1550.9,1560.1,1541.6,1531.3,"1 494,3",1471.2,1466.8,1466]
["Северо-Западный ФО",2.1,13.5,14.2,15.7,16.899999999999999,17.3,17.3,4.8,4.8,4.8,5.6,19.8,20.3,20.3,19.5,20]
["Южный и Северо-Кавказский ФО",3.5,4.5,5.4,8.8000000000000007,9.6999999999999993,10.6,7.4,7.3,8,7.9,8,7.9,7.8,7.7,7.8,7.7]
["Приволжский ФО",118.6,134.30000000000001,133.9,133.30000000000001,145.1,144.5,153.80000000000001,156.19999999999999,159,159.9,200.2,202.5,228.1,227.7,224.9,235.5]
["Сибирский ФО",31.3,38.5,44.6,47.6,58.3,61.9,86,188.5,191.4,198.9,205,201.3,199.6,187.4,188.4,189.2]
["Дальневосточный ФО",2.7,2.7,3.3,45.8,46,51.1,55.1,55.1,57.5,57.6,58.4,54.6,36.799999999999997,36.799999999999997,36.9,36.700000000000003]
["Континентальный шельф Российской Федерации",47.3,47.4,47.4,47.4,47.4,47.4,47.4,47.4,47.4,63.9,63.2,61.1,58.4,64.599999999999994,61.4,68.7]
["Всего",1357.5,1386.9,1509.9,{"$f":"SUM(E192:E198)","v":1601.6999999999998},{"$f":"SUM(F192:F198)","v":1785},{"$f":"SUM(G192:G198)","v":1732.8999999999999},1767.3,1992.2,2019,2053.1,2082,2078.5,"2 045,3",2015.7,2005.7,2023.8]
["* Без учета доли Группы Газпром в запасах организаций, инвестиции в которые классифицированы как совместные операции."]
["Примечание. До 2016 г. запасы углеводородов приведены по категориям A+B+C1, начиная с оценки по состоянию на 31 декабря 2016 г. — по категориям A+B1+C1. В соответствии с Классификацией запасов и ресурсов нефти и горючих газов, утвержденной приказом Минприроды России от 1 ноября 2013 г. № 477 и вступившей в силу с 1 января 2016 г., категории А+В1+С1 представляют собой разведанные запасы с высокой степенью геологической изученности и соответствуют ранее принятым категориям А+В+С1."]
[]
["Вернуться к содержанию"]

{"sheet":"Запасы ассоц. и СП","index":7,"n_rows":20,"n_cols":12,"rows_kept":20,"cut":false,"hidden":false,"merged":[[7,0,7,11],[10,1,10,11],[16,0,16,11],[17,0,17,11],[0,0,0,11],[1,0,1,11],[2,1,2,11],[9,0,9,11]]}
["Разведанные запасы углеводородов по российской классификации ассоциированных организаций и совместных предприятий на территории Российской Федерации в доле, приходящейся на Группу Газпром "]
["Метрические единицы"]
[null,"По состоянию на 31 декабря"]
[null,"2010*","2011*",2012,2013,2014,2015,2016,2017,2018,2019,2020]
["Природный газ, млрд м3",645.4,717.4,732.2,851.5,971.7,1035.5,999.1,"1 003,8",1146.7,1064,1046.2]
["Газовый конденсат, млн т",57.8,60.1,62,80.099999999999994,97,112.1,104.5,100.8,110.1,111.1,110.1]
["Нефть, млн т",611.79999999999995,728.6,518.29999999999995,542,575.4,566.9,571.5,578.29999999999995,592,588.6,595.70000000000005]
["* Включая долю Группы Газпром в запасах организаций, инвестиции в которые классифицированы как совместные операции."]
[]
["Нефтяной эквивалент"]
[null,"По состоянию на 31 декабря"]
[null,"2010*","2011*",2012,2013,2014,2015,2016,2017,2018,2019,2020]
["Природный газ, млн барр. н. э.",{"$f":"B5*6.49","v":4188.6459999999997},4655.9260000000004,4751.9780000000001,5526.2350000000006,6306.3330000000005,6720.3950000000004,{"$f":"H5*6.49","v":6484.1590000000006},"6 514,7",7442.1,6905.4,6789.8]
["Газовый конденсат, млн барр. н. э.",{"$f":"B6*8.18","v":472.80399999999997},491.61799999999999,507.15999999999997,655.21799999999996,793.45999999999992,916.97799999999995,{"$f":"H6*8.18","v":854.81},824.5,900.6,908.8,900.6]
["Нефть, млн барр. н. э.",4484.5,5340.6,3799.1,3972.9,4217.7,4155.3999999999996,{"$f":"H7*7.33","v":4189.0950000000003},"4 238,9",4339.3999999999996,4314.3999999999996,4366.5]
["Всего, млн барр. н. э.",{"$f":"B13+B14+B15","v":9145.9500000000007},10488.144,9058.2379999999994,10154.353000000001,11317.493,11792.773000000001,{"$f":"H13+H14+H15","v":11528.064000000002},"11 578,1",12682.1,12128.6,12056.9]
["* Включая долю Группы Газпром в запасах организаций, инвестиции в которые классифицированы как совместные операции."]
["Примечание. Группа Газпром осуществляет управленческий учет запасов и добычи углеводородов в метрических единицах измерения. В настоящем Справочнике пересчет объемов запасов газа из метрической системы в баррели нефтяного эквивалента выполнен исходя из соотношения 1 тыс. м3 природного газа = 6,49 барр. н. э. "]
[]
["Вернуться к содержанию"]

{"sheet":"Движение запасов","index":8,"n_rows":107,"n_cols":4,"rows_kept":107,"cut":false,"hidden":false,"merged":[[0,0,0,3],[101,0,101,3],[102,0,102,3],[103,0,103,3],[104,0,104,3],[1,0,1,3]]}
["Движение разведанных запасов углеводородов Группы Газпром по российской классификации на территории Российской Федерации, 2013–2020 гг."]
["(с учетом доли в запасах организаций, инвестиции в которые классифицированы как совместные операции)"]
[null,"Природный газ","Газовый конденсат*","Нефть"]
[null,"млрд м3","млн т","млн т"]
["Запасы на 31.12.2012 г.",35169.800000000003,1386.1,1992.2]
["Прирост запасов за счет геологоразведки",647.79999999999995,5.4,48.2]
["Передача запасов, разведанных в 2013 г., в нераспределенный фонд недр России** и на баланс других компаний, приобретение с баланса других компаний",-137.19999999999999,-1.9,-1.4]
["Получение лицензий, в т. ч.:",484.1,3.6,"–"]
["по факту открытия***",0.9,0.1,"–"]
["по результатам аукционов и конкурсов","–","–","–"]
["по решению Правительства России без проведения конкурса",483.2,3.5,"–"]
["Сдача лицензий","–","–","–"]
["Приобретение активов",13.7,0.5,"–"]
["Выбытие активов","–","–","–"]
["Переоценка",5.6,1.2,22.3]
["Добыча (включая потери)","-487,2****",-10.5,-42.3]
["Запасы на 31.12.2013 г.",35696.6,1384.4,2019]
["Прирост запасов за счет геологоразведки",822.5,114.2,24.7]
["Передача запасов, разведанных в 2014 г., в нераспределенный фонд недр России** и на баланс других компаний, приобретение с баланса других компаний",-91.1,-6.9,2.2999999999999998]
["Получение лицензий, в т. ч.:",182.3,2.8,5.8]
["по факту открытия***","–","–","–"]
["по результатам аукционов и конкурсов","–","–",5.8]
["по решению Правительства России без проведения конкурса",182,2.7,"–"]
["Сдача лицензий","–","–",-0.1]
["Приобретение активов","–","–","–"]
["Выбытие активов","–","–","–"]
["Переоценка",-66,-37,44.7]
["Добыча (включая потери)","-442,9****",-10.5,-43.3]
["Запасы на 31.12.2014 г.",36101.4,1447,2053.1]
["Прирост запасов за счет геологоразведки",531.1,68.5,20.6]
["Передача запасов, разведанных в 2015 г., в нераспределенный фонд недр России** и на баланс других компаний, приобретение с баланса других компаний",-62.9,-4.7,0.9]
["Получение лицензий, в т. ч.:","– ","–",4.2]
["по факту открытия***","–","–","–"]
["по результатам аукционов и конкурсов","– ","–",4.2]
["по решению Правительства России без проведения конкурса","–","–","–"]
["Сдача лицензий","–","–","–"]
["Приобретение активов","–","–","–"]
["Выбытие активов","–","–","–"]
["Переоценка",-5,-0.1,47.1]
["Добыча (включая потери)","-417,3****",-11.2,-43.9]
["Запасы на 31.12.2015 г.",36147.300000000003,1499.5,2082]
["Прирост запасов за счет геологоразведки",457.4,38,19.3]
["Передача запасов, разведанных в 2016 г., в нераспределенный фонд недр России** и на баланс других компаний, приобретение с баланса других компаний",-2.4,-1.7,-2]
["Получение лицензий, в т. ч.:",257.5,10.9,15]
["по факту открытия***","−","−","−"]
["по результатам аукционов и конкурсов",257.5,10.9,15]
["по решению Правительства России без проведения конкурса","−","−","−"]
["Сдача лицензий",-0.6,"−","−"]
["Приобретение активов","−","−","−"]
["Выбытие активов","−","−","−"]
["Переоценка",2,-0.1,11.1]
["Добыча (включая потери)","-417,3****",-11.7,-46.9]
["Запасы на 31.12.2016 г.",36443.9,1534.9,2078.5]
["Прирост запасов за счет геологоразведки",852.9,95.6,3.3]
["Передача запасов, разведанных в 2017 г., в нераспределенный фонд недр России** и на баланс других компаний, приобретение с баланса других компаний",-46.4,"−",1.2]
["Получение лицензий, в т. ч.:",12.8,1.9,"−"]
["по факту открытия***","−","−","−"]
["по результатам аукционов и конкурсов",12.8,1.9,"–"]
["по решению Правительства России без проведения конкурса","−","−","−"]
["Сдача лицензий",-0.1,"−","−"]
["Приобретение активов","−","−","−"]
["Выбытие активов","−","−",-9.4]
["Переоценка",-1437.8,-24.8,19.8]
["Добыча (включая потери)","-469,9****",-12,-48.1]
["Запасы на 31.12.2017 г.",35355.4,1595.6,2045.3]
["Прирост запасов за счет геологоразведки",796.6,21.8,19.399999999999999]
["Передача запасов, разведанных в 2018 г., в нераспределенный фонд недр России** и на баланс других компаний, приобретение с баланса других компаний",-409.3,-0.6,-5.7]
["Получение лицензий, в т. ч.:","−","−",0.8]
["по факту открытия***","−","−",0.8]
["по результатам аукционов и конкурсов","−","−","−"]
["по решению Правительства России без проведения конкурса","−","−","−"]
["Сдача лицензий","−","−","−"]
["Приобретение активов","−","−",0.1]
["Выбытие активов","−","−","−"]
["Переоценка",-49.6,0.1,3.1]
["Добыча (включая потери)","-497,8****",-12.5,-47.3]
["Запасы на 31.12.2018 г.",35195.300000000003,1604.4,2015.7]
["Прирост запасов за счет геологоразведки",556.70000000000005,11.7,29]
["Передача запасов, разведанных в 2019 г., в нераспределенный фонд недр России** и на баланс других компаний, приобретение с баланса других компаний",-0.4,"–",-0.2]
["Получение лицензий, в т. ч.:",2.7,"–",7.4]
["по факту открытия***",2.7,"–","–"]
["по результатам аукционов и конкурсов","–","–",7.4]
["по решению Правительства России без проведения конкурса","–","–","–"]
["Сдача лицензий",-0.8,"–",-0.1]
["Приобретение активов",100.6,6.3,"–"]
["Выбытие активов","–","–","–"]
["Переоценка",-455.4,-39.4,1.4]
["Добыча (включая потери)","-499,7****",-13.3,-47.5]
["Запасы на 31.12.2019 г.",34899,1569.7,2005.7]
["Прирост запасов за счет геологоразведки",486.3,17.2,9.5]
["Передача запасов, разведанных в 2020 г., в нераспределенный фонд недр России** и на баланс других компаний, приобретение с баланса других компаний",-2.9,"–",0.2]
["Получение лицензий, в т. ч.:",15.7,1.2,2.8]
["по факту открытия***","–","–","–"]
["по результатам аукционов и конкурсов",15.7,1.2,"–"]
["по решению Правительства России без проведения конкурса","–","–","–"]
["Сдача лицензий","–","–","–"]
["Приобретение активов","–","–","–"]
["Выбытие активов","–","–","–"]
["Переоценка",-1371.8,-80.5,51.4]
["Добыча (включая потери)","-451,8****",-13.2,-45.8]
["Запасы на 31.12.2020 г.",33574.5,1494.4,2023.8]
["* Изменение запасов газового конденсата за счет добычи отражается в пересчете на стабильный газовый конденсат (С5+). Объем добычи нестабильного газового конденсата Группой Газпром приведен в разделе «Добыча». "]
["** В соответствии с законодательством России недропользователь не имеет безусловного права на разработку запасов, \nобнаруженных им на участках лицензий с целью геологического изучения и за пределами лицензионных участков. Такие запасы\nпередаются в нераспределенный фонд недр Российской Федерации. В дальнейшем недропользователь имеет преимущественное \nправо на получение лицензии на их разработку."]
["*** Включает полученные лицензии на разработку запасов, разведанных Группой в предыдущие годы."]
["**** Исключая растворенный газ. "]
[]
["Вернуться к содержанию"]

{"sheet":"Открытые месторождения","index":9,"n_rows":27,"n_cols":4,"rows_kept":27,"cut":false,"hidden":false,"merged":[[14,1,16,1],[24,0,24,3],[0,0,0,3],[1,0,1,3],[3,1,4,1],[6,1,7,1],[8,1,9,1],[10,1,13,1],[17,1,20,1],[21,1,23,1]]}
["Наименования месторождений углеводородов, открытых Группой Газпром на территории Российской Федерации, 2013–2020 гг."]
["(без учета месторождений, открытых организациями, инвестиции в которые классифицированы как совместные операции)"]
["Наименования открытых месторождений","Год открытия","Типы открытых месторождений*","Местоположение"]
["им. П. Мангазеева",2013,"Н","Томская область"]
["Восточно-Мыгинское",null,"Н","Томская область"]
["Восточно-Имбинское",2014,"Г","Красноярский край"]
["Падинское",2015,"ГК","ЯНАО"]
["Нарыкско-Осташкинское",null,"метаноугольное","Кемеровская область"]
["Западно-Чатылькинское",2016,"Н","ЯНАО"]
["Новосамарское",null,"Н","Оренбургская область"]
["Южно-Лунское",2017,"ГК","Континентальный шельф Российской Федерации в Охотском море"]
["Салаирское",null,"ГК","Красноярский край"]
["им. А. Жагрина",null,"Н","ХМАО – Югра"]
["Новозаринское",null,"Н","Оренбургская область"]
["Нептун",2018,"Н","Континентальный шельф Российской Федерации в Охотском море"]
["Тритон",null,"Н","Континентальный шельф Российской Федерации в Охотском море"]
["Ближненовопортовское",null,"Г","ЯНАО"]
["Им. В.А. Динкова",2019,"ГК","Континентальный шельф Российской Федерации в Карском море"]
["Нярмейское",null,"Г","Континентальный шельф Российской Федерации в Карском море"]
["Ягодное",null,"Н","Оренбургская область"]
["Рощинское",null,"Н","Оренбургская область"]
["75 лет Победы",2020,"Г","Континентальный шельф Российской Федерации в Карском море"]
["Солхэм",null,"Н","ХМАО — Югра"]
["Центрально-Уранское",null,"Н","Оренбургская область"]
["* Тип в соответствии с действующей в России Классификацией запасов и ресурсов нефти и горючих газов: НГК — нефтегазоконденсатное, НГ — нефтегазовое, ГК — газоконденсатное, Г — газовое, Н — нефтяное."]
[]
["Вернуться к содержанию"]

{"sheet":"Лицензии","index":10,"n_rows":26,"n_cols":9,"rows_kept":26,"cut":false,"hidden":false,"merged":[[0,0,0,8],[1,0,1,8],[2,1,2,8],[23,0,23,8],[12,0,12,1],[13,0,13,1],[14,0,14,1],[15,0,15,1],[16,0,16,1],[18,0,18,1],[19,0,19,1],[20,0,20,1],[21,0,21,1],[22,0,22,1],[11,0,11,8]]}
["Лицензии"]
["Лицензионные участки на территории Российской Федерации"]
[null,"По состоянию на 31 декабря"]
[null,2013,2014,2015,2016,2017,2018,2019,2020]
["Группа Газпром"]
["Количество лицензий на пользование недрами с целью геологического изучения, разведки и добычи углеводородного сырья",258,261,267,267,265,274,302,317]
["Площадь лицензионных участков, тыс. км2",614.20000000000005,546.29999999999995,546.9,545.6,547.5,559.29999999999995,573.20000000000005,582.5]
["Организации, инвестиции в которые классифицированы как совместные операции"]
["Количество лицензий на пользование недрами с целью геологического изучения, разведки и добычи углеводородного сырья",36,35,35,36,36,36,37,37]
["Площадь лицензионных участков, тыс. км2",21.7,21.6,22.9,23.1,23.1,23.1,23.9,23.7]
[]
["Распределение площади лицензионных участков на территории Российской Федерации по состоянию на 31 декабря 2020 г.,\nтыс. км2"]
["Категория лицензии*",null,"Уральский \nФО","Северо-Западный\nФО","Южный и Северо-\nКавказский ФО","Приволжский \nФО","Сибирский\nФО","Дальневосточный\nФО","Континентальный\nшельф Российской\nФедерации"]
["Группа Газпром"]
["С целью поиска, разведки и добычи (НР)",null,33.799999999999997,"–",2.8,6.3,43.1,"–",325.89999999999998]
["С целью разведки и добычи (НЭ)",null,68,1.5,5.4,3.1,20.7,12.6,11.8]
["С целью геологического изучения недр (НП)",null,32.1,"–",0.3,2.2999999999999998,11,1.8,"–"]
["Всего",null,133.9,1.5,8.5,11.7,74.8,14.4,337.7]
["Организации, инвестиции в которые\nклассифицированы как совместные операции"]
["С целью поиска, разведки и добычи (НР)",null,0.6,"–","–","–","–","–","–"]
["С целью разведки и добычи (НЭ)",null,4.0999999999999996,"–","–","–",18.899999999999999,"–","–"]
["С целью геологического изучения недр (НП)",null,0.1,"–","–","–","–","–","–"]
["Всего",null,4.8,"–","–","–",18.899999999999999,"–","–"]
["* Категории лицензий указаны в соответствии с российским законодательством."]
[]
["Вернуться к содержанию"]

{"sheet":"Основные лицензии","index":11,"n_rows":88,"n_cols":7,"rows_kept":88,"cut":false,"hidden":false,"merged":[[8,2,9,2],[8,3,9,3],[0,0,0,6],[2,0,2,6],[3,0,3,6],[4,2,7,2],[4,3,7,3],[10,2,14,2],[10,3,14,3],[16,2,18,2],[16,3,18,3],[21,2,25,2],[21,3,25,3],[59,2,60,2],[59,3,60,3],[27,2,32,2],[27,3,32,3],[34,0,34,6],[35,2,36,2],[37,0,37,6],[40,0,40,6],[41,2,47,2],[41,3,47,3],[49,0,49,6],[50,2,58,2],[50,3,58,3],[79,2,80,2],[79,3,80,3],[61,2,62,2],[61,3,62,3],[63,0,63,6],[64,0,64,6],[67,0,67,6],[68,2,71,2],[68,3,71,3],[72,0,72,6],[73,0,73,6],[74,2,75,2],[74,3,75,3],[77,0,77,6],[81,0,81,6],[82,0,82,6],[83,0,83,6],[84,0,84,6],[85,0,85,6]]}
["Лицензии на основные месторождения углеводородов по состоянию на 31 декабря 2020 г."]
["Наименование месторождения","Год начала добычи","Общество – держатель лицензии ","Доля \nГруппы*, %","Тип месторождения**","Категория лицензии*** ","Год истечения срока лицензии**** "]
["Группа Газпром"]
["Западная Сибирь (Уральский ФО)"]
["Уренгойское",1978,"ООО «Газпром добыча Уренгой»",1,"НГК","НЭ",2038]
["Северо-Уренгойское",1987,null,null,"НГК","НЭ",2030]
["Ен-Яхинское",1985,null,null,"НГК","НЭ",2038]
["Песцовое",2004,null,null,"НГК","НЭ",2041]
["Ямбургское ",1991,"ООО «Газпром добыча Ямбург»",1,"НГК","НЭ",2054]
["Заполярное",2001,null,null,"НГК ","НЭ",2114]
["Медвежье",1972,"ООО «Газпром добыча Надым»",1,"НГК","НЭ",2086]
["Ямсовейское",1997,null,null,"НГК","НЭ",2039]
["Юбилейное",1992,null,null,"НГК","НЭ",2063]
["Харасавэйское","–",null,null,"ГК","НЭ",2033]
["Бованенковское",2012,null,null,"НГК","НЭ",2042]
["Новопортовское",2016,"ООО «Газпромнефть-Ямал»",1,"НГК","НЭ",2150]
["Комсомольское",1993,"ООО «Газпром добыча Ноябрьск»",1,"НГК","НЭ",2049]
["Еты-Пуровское",2004,null,null,"НГК","НЭ",2038]
["Западно-Таркосалинское",1996,null,null,"НГК","НР",2116]
["Губкинское",1999,"ЗАО «Пургаз»",0.51,"НГК","НЭ",2040]
["Южно-Русское",2007,"ОАО «Севернефтегазпром»","50,001% (обыкновенных акций)","НГК","НЭ",2043]
["Тамбейское (включая Западно-Тамбейский, Северо-Тамбейский, Тасийский лицензионные участки)","–","ПАО «Газпром»",null,"НГК","НЭ",2028]
["Крузенштернское","–",null,null,"ГК","НЭ",2028]
["Малыгинское","–",null,null,"ГК","НЭ",2028]
["Антипаютинское","–",null,null,"Г","НЭ",2028]
["Тота-Яхинское","–",null,null,"Г","НЭ",2028]
["Тазовское","–","ООО «Меретояханефтегаз»",1,"НГК","НР",2025]
["Сугмутское",1995,"АО «Газпромнефть-Ноябрьскнефтегаз»",1,"Н","НЭ",2089]
["Суторминское",1982,null,null,"НГК","НЭ",2110]
["Муравленковское",1982,null,null,"НГ","НЭ",2072]
["Спорышевское",1996,null,null,"Н","НЭ",2083]
["Вынгапуровское (ХМАО — Югра) ",1982,null,null,"НГК","НЭ",2090]
["Вынгапуровское (ЯНАО)",1982,null,null,"НГК","НЭ",2113]
["Южная часть Приобского месторождения",1999,"ООО «Газпромнефть-Хантос»",1,"Н","НЭ",2038]
["Юг России (Южный ФО)"]
["Астраханское",1986,"ООО «Газпром добыча Астрахань»",1,"ГК","НЭ",2222]
["Западно-Астраханское","–",null,null,"ГК","НР",2029]
["Южный Урал (Приволжский ФО)"]
["Оренбургское",1974,"ООО «Газпром добыча Оренбург»",1,"НГК","НЭ",2038]
["Восточный участок Оренбургского НГКМ",1994,"ООО «Газпромнефть-Оренбург»",1,"НГК","НЭ",2138]
["Восточная Сибирь и Дальний Восток (Сибирский и Дальневосточный ФО)"]
["Чаяндинское",2019,"ПАО «Газпром»",null,"НГК","НЭ",2028]
["Ковыктинское (включая Хандинскую площадь)","–",null,null,"ГК","НЭ",2037]
["Тас-Юряхское","–",null,null,"НГК","НЭ",2031]
["Соболох-Неджелинское","–",null,null,"ГК","НЭ",2031]
["Часть Среднетюнгского месторождения","–",null,null,"ГК","НЭ",2031]
["Верхневилючанское","–",null,null,"НГК","НЭ",2031]
["Чиканское","–",null,null,"ГК","НЭ",2028]
["Собинское","–","ООО «Газпром добыча Краснодар»",1,"НГК","НР",2028]
["Континентальный шельф Российской Федерации"]
["Штокмановское (включая западную часть)","–"," ПАО «Газпром»",null,"ГК","НЭ",2043]
["Киринское",2013,null,null,"ГК","НЭ",2028]
["Южно-Киринское","–",null,null,"ГК","НР",2039]
["Южно-Лунское","–",null,null,"ГК","НР",2039]
["Мынгинское","–",null,null,"ГК","НР",2039]
["Ледовое","–",null,null,"ГК","НЭ",2033]
["Русановское","–",null,null,"ГК","НР",2043]
["Лудловское","–",null,null,"Г","НР",2043]
["Ленинградское","–",null,null,"ГК","НР",2043]
["Каменномысское-море","–","ООО «Газпром добыча Ямбург»",1,"Г","НЭ",2057]
["Северо-Каменномысское","–",null,null,"ГК","НЭ",2076]
["Приразломное",2013,"ООО «Газпром нефть шельф»",1,"Н","НЭ",2043]
["Долгинское","–",null,null,"Н","НЭ",2035]
["Организации, инвестиции в которые классифицированы как совместные операции"]
["Западная Сибирь (Уральский ФО)"]
["Западно-Салымское",2004,"Salym Petroleum Development N.V.",0.5,"Н","НЭ",2130]
["Советское (ХМАО — Югра)",1966,"АО «Томскнефть» ВНК",0.5,"Н","НЭ",2145]
["Восточная Сибирь и Дальний Восток (Сибирский и Дальневосточный ФО)"]
["Крапивинское",1984,"АО «Томскнефть» ВНК",0.5,"Н","НЭ",2159]
["Советское (Томская область)",1966,null,null,"Н","НЭ",2145]
["Первомайское (Томская область)",1981,null,null,"Н","НЭ",2105]
["Лугинецкое",1982,null,null,"НГК","НЭ",2098]
["Ассоциированные организации и совместные предприятия"]
["Западная Сибирь (Уральский ФО)"]
["Восточно-Мессояхское ",2016,"АО «Мессояханефтегаз»",0.5,"НГК","НР",2140]
["Западно-Мессояхское","–",null,null,"НГ","НР",2027]
["Северо-Парусовое","–","ООО «РусГазАльянс»*****",0.5,"НГК","НЭ",2027]
["Восточная Сибирь и Дальний Восток (Сибирский и Дальневосточный ФО)"]
["Куюмбинское",2018,"ООО «Славнефть-Красноярскнефтегаз»",0.5,"НГК","НР",2171]
["Пильтун-Астохское ",1999,"Sakhalin Energy Investment Company Ltd.","50% + 1 акция","НГК","НР",2026]
["Лунское",2009,null,null,"НГК","НР",2026]
["* Суммарная доля Группы в уставном капитале объектов вложения, отраженная в консолидированной финансовой отчетности Группы Газпром по МСФО."]
["** Тип в соответствии с действующей в России Классификацией запасов и ресурсов нефти и горючих газов: НГК – нефтегазоконденсатное, НГ – нефтегазовое, \nГК – газоконденсатное, Г – газовое, Н – нефтяное."]
["*** В соответствии с российским законодательством существует несколько типов лицензий для изучения, геологоразведки и добычи природных ресурсов, в т.ч.: лицензии на геологическое изучение (НП); лицензии на разведку и добычу углеводородов (НЭ); лицензии на поиск, разведку и добычу углеводородов (НР). Сокращения приведены в соответствии с классификацией, определенной российским законодательством."]
["**** Держатели лицензий Группы Газпром выполняют основные условия лицензионных соглашений и имеют право на продление действующих лицензий для завершения поиска или разработки месторождений. Газпром планирует продлевать свои лицензии на период до завершения рентабельной разработки месторождений."]
["***** Показатели организации не включены в консолидированную финансовую отчетность по МСФО за 2020 г. в связи с их несущественностью."]
[]
["Вернуться к содержанию"]

{"sheet":"Добыча","index":12,"n_rows":114,"n_cols":17,"rows_kept":114,"cut":false,"hidden":false,"merged":[[22,0,22,16],[0,0,0,16],[1,0,1,16],[2,0,2,16],[3,0,3,7],[4,1,4,16],[12,1,12,16],[21,0,21,16],[19,0,19,16],[9,0,9,16],[18,0,18,16],[11,0,11,16],[23,1,23,16],[30,0,30,16],[31,0,31,16],[32,1,32,16],[34,5,34,9],[28,0,28,16],[55,0,55,16],[58,0,58,16],[59,0,59,16],[60,1,60,16],[54,0,54,16],[56,0,56,16],[110,0,110,16],[111,0,111,16383],[109,0,109,16],[89,0,89,16],[91,0,91,16],[92,0,92,16],[93,1,93,16],[108,0,108,16]]}
["Добыча"]
["Добыча углеводородов Группой Газпром на территории Российской Федерации"]
["(с учетом доли в добыче организаций, инвестиции в которые классифицированы как совместные операции)"]
["Метрические единицы"]
[null,"За год, закончившийся 31 декабря"]
[null,"2005*","2006*","2007*","2008*","2009*","2010*","2011*",2012,2013,2014,2015,2016,2017,2018,2019,2020]
["Природный и попутный газ, млрд м3",555,555.95000000000005,548.54999999999995,549.73,461.52,508.59,513.16999999999996,487.99,488.39,444.9,419.52,420.13,472.05,498.68,501.22,454.51]
["Газовый конденсат, млн т",11.5,11.37,11.27,10.93,10.07,11.29,12.07,12.85,14.66,14.49,15.34,15.85,15.94,15.93,16.71,16.25]
["Нефть, млн т",9.49,34.020000000000003,33.979999999999997,32.049999999999997,31.62,32.01,32.28,42.26,42.41,43.53,44.04,47.15,48.63,48.28,47.96,47.11]
["* Без учета доли Группы Газпром в добыче организаций, инвестиции в которые классифицированы как совместные операции."]
[]
["Нефтяной эквивалент"]
[null,"За год, закончившийся 31 декабря"]
[null,"2005*","2006*","2007*","2008*","2009*","2010*","2011*",2012,2013,2014,2015,2016,2017,2018,2019,2020]
["Природный и попутный газ, млн барр. н. э.",{"$f":"B7*6.49","v":3601.9500000000003},3608.1155000000003,3560.0895,3567.7477000000003,2995.2647999999999,3300.7491,3330.4732999999997,3167.06,3169.65,2887.4,2722.68,2726.64,3063.6,3236.43,3252.92,2949.77]
["Газовый конденсат, млн барр. н. э.",94.07,93.01,92.19,89.41,82.37,92.35,98.73,105.11,119.92,118.53,125.48,129.65,130.38999999999999,130.31,136.69,132.93]
["Нефть, млн барр. н. э.",69.56,249.37,249.07,234.93,231.77,234.63,236.61,309.77,310.87,319.07,322.81,345.61,356.46,353.89,351.55,345.32]
["Всего, млн барр. н. э.",{"$f":"B15+B16+B17","v":3765.5800000000004},3950.4955000000004,3901.3495000000003,3892.0877,3309.4047999999998,3627.7291,3665.8132999999998,3581.94,3600.44,3325,3170.97,3201.91,3550.45,3720.63,3741.16,3428.02]
["* Без учета доли Группы Газпром в добыче организаций, инвестиции в которые классифицированы как совместные операции."]
["Примечание. Группа Газпром осуществляет управленческий учет запасов и добычи углеводородов в метрических единицах измерения. В настоящем Справочнике пересчет объемов добычи газа из метрической системы в баррели нефтяного эквивалента выполнен исходя из соотношения 1 тыс. м3 природного газа = 6,49 барр. н. э."]
[]
["Среднесуточная добыча углеводородов Группой Газпром на территории Российской Федерации"]
[" (с учетом доли в добыче организаций, инвестиции в которые классифицированы как совместные операции)"]
[null,"За год, закончившийся 31 декабря"]
[null,"2005*","2006*","2007*","2008*","2009*","2010*","2011*",2012,2013,2014,2015,2016,2017,2018,2019,2020]
["Природный и попутный газ, млн м3 / сут.",1520.55,1523.15,1502.88,1501.99,1264.4000000000001,1393.4,1405.9,1333.3,1338,1218.9000000000001,1149.4000000000001,1147.9000000000001,1293.3,1366.2,1373.2,1241.8]
["Газовый конденсат, тыс. т / сут.",31.51,31.15,30.88,29.86,27.6,30.9,33.1,35.1,40.200000000000003,39.700000000000003,42,43.3,43.7,43.7,45.8,44.4]
["Нефть, тыс. т / сут.",26,93.21,93.1,87.57,86.6,87.7,88.4,115.5,116.2,119.3,120.7,128.80000000000001,133.19999999999999,132.30000000000001,131.4,128.69999999999999]
["* Без учета доли Группы Газпром в добыче организаций, инвестиции в которые классифицированы как совместные операции."]
[]
["Добыча углеводородов Группой Газпром на территории Российской Федерации"]
["(с учетом доли в добыче организаций, инвестиции в которые классифицированы как совместные операции)"]
[null,"За год, закончившийся 31 декабря"]
[null,"2005*","2006*","2007*","2008*","2009*","2010*","2011*",2012,2013,2014,2015,2016,2017,2018,2019,2020]
["Природный и попутный газ, млрд м3"]
["ПАО «Газпром» и его основные \nдочерние общества**,***",539.35,538.84,530.51,517.63,425.02,465.14,464.81,437.9,436.29,393.73,368.2,368.6,419.72,444.99,445.09,399.15]
["ПАО «Газпром нефть» и его дочерние общества",0.55000000000000004,2.0699999999999998,1.77,2.16,2.08,2.95,7.33,8.73,11.36,11.86,12.53,13.64,15.4,17.84,21.26,22.39]
["Объекты месторождений ПАО «Газпром» и его основных дочерних обществ, разрабатываемые ООО «Газпромнефть-Заполярье»","x","x","x","x","x","x","x","x","x","x","x","x","x","x","x",0.19]
["ЗАО «Пургаз»",15.1,15.04,15.02,14.87,11.84,15.14,15.37,15.04,14.62,13.25,12.7,11.74,10.82,9.64,8.7200000000000006,7.81]
["ОАО «Севернефтегазпром»","–","–",1.25,15.07,22.58,25.36,25.66,25.35,25.12,25.04,25.05,25.12,25.04,25.13,25.07,24]
["Всего без учета доли в добыче организаций, инвестиции в которые классифицированы как совместные операции",555,555.95000000000005,548.54999999999995,549.73,461.52,508.59,513.16999999999996,487.02,487.39,443.88,418.48,419.1,470.98,497.6,500.14,453.54]
["Организации, инвестиции в которые классифицированы как совместные операции в доле, приходящейся на Группу Газпром","x","x","x","x","x","x","x",0.97,1,1.02,1.04,1.03,1.07,1.08,1.08,0.97]
["Всего с учетом доли в добыче организаций, инвестиции в которые классифицированы как совместные операции","x","x","x","x","x","x","x",487.99,488.39,444.9,419.52,420.13,472.05,498.68,501.22,454.51]
["Газовый конденсат, млн т"]
["ПАО «Газпром» и его основные \nдочерние общества**",11.5,11.37,11.27,10.93,10.07,11.29,12.07,12.84,14.65,14.47,15.31,15.83,15.92,15.9,16.670000000000002,16.21]
["ПАО «Газпром нефть» и его дочерние общества","–","–","–","–","–","–","–",0.01,0.01,0.02,0.03,0.02,0.02,0.03,0.04,0.04]
["Всего",11.5,11.37,11.27,10.93,10.07,11.29,12.07,12.85,14.66,14.49,15.34,15.85,15.94,15.93,16.71,16.25]
["Нефть, млн т"]
["ПАО «Газпром» и его основные \nдочерние общества**,***",1.29,1.3,1.32,1.27,1.55,1.85,1.9,1.7,1.69,1.73,1.74,1.55,1.5,1.45,1.67,1.26]
["ПАО «Газпром нефть» и его дочерние общества",8.1999999999999993,32.72,32.659999999999997,30.78,30.07,30.16,30.38,31.63,32.15,33.56,34.299999999999997,37.74,39.479999999999997,39.46,39.11,38.880000000000003]
["Объекты месторождений ПАО «Газпром» и его основных дочерних обществ, разрабатываемые ООО «Газпромнефть-Заполярье»","x","x","x","x","x","x","x","x","x","x","x","x","x","x","x",1.47]
["Всего без учета доли в добыче организаций, инвестиции в которые классифицированы как совместные операции",9.49,34.019999999999996,33.979999999999997,32.050000000000004,31.62,32.01,32.28,33.33,33.840000000000003,35.29,36.04,39.29,40.98,40.909999999999997,40.78,41.61]
["Организации, инвестиции в которые классифицированы как совместные операции в доле, приходящейся на Группу Газпром","x","x","x","x","x","x","x",8.93,8.57,8.24,8,7.86,7.65,7.37,7.18,5.5]
["Всего с учетом доли в добыче организаций, инвестиции в которые классифицированы как совместные операции","x","x","x","x","x","x","x",42.26,42.41,43.53,44.04,47.15,48.63,48.28,47.96,47.11]
["* Без учета доли Группы Газпром в добыче организаций, инвестиции в которые классифицированы как совместные операции."]
["** С учетом объемов добычи ООО «Газпром добыча шельф Южно-Сахалинск», АО «Газпром добыча Томск». Также учтены объемы добычи АО «Газпром газораспределение Элиста», ООО «Газпром добыча Иркутск» и \nООО «Сервиснефтегаз», финансовые показатели которых в связи с их несущественностью не включаются в консолидированную финансовую отчетность Группы Газпром по МСФО."]
["*** Начиная с 2020 г. данные приводятся без учета объемов добычи по объектам месторождений, лицензии на право пользования которыми принадлежат ПАО «Газпром» или его основным дочерним обществам, а разработка осуществляется ООО «Газпромнефть-Заполярье» в соответствии с условиями заключенных в 2018–2020 гг. долгосрочных рисковых операторских договоров."]
[]
["Распределение добычи углеводородов Группы Газпром на территории Российской Федерации"]
["(c учетом доли в добыче организаций, инвестиции в которые классифицированы как совместные операции)"]
[null,"За год, закончившийся 31 декабря"]
[null,"2005*","2006*","2007*","2008*","2009*","2010*","2011*",2012,2013,2014,2015,2016,2017,2018,2019,2020]
["Природный и попутный газ, млрд м3"]
["Уральский ФО",516.39,517.88,510.57,512.16999999999996,427.44,471.68,476.53,450.96,452.34,409.96,385.18,385.46,437.56,464.36,465.76,416.51]
["Северо-Западный ФО",2.82,2.75,2.75,2.64,2.54,2.52,2.4,2.33,2.38,2.25,2.14,2.06,2.02,1.89,1.99,1.99]
["Южный и Северо-Кавказский ФО",13.55,13.36,13.37,13.23,10.76,13.01,13.21,12.89,11.86,11.24,11.15,11.28,11.58,11.94,12.22,11.2]
["Приволжский ФО",18.72,18.64,18.7,18.71,17.850000000000001,18.59,17.940000000000001,17.52,17.27,16.73,16.22,15.65,14.95,14.4,14.42,14.31]
["Сибирский ФО",3.5199999999999818,3.32000000000005,3.1599999999999682,2.9800000000000182,2.93,2.79,3.09,4.29,4.43,4.2300000000000004,3.82,4.55,4.88,4.91,4.8600000000000003,4.87]
["Дальневосточный ФО","–","–","–","–","–","–","–","–",0.2,0.39,0.4,0.41,0.43,0.45,1.21,4.79]
["Континентальный шельф Российской Федерации","–","–","–","–","–","–","–","–",0.01,0.1,0.61,0.72,0.63,0.73,0.76,0.84]
["Всего",555,555.95000000000005,548.54999999999995,549.73,461.52000000000004,508.59,513.16999999999996,487.99,488.39,444.9,419.52,420.13,472.05,498.68,501.22,454.51]
["Газовый конденсат, млн т"]
["Уральский ФО",6.38,6.29,6.22,5.95,6.04,6.34,7.1,8.0399999999999991,10.18,10.3,11.14,11.59,11.51,11.38,12.1,11.88]
["Северо-Западный ФО",0.25,0.23,0.21,0.19,0.17,0.15,0.14000000000000001,0.13,0.14000000000000001,0.13,0.12,0.12,0.12,0.12,0.11,0.11]
["Южный и Северо-Кавказский ФО",4.24,4.25,4.2699999999999996,4.26,3.35,4.1399999999999997,4.22,4.13,3.78,3.56,3.51,3.56,3.68,3.81,3.9,3.61]
["Приволжский ФО",0.27,0.27,0.28000000000000003,0.27,0.26,0.27,0.25,0.22,0.19,0.16,0.15,0.14000000000000001,0.12,0.12,0.13,0.13]
["Сибирский ФО",0.35999999999999943,0.33000000000000007,0.28999999999999915,0.25999999999999979,0.25,0.39,0.36,0.33,0.37,0.31,0.31,0.31,0.39,0.37,0.32,0.3]
["Дальневосточный ФО","–","–","–","–","–","–","–","–",0,0.01,0.01,0.01,0.01,0.02,0.02,0.08]
["Континентальный шельф Российской Федерации","–","–","–","–","–","–","–","–","–",0.02,0.1,0.12,0.11,0.11,0.13,0.14000000000000001]
["Всего",11.5,11.37,11.269999999999998,10.93,10.07,11.29,12.07,12.85,14.66,14.49,15.34,15.85,15.94,15.93,16.71,16.25]
["Нефть, млн т"]
["Уральский ФО",8.43,31.92,31.74,29.6,28.91,28.73,28.66,32.950000000000003,32.700000000000003,32.83,32.39,34.450000000000003,35.71,36.82,36.340000000000003,36.200000000000003]
["Северо-Западный ФО",0.09,7.0000000000000007E-2,0.08,7.0000000000000007E-2,0.06,0.06,0.05,0.04,0.05,0.03,0.04,0.03,0.02,0.02,0.02,0.02]
["Южный и Северо-Кавказский ФО",0.12,0.11,0.08,0.08,0.12,0.16,0.16,0.16,0.14000000000000001,0.11,0.09,0.09,0.09,0.08,0.12,0.11]
["Приволжский ФО",0.56000000000000005,0.6,0.64,0.68,0.7,0.69,0.75,1.23,1.77,2.46,2.76,2.85,2.85,2.79,3.1,3.16]
["Сибирский ФО",0.29000000000000092,1.3200000000000003,1.4400000000000048,1.6199999999999974,1.8300000000000018,2.37,2.66,7.88,7.75,7.84,7.87,7.58,7.32,5.38,5.24,4.16]
["Дальневосточный ФО","–","–","–","–","–","–","–","–","–","–",0,"–",0,0,0,0.19]
["Континентальный шельф Российской Федерации","–","–","–","–","–","–","–","–","–",0.26,0.89,2.15,2.64,3.19,3.14,3.27]
["Всего",9.49,34.020000000000003,33.979999999999997,32.049999999999997,31.62,32.01,32.28,42.26,42.41,43.53,44.04,47.15,48.63,48.28,47.96,47.11]
["* Без учета доли Группы Газпром в добыче организаций, инвестиции в которые классифицированы как совместные операции."]
[]
["Полезное использование ПНГ Группой Газпром на территории Российской Федерации"]
["(c учетом доли в добыче организаций, инвестиции в которые классифицированы как совместные операции)"]
[null,"За год, закончившийся 31 декабря"]
[null,null,"2006*","2007*","2008*","2009*","2010*","2011*","2012*",2013,2014,2015,2016,2017,2018,2019,2020]
["Использование ПНГ, млрд м3"]
["ПАО «Газпром» и его основные \nдочерние общества**,***",null,1.73,1.69,1.62,1.68,1.83,2.0499999999999998,1.48,1.27,1.42,1.87,1.79,1.64,1.57,1.66,1.59]
["ПАО «Газпром нефть» и его дочерние общества",null,2.04,1.75,2.14,2.06,2.4500000000000002,2.66,4.18,5.39,6.13,6.51,7.63,8.7100000000000009,11.29,14.81,16.3]
["Объекты месторождений ПАО «Газпром» и его основных дочерних обществ, разрабатываемые ООО «Газпромнефть-Заполярье»",null,"x","x","x","x","x","x","x","x","x","x","x","x","x","x",0.17]
["Всего без учета доли в добыче организаций, инвестиции в которые классифицированы как совместные операции",null,3.77,3.44,3.76,3.74,4.28,4.71,5.66,6.66,7.55,8.3800000000000008,9.42,10.35,12.86,16.47,18.059999999999999]
["Организации, инвестиции в которые классифицированы как совместные операции в доле, приходящейся на Группу Газпром",null,null,null,null,null,null,null,null,0.99,1.02,1.05,1.03,1.07,1.08,1.08,0.97]
["Всего с учетом доли в добыче организаций, инвестиции в которые классифицированы как совместные операции",null,null,null,null,null,null,null,null,7.65,8.58,9.43,10.45,11.42,13.94,17.55,19.03]
["Уровень полезного использования ПНГ, %"]
["ПАО «Газпром» и его основные \nдочерние общества**",null,81.2,82.8,83.3,81.8,81.599999999999994,87,83.2,90.9,93.5,95.6,97.8,98.4,98.1,98.5,98.2]
["ПАО «Газпром нефть» и его дочерние общества****",null,45,35.700000000000003,46.8,48.1,55.3,58.8,65.7,79.5,80.5,79.599999999999994,79.2,76.2,78.400000000000006,89,91.1]
["Всего без учета доли в добыче организаций, инвестиции в которые классифицированы как совместные операции",null,56.6,49.7,57.7,59.1,64.099999999999994,68.400000000000006,69.2,81.400000000000006,82.7,82.7,82.2,79,80.3,89.9,91.6]
["Организации, инвестиции в которые классифицированы как совместные операции в доле, приходящейся на Группу Газпром",null,null,null,null,null,null,null,null,87.3,90,89.9,87.2,88.9,91.6,91.8,95.2]
["Всего с учетом доли в добыче организаций, инвестиции в которые классифицированы как совместные операции",null,null,null,null,null,null,null,null,82.2,83.5,83.5,82.7,79.8,81.8,90.1,92]
["* Без учета доли Группы Газпром добыче организаций, инвестиции в которые классифицированы как совместные операции."]
["** С учетом объема добычи АО «Газпром добыча Томск». Также учтен объем добычи ООО «Сервиснефтегаз», финансовые показатели которого в связи с их несущественностью не включаются в консолидированную финансовую отчетность Группы Газпром по МСФО."]
["*** Начиная с 2020 г., приводится без учета объемов добычи по объектам месторождений, лицензии на право пользования которыми принадлежат ПАО «Газпром» или его основным дочерним обществам, а разработка осуществляется ООО «Газпромнефть-Заполярье» в соответствии с условиями заключенных в 2018–2020 гг. долгосрочных рисковых операторских договоров."]
["**** С учетом объемов добычи по объектам месторождений, лицензии на право пользования которыми принадлежат ПАО «Газпром» или его основным дочерним обществам, а разработка осуществляется ООО «Газпромнефть-Заполярье» в соответствии с условиями заключенных в 2018–2020 гг. долгосрочных рисковых операторских договоров."]
[]
["Вернуться к содержанию"]

{"sheet":"Макс. суточная добыча газа","index":13,"n_rows":10,"n_cols":6,"rows_kept":10,"cut":false,"hidden":false,"merged":[[0,0,0,5],[1,0,1,5],[2,1,2,5],[7,0,7,5]]}
["Фактическая максимальная суточная добыча природного и попутного газа в осенне-зимний период"]
["(без учета доли в добыче организаций, инвестиции в которые классифицированы как совместные операции)"]
[null,"Осенне-зимний период"]
[null,"2015/2016","2016/2017","2017/2018","2018/2019","2019/2020"]
["Дата","2015-10-22","2016-12-02","2018-02-23","2019-01-19","2019-12-28"]
["Объем добычи, млн м3",1555.7,1535.6,1512.6,1538.6,1514.1]
["в т. ч. в зоне ЕСГ*",1554.1,1528.8,1505.9,1531.3,1496.8]
["* Объемы максимальной суточной добычи в зоне Единой системы газоснабжения (ЕСГ) в осенне-зимний период 2019/2020 г. приведены с учетом объемов ООО «Газпромнефть-Ямал». В целях обеспечения сопоставимости данных объемы добычи в предшествующие периоды пересчитаны."]
[]
["Вернуться к содержанию"]

{"sheet":"Добыча ассоц. и СП","index":14,"n_rows":20,"n_cols":15,"rows_kept":20,"cut":false,"hidden":false,"merged":[[16,0,16,14],[17,0,17,14],[2,1,2,14],[10,1,10,14],[0,0,0,14],[7,0,7,14],[9,0,9,14]]}
["Добыча углеводородов ассоциированными организациями и совместными предприятиями на территории России в доле, приходящейся на Группу Газпром "]
["Метрические единицы"]
[null,"За год, закончившийся 31 декабря"]
[null,"2007*","2008*","2009*","2010*","2011*",2012,2013,2014,2015,2016,2017,2018,2019,2020]
["Природный и попутный газ, млрд м3",8.5299999999999994,10.99,13.58,17.63,11.3302,11.88,13.04,18.18,25.55,27.21,27.04,26.92,26.86,28.36]
["Газовый конденсат, млн т",0.73,0.73,1.21,1.59,0.99,1.1299999999999999,1.26,2.3199999999999998,4.7,5.17,4.96,4.87,4.74,5.07]
["Нефть, млн т ",11.33,16.260000000000002,19.170000000000002,20.74,20.52,10.82,10.25,9.9600000000000009,9.59,9.93,10.91,11.22,11.77,9.43]
["* Включая долю Группы Газпром в добыче компаний, инвестиции в которые классифицированы как совместные операции."]
[]
["Нефтяной эквивалент"]
[null,"За год, закончившийся 31 декабря"]
[null,"2007*","2008*","2009*","2010*","2011*",2012,2013,2014,2015,2016,2017,2018,2019,2020]
["Природный и попутный газ, млн барр. н. э.",{"$f":"ROUND(B5*6.49,2)","v":55.36},71.33,88.13,114.42,73.53,77.099999999999994,84.63,117.99,165.82,176.59,175.49,174.71,174.32,184.06]
["Газовый конденсат, млн барр. н. э.",{"$f":"ROUND(B6*8.18,2)","v":5.97},5.97,9.9,13.01,8.1,9.24,10.31,18.98,38.450000000000003,42.29,40.57,39.840000000000003,38.770000000000003,41.47]
["Нефть, млн барр. н. э.",{"$f":"ROUND(B7*7.33,2)","v":83.05},119.19,140.52000000000001,152.02000000000001,150.41,79.31,75.13,73.010000000000005,70.290000000000006,72.790000000000006,79.97,82.24,86.27,69.12]
["Всего, млн барр. н. э.",{"$f":"B13+B14+B15","v":144.38},196.49,238.55,279.45000000000005,232.04,165.64999999999998,170.07,209.98000000000002,274.56,291.67,296.02999999999997,296.79000000000002,299.36,294.64999999999998]
["* Включая долю Группы Газпром в добыче организаций, инвестиции в которые классифицированы как совместные операции."]
["Примечание. Группа Газпром осуществляет управленческий учет запасов и добычи углеводородов в метрических единицах измерения. В настоящем Справочнике пересчет объемов добычи газа из метрической системы в баррели нефтяного эквивалента выполнен исходя из соотношения 1 тыс. м3 природного газа = 6,49 барр. н. э. "]
[]
["Вернуться к содержанию"]

{"sheet":"ГРР и бурение в России","index":15,"n_rows":65,"n_cols":17,"rows_kept":65,"cut":false,"hidden":false,"merged":[[43,0,43,16],[0,0,0,16],[1,0,1,16],[2,0,2,11],[3,1,3,16],[13,0,13,16],[14,1,14,16],[22,0,22,16],[23,0,23,11],[24,1,24,16],[37,0,37,16],[38,1,38,16],[44,0,44,11],[45,1,45,16],[53,0,53,16],[55,0,55,16],[56,1,56,16]]}
["Геологоразведка, эксплуатационное бурение и промысловые мощности"]
["Основные показатели ГРР Группы Газпром на углеводороды "]
["(без учета организаций, инвестиции в которые классифицированы как совместные операции)"]
[null,"За год, закончившийся 31 декабря"]
[null,2005,2006,2007,2008,2009,2010,2011,2012,2013,2014,2015,2016,2017,2018,2019,2020]
["Разведочное бурение, тыс. м",136.30000000000001,177.7,207.6,284.89999999999998,163.69999999999999,204.9,157.69999999999999,126.4,146.4,165.4,143.6,111.6,85.9,157.6,201.7,162]
["Законченные строительством поисково-разведочные скважины, ед.",44,62,39,80,75,82,60,54,53,41,43,40,36,25,41,34]
["в т.ч. продуктивные",35,50,20,50,43,64,45,46,37,31,38,34,31,20,39,27]
["Сейсморазведка 2D, тыс. пог. км",9.8000000000000007,9.1999999999999993,6.4,12.4,14.7,18.5,2.8,1.9,1.4,6.6,0.3,1.1000000000000001,"–",5.7,15,"–"]
["Сейсморазведка 3D, тыс. км2",3.2,7.9,5.7,6.6,9.5,10.8,8.6999999999999993,8.4,13.3,12.6,20,20.6,18.7,9.5,7.9,5.9]
["Прирост запасов углеводородов, млн барр. н. э.",3706.2,3961.4,3712.7,3889.2,3498,4100,4978.8,3955.5,4183.5,5942.2,3835.1,3404,6341.5,5440.6,3906.6,"3 358,4"]
["Эффективность бурения, тыс. барр. н. э. / м",27.1,22.1,17.899999999999999,13.7,21.4,20,31.2,31.3,28.6,35.9,26.7,30.5,73.8,34.5,19.399999999999999,20.7]
[]
["Основные показатели ГРР на углеводороды организаций, инвестиции в которые классифицированы как совместные операции "]
[null,"За год, закончившийся 31 декабря"]
[null,2005,2006,2007,2008,2009,2010,2011,2012,2013,2014,2015,2016,2017,2018,2019,2020]
["Разведочное бурение, тыс. м","x","x","x","x","x","x","x",14,11.6,13.1,3.2,7.4,12.8,28.7,21,8.1]
["Законченные строительством поисково-разведочные скважины, ед.","x","x","x","x","x","x","x",5,5,4,1,2,4,8,7,3]
["в т.ч. продуктивные","x","x","x","x","x","x","x",4,3,3,1,1,4,5,3,"–"]
["Сейсморазведка 2D, пог. км","x","x","x","x","x","x","x",481,"–","–","–","−","–","–","–","–"]
["Сейсморазведка 3D, км2","x","x","x","x","x","x","x",1085,858,494,459,130,200,474,350,652]
[]
["Эксплуатационное бурение Группы Газпром"]
["(без учета организаций, инвестиции в которые классифицированы как совместные операции)"]
[null,"За год, закончившийся 31 декабря"]
[null,2005,2006,2007,2008,2009,2010,2011,2012,2013,2014,2015,2016,2017,2018,2019,2020]
["Эксплуатационные скважины, законченные строительством, ед."]
["на газ",248,156,204,143,151,118,223,212,93,38,73,64,116,114,176,151]
["на нефть",15,441,546,629,702,775,719,724,788,832,802,725,660,545,623,762]
["на ПХГ",36,41,45,8,14,16,17,17,43,22,27,13,4,9,15,8]
["Всего",299,638,795,780,867,909,959,953,924,892,902,802,780,668,814,921]
["Объем проходки в эксплуатационном бурении, \nтыс. м"]
["на газ",327.39999999999998,267.10000000000002,314,375.7,358.2,441.5,476.8,367.7,239.7,125.6,153.19999999999999,227.2,240.8,304.39999999999998,400.8,514.20000000000005]
["на нефть",38.200000000000003,1468.9,1740.7,2080.6,2286.6999999999998,2602.1999999999998,2288.1,2566.6,3002.1,2948.5,3163,2735.8,"2 559,5",2202.6,2811.7,3275.5]
["на ПХГ",31.6,30.1,37.799999999999997,17.600000000000001,11.9,20.3,22.9,24.2,36.700000000000003,27.6,47.5,23.7,13.6,19.399999999999999,14.2,3.7]
["Всего",397.2,1766.1,2092.5,2473.9,2656.8,3064,2787.8,2958.5,3278.5,3101.7,3363.7,"2 986,7","2 813,9",2526.4,3226.7,3793.4]
[]
["Эксплуатационное бурение организаций, инвестиции в которые классифицированы как совместные операции "]
[null,"За год, закончившийся 31 декабря"]
[null,2005,2006,2007,2008,2009,2010,2011,2012,2013,2014,2015,2016,2017,2018,2019,2020]
["Эксплуатационные скважины на нефть, законченные строительством, ед.","x","x","x","x","x","x","x",243,211,188,206,231,236,208,206,115]
["Объем проходки в эксплуатационном бурении на нефть, тыс. м","x","x","x","x","x","x","x",827,697,694,789,785,784,749,744,407]
[]
["Производственные мощности Группы Газпром в добыче углеводородов"]
["(без учета организаций, инвестиции в которые классифицированы как совместные операции)"]
[null,"По состоянию на 31 декабря"]
[null,2005,2006,2007,2008,2009,2010,2011,2012,2013,2014,2015,2016,2017,2018,2019,2020]
["Месторождения в разработке*, ед.",114,119,122,122,121,120,124]
["Месторождения в промышленной разработке*, ед.",null,null,null,null,null,null,null,118,122,126,135,136,136,138,144,147]
["Газовые эксплуатационные скважины, ед.",6941,7010,7154,7214,7310,7403,7504,7717,7744,7816,7881,7916,7945,7976,8061,8139]
["в т.ч. действующие",6401,6513,6640,6723,6775,6806,6988,7226,7263,7293,7358,7441,"7 438",7418,7438,7494]
["Нефтяные эксплуатационные скважины, ед.",5018,5486,5881,5932,6158,6464,6647,7296,7868,8218,9058,9316,7944,9106,"8 393",9189]
["в т.ч. действующие",4372,4948,5342,5444,5663,5941,6151,6738,7246,7604,8461,8681,"7 358",8489,7752,8519]
["* За 2005–2011 гг. данные приведены с учетом месторождений, находящихся в опытно-промышленной эксплуатации (ОПЭ). С 2012 г. показано количество месторождений, находящихся в промышленной разработке \n(без ОПЭ)."]
[]
["Производственные мощности в добыче углеводородов организаций, инвестиции в которые классифицированы как совместные операции"]
[null,"По состоянию на 31 декабря"]
[null,2005,2006,2007,2008,2009,2010,2011,2012,2013,2014,2015,2016,2017,2018,2019,2020]
["Месторождения в промышленной разработке, ед.","x","x","x","x","x","x","x",34,35,39,41,42,41,38,39,39]
["Газовые эксплуатационные скважины, ед.","x","x","x","x","x","x","x",9,9,8,7,7,7,4,4,4]
["в т.ч. действующие","x","x","x","x","x","x","x",2,"–",1,3,3,1,4,4,3]
["Нефтяные эксплуатационные скважины, ед.","x","x","x","x","x","x","x",3439,3590,3635,3768,3733,3810,3866,3819,3781]
["в т.ч. действующие","x","x","x","x","x","x","x",2927,3017,3086,3163,3379,3472,3534,3516,2610]
[]
["Вернуться к содержанию"]

{"sheet":"Месторождения Группы","index":16,"n_rows":60,"n_cols":5,"rows_kept":60,"cut":false,"hidden":false,"merged":[[57,0,57,4],[35,0,35,4],[0,0,0,4],[1,0,1,4],[32,0,32,4],[3,0,3,1],[26,0,27,0],[13,1,15,1],[5,1,9,1],[26,1,29,1],[45,1,46,1],[38,1,40,1],[56,0,56,4],[33,0,33,4],[43,3,43,4]]}
["Перспективные месторождения"]
["Разрабатываемые месторождения Группы Газпром"]
["Наименование месторождения","Описание","Годовая проектная мощность","Год ввода \nв эксплуатацию","Год выхода на проектную мощность"]
["Надым-Пур-Тазовский регион (Западная Сибирь)"]
["Ныдинский участок \nМедвежьего месторождения","Расположен в Пуровском районе ЯНАО на площади Медвежьего месторождения. ","2,2 млрд м3 газа","2011 г.","2022–2024 гг."]
["Уренгойское \n(ачимовские залежи):","Залежи расположены в Пуровском районе ЯНАО. Для поэтапного освоения залежи разделены на несколько участков."]
["Участок 1",null,"9,6 млрд м3 газа и \n2,95 млн т нестабильного конденсата","2008 г.","2020–2023 гг."]
["Участок 2",null,"12,33 млрд м3 газа и \n3,36 млн т нестабильного конденсата","2009 г.","2021–2024 гг."]
["Участок 3*",null,"5 млрд м3 газа и 0,98 млн т нестабильного конденсата","2023 г.","2024 г."]
["Участки 4−5",null,"15,5 млрд м3 газа","2020 г.","2027–2030 гг."]
["Нефтяные оторочки Ен-Яхинского и Песцового месторождений, нефтяные залежи Западно-Таркосалинского месторождения* ","Расположены в Пуровском районе ЯНАО.","2,5 млн т жидких\nуглеводородов и\n4 млрд м3 газа ","2021 г.","2022–2023 гг."]
["Ачимовские нефтяные залежи Ямбургского месторождения*","Расположены в Тазовском и Надымском районах ЯНАО.","8 млн т нефти,\n2,8 млрд м3 газа","2027 г.","2028 г."]
["Полуостров Ямал и прилегающие акватории"]
["Бованенковское ","\n\n\n\nСамое крупное по разведанным запасам месторождение полуострова Ямал, расположенное в его центральной части и наиболее изученное."]
["сеноман-аптские залежи",null,"115 млрд м3 газа ","2012 г.","2022 г.\n(завершение ввода скважин для обеспечения выхода на проектную производительность)"]
["неоком-юрские залежи*",null,"20 млрд м3 газа и \n2,3 млн т жидких углеводородов","2025 г.","2031 г."]
["Новопортовское","Расположено в юго-восточной части полуострова Ямал. ","7,7 млн т жидких углеводородов","2016 г.","2020 г."]
["ХМАО — Югра"]
["Месторождение им. Александра Жагрина","Расположено в Кондинском районе \nХМАО —Югры.","6,2 млн т нефти","2020 г.","2024 г."]
["Поволжье"]
["Астраханское","Расположено в дельте р. Волга. Способно обеспечить годовой уровень добычи в \n50−60 млрд м3. Добыча сдерживается на уровне 12 млрд м3 в год в основном экологическими ограничениями, а также необходимостью использования дорогостоящих технологий.",null,"1986 г."]
["Волго-Уральский регион"]
["Восточный участок Оренбургского НГКМ","Расположен в 10-20 км от г. Оренбурга в регионе с развитой инфраструктурой вблизи от рынков сбыта.","3,3 млн т нефти","1994 г.","2029 г."]
["Континентальный шельф Арктической зоны Российской Федерации"]
["Приразломное","Расположено на континентальном шельфе Российской Федерации в Печорском море в \n55 км от поселка Варандей, в 240 км от речного порта Нарьян-Мар (р. Печора) и в 980 км от морского порта Мурманск. Глубина моря в пределах площади месторождения не превышает\n17–20 м.","3,9 млн т нефти ","2013 г.","2024 г."]
["Восточная Сибирь и Дальний Восток"]
["Чаяндинское","Расположено в Ленском районе Республики Саха (Якутия). "]
[]
["газовые залежи",null,"25 млрд м3 газа","2019 г.","2024 г."]
["нефтяная оторочка ботуобинской залежи*",null,"1,9 млн т нефти","2014 г.\n(ввод в опытно-промышленную эксплуатацию)","2022 г."]
["Континентальный шельф Российской Федерации в Охотском море"]
["Киринское","Расположено на континентальном шельфе Российской Федерации в Охотском море северо-восточнее о. Сахалин. \nРазработка месторождения является составной частью проекта «Сахалин-3».","5,5 млрд м3 газа","2014 г.","2023–2024 гг."]
["* Оператором является ООО «Газпромнефть-Заполярье» в рамках долгосрочных рисковых операторских договоров с ПАО «Газпром» \nи его газодобывающими дочерними обществами."]
["Примечание. Информация приведена по состоянию на 31 декабря 2020 г. Сроки по вводу объектов в эксплуатацию и выходу на проектную производительность могут меняться в зависимости от ситуации на рынке энергоносителей."]
[]
["Разведываемые месторождения и перспективные лицензионные участки Группы Газпром"]
["Наименование месторождения \n(лицензионного участка)","Описание","Годовая проектная мощность","Год ввода \nв эксплуатацию","Год выхода на проектную мощность"]
["Полуостров Ямал и прилегающие акватории"]
["Харасавэйское ","\nВводится в разработку после выхода на проектную производительность Бованенковского месторождения."]
["сеноман-аптские залежи",null,"32 млрд м3 газа","2023–2024 гг. ","2025–2026 гг."]
["неоком-юрские залежи*",null,"24,5 млрд м3 газа и \n1,9 млн т жидких углеводородов","2026 г.","2029 г."]
["Крузенштернское","Входит в Бованенковскую группу \nместорождений.","33 млрд м3 газа","2028 г.","2032–2033 гг."]
["Континентальный шельф \nАрктической зоны \nРоссийской Федерации"]
["Штокмановское","Расположено в центральной части Баренцева моря к северо-западу от архипелага Новая Земля и в 650 км к северо-востоку от г. Мурманска.","71,7 млрд м3 газа c возможностью увеличения до 95 млрд м3 газа","Завершена корректировка Обоснования инвестиций в комплексное освоение Штокмановского ГКМ. По результатам экспертизы принято решение о выполнении дальнейших исследований, направленных на оптимизацию затрат по проекту.\nВ соответствии с Дополнением № 2 к лицензии на пользование недрами ввод месторождения в разработку должен быть осуществлен не позднее 31 декабря 2035 г."]
["Обская и Тазовская губы "]
["Каменномысское-море","Месторождения расположены в средней части акватории Обской губы в ЯНАО и определены первоочередными объектами освоения месторождений акватории Обской и Тазовской губ.","15,1 млрд м3 газа","2027 г.","2029 г."]
["Северо-Каменномысское",null,"14,5 млрд м3 газа ","2029 г.","2031 г."]
["Надым-Пур-Тазовский регион (Западная Сибирь)"]
["Тазовское ","Расположено в Тазовском районе ЯНАО. ","2 млн т нефти и\n8 млрд м3 газа","2021 г.","2023 г."]
["Меретояхинское","Расположено  в Надымском районе ЯНАО, в \n135 км на юго-восток от г. Надыма.","2,1 млн т нефти","2028 г.","2030 г."]
["Западно-Юбилейное","Расположено в Надымском районе ЯНАО, в \n100 км северо-западнее г. Надыма.","21 млрд м3 газа и 5 млн т нефти","2026 г.","2027 г."]
["Восточная Сибирь и Дальний Восток"]
["Ковыктинское","Расположено в Жигаловском и Казачинско-Ленском районах Иркутской области."," 27,2 млрд м3 газа","2022 г.","2026 г."]
["Чонская группа месторождений\n(Игнялинское, Вакунайское, Северо-Вакунайское, Тымпучиканское и Верхнечонское)","Месторождения расположены в Катангском районе Иркутской области и Ленском районе Республики Саха (Якутия), в 120–140 км восточнее районного центра с. Ербогачен. ","6,2 млн т нефти","2028 г.","2034 г."]
["Континентальный шельф Российской Федерации в Охотском море"]
["Южно-Киринское","Расположено на континентальном шельфе Российской Федерации в Охотском море северо-восточнее о. Сахалин. Разработка месторождения является составной частью проекта «Сахалин-3».","21 млрд м3 газа","2023–2025 гг.","2029–2033 гг."]
["*Оператором является ООО «Газпромнефть-Заполярье» в рамках долгосрочного рискового операторского договора с ООО «Газпром добыча Надым»."]
["Примечание. Информация приведена по состоянию на 31 декабря 2020 г. Сроки по вводу объектов в эксплуатацию и выходу на проектную производительность могут меняться в зависимости от ситуации на рынке энергоносителей."]
[]
["Вернуться к содержанию"]

{"sheet":"Месторождения ассоц. и СП","index":17,"n_rows":14,"n_cols":7,"rows_kept":14,"cut":false,"hidden":false,"merged":[[11,0,11,6],[0,0,0,6]]}
["Месторождения и перспективные лицензионные участки совместных предприятий и ассоциированных организаций Группы Газпром"]
["Наименование месторождения\n(лицензионного участка)","Описание"," Компания","Доли участия партнеров в проекта","Годовая проектная мощность","Год ввода \nв эксплуатацию","Год выхода на проектную мощность"]
["Обская и Тазовская губы"]
["Семаковское месторождение","Расположено в акватории Тазовской губы и частично на суше Тазовского полуострова.","ООО «РусГазАльянс»","ООО «Газпром добыча Ямбург» — 50 %,\nАО «РусГазДобыча» — \n50 %.","14,2 млрд м3 газа","2022 г.","2029 г."]
["Гыданский полуостров"]
["Восточно-Мессояхское месторождение","Находится в северной части Западно-Сибирской нефтегазоносной провинции на юго-западе Гыданского полуострова, относится к категории крупнейших по величине разведанных запасов.","АО «Мессояханефтегаз»","Группа Газпром нефть — 50 %,\nПАО «НК «Роснефть» — 50 %.","6,0 млн т нефти","2016 г.","2022 г."]
["Лескинский и Пухуцяяхский лицензионные участки\n(проект «Енисей»)","Лицензионные участки расположены на Гыданском полуострове, на левом берегу Енисея. Лескинский участок относится к Таймырскому Долгано-Ненецкому району Красноярского края. Пухуцяяхский участок расположен в Тазовском районе ЯНАО.","ООО «Газпромнефть-Аэро Брянск»","Группа Газпром нефть — 50 %,\nRoyal Dutch Shell — 50 %.","19,9 млн т нефти","2028 г.","2038 г."]
["ХМАО — Югра"]
["Месторождение им. Эрвье (Оурьинское)","Расположено на границе ХМАО — Югры и Свердловской области.","АО «Евротэк-Югра»","Группа Газпром нефть — 31,7352 %,\nRepsol — 68,2648 %.","2,6 млн т нефти","2025 г.","2027 г."]
["Восточная Сибирь и Дальний Восток"]
["Куюмбинский и Терско-Камовский лицензионные участки","Расположены в Байкитском муниципальном образовании Эвенкийского муниципального района Красноярского края. Месторождения, открытые в пределах лицензионных участков, входят в состав Юрубчено-Тохомской зоны нефтегазонакопления. Район характеризуется труднодоступностью и отсутствием дорог круглогодичного действия.","ООО «Славнефть-Красноярскнефтегаз»","Группа Газпром нефть — 50 %,\nПАО «НК «Роснефть» — 50 %.","5,0 млн т нефти","2018 г.","2028 г."]
["Примечание. Информация приведена по состоянию на 31 декабря 2020 г. Сроки по вводу объектов в эксплуатацию и выходу на проектную производительность могут меняться в зависимости от ситуации на рынке энергоносителей."]
[]
["Вернуться к содержанию"]

{"sheet":"ГРР и добыча за рубежом","index":18,"n_rows":79,"n_cols":15,"rows_kept":79,"cut":false,"hidden":false,"merged":[[35,0,36,0],[35,1,35,14],[0,0,0,14],[1,0,1,14],[2,1,2,14],[9,0,9,14],[11,0,11,14],[12,1,12,14],[19,0,19,14],[21,0,21,14],[22,1,22,14],[32,0,32,14],[34,0,34,14],[76,0,76,14],[41,0,41,14],[42,0,42,14],[43,0,43,14],[45,0,45,14],[46,0,47,0],[46,1,46,14],[63,0,63,14],[65,0,65,14],[66,0,67,0],[66,1,66,14],[75,0,75,14]]}
["Разведка и добыча на территории зарубежных стран"]
["Основные показатели ГРР Группы Газпром на углеводороды на территории зарубежных стран"]
[null,"За год, закончившийся 31 декабря"]
[null,2007,2008,2009,2010,2011,2012,2013,2014,2015,2016,2017,2018,2019,2020]
["Разведочное бурение, тыс. м",14.2,32.1,30.7,21.8,21.8,24,18.100000000000001,17.600000000000001,28.3,9.6999999999999993,18.399999999999999,21.9,18.600000000000001,8.8000000000000007]
["Законченные строительством поисково-разведочные скважины, ед.","–",4,10,10,6,7,4,5,4,8,8,10,7,4]
["в т. ч. продуктивные ","–","–",2,4,6,1,1,4,2,7,5,9,7,4]
["Сейсморазведка 2D, тыс. пог. км",2.4,6.3,12.5,11.4,1.3,0.7,0.4,"–","–",1.5,"–","–","−","–"]
["Сейсморазведка 3D, тыс. км2",1.3,7.4,3.6,2.6,0.7,0.4,1.4,1.7,1.4,0.8,1.2,1.1000000000000001,0.7,"–"]
["Примечание. При формировании консолидированных показателей геолого-разведочных работ, проводимых Группой Газпром на территории зарубежных стран, учтены показатели по проектам, в которых организации Группы имеют операторские функции и контроль."]
[]
["Производственные мощности Группы Газпром в добыче углеводородов на территории зарубежных стран"]
[null,"По состоянию на 31 декабря"]
[null,null,null,null,null,2011,2012,2013,2014,2015,2016,2017,2018,2019,2020]
["Разрабатываемые месторождения, ед.",null,null,null,null,50,50,51,47,53,47,48,47,48,46]
["Газовые эксплуатационные скважины, ед.",null,null,null,null,225,234,289,235,168,172,163,243,249,258]
["     в т.ч. действующие ",null,null,null,null,104,111,94,96,74,81,81,126,129,134]
["Нефтяные эксплуатационные скважины, ед.",null,null,null,null,900,903,863,904,963,931,946,887,908,931]
["     в т.ч. действующие",null,null,null,null,603,623,543,623,661,681,737,734,757,743]
["Примечание. Приведены производственные мощности в добыче углеводородов организаций Группы на территории зарубежных стран, представленные в рамках рассматриваемого периода компанией NIS (Сербия)."]
[]
["Эксплуатационное бурение Группы Газпром на газ и нефть на территории зарубежных стран"]
[null,"За год, закончившийся 31 декабря"]
[null,null,null,null,null,null,2012,2013,2014,2015,2016,2017,2018,2019,2020]
["Эксплуатационные скважины,  законченные строительством, ед."]
["на газ",null,null,null,null,null,2,1,3,"–",2,"–",4,2,3]
["на нефть",null,null,null,null,null,12,27,46,35,38,51,46,38,35]
["Всего",null,null,null,null,null,14,28,49,35,40,51,50,40,38]
["Объем проходки в эксплуатационном бурении, тыс. м"]
["на газ",null,null,null,null,null,3,1.9,7.9,"–",1.6,2.1,5,2.8,3.4]
["на нефть",null,null,null,null,null,18.399999999999999,63.6,86,75,40.9,67.5,61.5,68.099999999999994,59.8]
["Всего",null,null,null,null,null,21.4,65.5,93.9,75,42.5,69.599999999999994,66.5,70.900000000000006,63.2]
["Примечание. Приведены показатели эксплуатационного бурения на газ и нефть организаций Группы на территории зарубежных стран, представленные в рамках рассматриваемого периода компанией NIS (Сербия)."]
[]
["Добыча углеводородов дочерними организациями Группы Газпром на территории зарубежных стран"]
[null,"За год, закончившийся 31 декабря"]
[null,null,null,null,null,null,2012,2013,2014,2015,2016,2017,2018,2019,2020]
["Природный газ*, млн м3",null,null,null,null,null,556,551,558,415,428,408,393,364,341]
["Попутный газ, млн м3",null,null,null,null,null,null,null,null,158,133,115,96,101,104]
["Газовый конденсат, тыс. т",null,null,null,null,null,null,null,null,31,33,35,6,6,7]
["Нефть**, тыс. т",null,null,null,null,null,1223,1255,1205,"1 086",986,933,910,890,866]
["* За 2012–2014 гг. данные приведены с учетом объемов добычи попутного газа."]
["** За 2012–2014 гг. данные приведены с учетом объемов добычи газового конденсата."]
["Примечание. Приведены объемы добычи углеводородов организаций Группы на территории зарубежных стран, представленные в рамках рассматриваемого периода компанией NIS (Сербия)."]
[]
["Добыча углеводородов в рамках основных зарубежных проектов с участием Группы Газпром"]
["Наименование месторождения","За год, закончившийся 31 декабря"]
[null,null,null,null,null,null,2012,2013,2014,2015,2016,2017,2018,2019,2020]
["Природный газ, млн м3"]
["Вингейт ",null,null,null,null,null,742,394,622,877,686,436,300,189,96]
["Мок Тинь и Хай Тхать",null,null,null,null,null,"–",331,1786,1884,2142,2099,2350,2193,2028]
["Шахпахты",null,null,null,null,null,301,319,334,357,363,312,272,202,231]
["Инкауаси",null,null,null,null,null,"–","–","–","–",740,2519,2579,2608,3120]
["Силлиманит",null,null,null,null,null,"–","–","–","–","–","–","–","–",484]
["Попутный газ, млн м3"]
["Бадра",null,null,null,null,null,"–","–","–",7,14,208,777,724,525]
["Газовый конденсат, тыс. т"]
["Вингейт",null,null,null,null,null,5,2,4,5,3,3,2,2,1]
["Мок Тинь и Хай Тхать",null,null,null,null,null,"–",59,366,436,573,469,397,349,335]
["Инкауаси",null,null,null,null,null,"–","–","–","–",75,270,280,290,344]
["Нефть, тыс. т"]
["Бадра",null,null,null,null,null,"–","–",309,1383,2575,3787,3980,2902,2186]
["Саркала",null,null,null,null,null,"–","–","–",219,193,370,935,1451,1210]
["Примечание. Объемы добычи приведены в целом по проектам без выделения доли Группы Газпром."]
[]
["Добыча углеводородов ассоциированными организациями и совместными предприятиями в области поиска, разведки и добычи углеводородов \nв зарубежных странах "]
[null,"За год, закончившийся 31 декабря"]
[null,null,null,null,null,null,2012,2013,2014,2015,2016,2017,2018,2019,2020]
["Wintershall AG"]
["Нефть, тыс. т",null,null,null,null,null,4115,2383,405.6,534,504,1528,"2 148",2392,448]
["Попутный газ, млн м3",null,null,null,null,null,611,254,69.5,145,137,233,311,415,29]
["Wintershall Noordzee B.V.*"]
["Природный газ, млн м3",null,null,null,null,null,"x","x","x",259,1013,776,712,535,634]
["Газовый конденсат, тыс. т",null,null,null,null,null,"x","x","x",2,5,8,5,4,3]
["Нефть, тыс. т ",null,null,null,null,null,"x","x","x",7,1,17,52,58,9]
["* Данные приведены начиная с IV квартала 2015 г."]
["Примечание. Объемы добычи приведены в целом по организациям без выделения доли Группы Газпром."]
[]
["Вернуться к содержанию"]

{"sheet":"Проекты за рубежом","index":19,"n_rows":31,"n_cols":8,"rows_kept":31,"cut":false,"hidden":false,"merged":[[30,0,30,7],[28,0,28,7],[25,2,25,3],[25,4,25,7],[26,2,26,3],[26,4,26,7],[27,2,27,3],[27,4,27,7],[17,0,18,0],[19,0,20,0],[21,0,21,7],[24,0,24,7],[14,4,15,4],[14,6,15,6],[14,7,15,7],[22,0,22,7],[13,0,15,0],[0,0,0,7],[1,4,1,7],[2,4,2,7],[3,4,3,7],[10,0,10,7],[8,0,8,7],[7,4,7,7],[4,0,5,0],[4,4,4,7],[5,4,5,7],[6,4,6,7]]}
["Проекты Группы Газпром в области разведки и добычи углеводородов в зарубежных странах, находящиеся на стадии поиска и разведки"]
["Страна","Наименование, цель\nи описание проекта","Год начала проекта ","Наличие у Группы операторских функций ","Условия участия \nГруппы в проекте"]
["Алжир","Разведка и разработка углеводородов на участке Эль-Ассель, расположенном в геологическом бассейне Беркин на востоке Алжира в пустыне Сахара.","2009 г.","■","Реализуется на условиях Соглашения о совместных ГРР и добыче углеводородов, доля участия Группы Газпром — 49 %.\nПартнер — алжирская государственная нефтегазовая компания Sonatrach. \nЗаказчик работ — Алжирское национальное агентство по развитию углеводородных ресурсов (ALNAFT)."]
["Боливия","Разведка и разработка углеводородного сырья на блоке Асеро.","2013 г.","–","Реализуется на условиях Сервисного контракта по предоставлению нефтедобывающих услуг по разведке и добыче. \nГруппа Газпром финансирует 50 % расходов по проекту на этапе ГРР. Доля Группы на этапе разработки составит 22,5 %.\nПартнеры: боливийская государственная нефтегазовая компания YPFB, Total EP Bolivie S.A. (оператор)."]
["Вьетнам","Поиск и разведка углеводородов на блоке № 112 (с учетом расширения).","2000 г.","■","Реализуется на условиях Соглашения о разделе продукции (СРП).\nГруппа Газпром финансирует 100 % расходов по проекту на этапе ГРР. На этапе разработки доля Группы составит 50 %.\nПартнеры: Petrovietnam, Petrovietnam Exploration & Production Corporation.\nОператор — совместная операционная компания «Вьетгазпром». "]
[null,"Поиск и разведка углеводородов на блоках № 129–132.","2008 г.","■","Реализуется на условиях СРП.\nГруппа Газпром финансирует 100 % расходов по проекту на этапе ГРР. На этапе разработки доля Группы составит 50 %.\nПартнеры: Petrovietnam, Petrovietnam Exploration & Production Corporation.\nОператор — совместная операционная компания «Вьетгазпром». "]
["Казахстан и Россия","Освоение трансграничного месторождения Центральное на континентальном шельфе в Каспийском море (совместный проект Российской Федерации и Республики Казахстан). Месторождение открыто в 2008 г. в ходе реализации с участием Группы проекта поиска и разведки углеводородных ресурсов геологической структуры Центральная.","2013 г.","–","Реализуется в соответствии с Соглашением о разграничении дна северной части Каспийского моря в целях осуществления суверенных прав на недропользование.\nУчастник проекта с российской стороны — ООО «ЦентрКаспнефтегаз» (создано на паритетных условиях ПАО «ЛУКОЙЛ» и ПАО «Газпром»), с казахстанской стороны — АО НК «КазМунайГаз»."]
["Ливия","Разведка и разработка углеводородного сырья на лицензионных участках № 19 (на континентальном шельфе в Средиземном море) и № 64 (на суше, в северной части нефтегазоносного бассейна Гадамес).","2007 г.","■","Реализуется на условиях соглашений о разведке и разделе продукции (СРРП).\nПартнер — ливийская National Oil Corporation (Национальная нефтяная корпорация).\nГруппа Газпром финансирует 100 % расходов по проекту на этапе ГРР."]
["Примечание. Информация приведена по состоянию на 31 декабря 2020 г."]
[]
["Проекты Группы Газпром в области разведки и добычи углеводородов в зарубежных странах, находящиеся на стадиях освоения и добычи"]
["Страна","Наименование, цель\nи описание проекта","Год начала проекта ","Наличие у Группы операторских функций ","Результаты геолого-разведочной фазы проекта","Доли участия партнеров в проекте","Год ввода в эксплуатацию","Годовая проектная мощность"]
["Боливия","Разведка и разработка углеводородного сырья на блоках Ипати и Акио на условиях Операционного контракта.\nВ соответствии с законодательством Боливии все добытые углеводороды принадлежат YPFB, участники проекта получают вознаграждение в соответствующем объеме.\nОператор — Total EP Bolivie S.A.","2010 г.","–","В 2011 г. открыто месторождение Инкауаси, расположенное на блоках Ипати и Акио.","Группа Газпром — 20 %,\nTotal EP Bolivie S.A. — 50 %, \nTecPetrol — 20 %, \nYPFB Chako — 10 %.","2016 г.","4,0 млрд м3 газа\n"]
["Великобритания и Нидерланды","Обустройство, добыча и доразведка на газовом месторождении Вингейт на континентальном шельфе Великобритании (лицензионные участки P1239, P1733) на условиях Соглашения о совместной деятельности.\nОператор — Wintershall Noordzee B.V.*","2008 г.","–","Группа Газпром стала участником проекта на стадии подготовки открытого месторождения к разработке.","Группа Газпром — 20 %,\nWintershall Noordzee B.V. — \n64,5 %, \nXTO UK — 15,5 %.","2011 г.","0,3 млрд м3 газа"]
[null,"Разработка и добыча на лицензионном участке D12b континентального шельфа Нидерландов.\nОператор проекта — Wintershall Noordzee B.V.*","2011 г.","–","В 2015 г. на трансграничной структуре Силлиманит пробурена поисковая скважина. Открыто трансграничное месторождение Силлиманит.\n\n\n\n\n\n","Реализуется на условиях Соглашения о совместной деятельности. \nГруппа Газпром финансирует 17,591 % расходов по проекту. \nПартнеры: Wintershall \nNoordzee B.V. — 30,129 %, \nEBN B.V. — 40,0 %, \nONE — 7,037 %, GDF SUEZ E&P NEDERLAND B.V. — 5,243 %.","2020 г.","0,6 млрд м3 газа"]
[null,"Разработка и добыча на лицензионном участке 44/19а континентального шельфа Великобритании.\nОператор проекта — Wintershall Noordzee B.V.*","2014 г.","–",null,"Реализуется на условиях Соглашения о совместной деятельности. \nГруппа Газпром финансирует 29,319 % расходов по проекту. \nПартнеры: Wintershall \nNoordzee B.V. — 50,214 %, \nONE U.K. — 11,728 %, GDF SUEZ E&P UK Ltd. — 8,739 %.\nМежду участниками проектов разработки и добычи на  лицензионных участках D12b и 44/19а подписано соглашение об унитизации месторождения, по которому доля Группы Газпром составляет 19,9 %."]
["Вьетнам","Добыча углеводородов на месторождениях Мок Тинь и Хай Тхать на условиях СРП.\nОператор — операционная компания Bien Dong.","2012 г.","–","Группа Газпром стала участником проекта на стадии подготовки открытых месторождений к разработке.","Группа Газпром — 49 %,\nPetrovietnam — 51 %.","2013 г.","2,0 млрд м3 газа"]
["Ирак","Разработка месторождения Бадра на условиях Сервисного контракта.\nОператор — Gazprom Neft Badra B.V.\nПроект рассчитан на 20 лет с возможной пролонгацией на 5 лет.","2010 г.","■","Группа Газпром стала участником проекта на стадии подготовки открытого месторождения к разработке.","Группа Газпром — 30 %,\nKOGAS — 22,5 %, \nPetronas — 15 %, \nTPAO — 7,5 %, \nПравительство Ирака (представлено компанией Oil Exploration Company) — 25 %.","2014 г.","5,7 млн т нефти"]
[null,"Добыча углеводородов на блоке Гармиан на условиях СРП.\nОператор — Gazprom Neft Middle East B.V.","2012 г.","■","В пределах блока открыто месторождение Саркала.","Группа Газпром — 40 %,\nWesternZagros — 40 %,\nРегиональное правительство Курдистана — 20 %.","2015 г.","1,45 млн т нефти"]
["Узбекистан","Восстановление инфраструктуры месторождения Шахпахты в Устюртском регионе Республики Узбекистан и доразработка остаточных запасов газа на условиях СРП.\nРасходы возмещаются поставкой природного газа. Оставшийся после возмещения затрат газ распределяется между участниками СРП согласно долям.\nОператор — ООО «ОК Зарубежнефтегаз — ГПД Центральная Азия» (создано Gas Project Development Central Asia AG и \nАО «Газпром зарубежнефтегаз» на паритетной основе).","2004 г.","■","х","Представляющий Группу Газпром консорциум в составе дочернего общества \nАО «Газпром зарубежнефтегаз» \n(5 %) и совместного предприятия Gas Project Development Central Asia AG (95 %) — 50 %,\nРеспублика Узбекистан, от имени которой выступает Министерство энергетики Республики \nУзбекистан, — 50 %.","х","0,2 млрд м3 газа"]
[null,"Добыча углеводородов на месторождении Джел Республики Узбекистан на условиях СРП. Оператор — ООО «ОК Зарубежнефтегаз —Центральная Азия».","2018 г.","■","По результатам ГРР, проведенных в рамках исполнения лицензионных обязательств, в пределах Шахпахтинского лицензионного участка в 2009 г. открыто месторождение Джел.","Группа Газпром — 50 %,\nРеспублика Узбекистан, от имени которой выступает Министерство энергетики Республики \nУзбекистан, — 50 %.\n","2025 г.","0,3 млрд м3 газа на полное развитие"]
["* Доля Группы Газпром в организации по состоянию на 31 декабря 2020 г. составляла 50 %. "]
["Примечание. Информация приведена по состоянию на 31 декабря 2020 г."]
[]
["Деятельность ассоциированных организаций и совместных предприятий в области поиска, разведки и добычи углеводородов в зарубежных странах"]
["Компания","Страны ведения деятельности","Участие Группы Газпром",null,"Краткая характеристика"]
["Wintershall AG","Ливия","Доля в капитале компании в размере 49 % получена Группой в декабре 2007 г. в результате реализации соглашения об обмене активами с компанией BASF AG (c 2008 г. — BASF SE).",null,"Wintershall AG является стороной СРРП по участкам 91 и 107 (ранее — концессии С96 и С97 соответственно). \nВ 2020 г. компания продолжала испытывать трудности от затянувшегося политического кризиса в Ливии, что привело к ограничению добычи и экспорта нефти.\nВ октябре 2020 г. в соответствии с СРРП Wintershall AG передала операционные функции на обоих участках совместной операционной компании Sarir Oil Operations B.V. (доля Wintershall AG — 49 %, доля ливийской National Oil Corporation (Национальной нефтяной корпорации) — 51 %)."]
["Wintershall Noordzee B.V. ","Нидерланды,\nВеликобритания,\nДания\n","Доля в капитале компании в размере 50 % получена Группой в сентябре 2015 г. в результате реализации соглашения об обмене активами с компанией BASF SE.",null,"Компании принадлежат различные доли участия в 45 лицензиях в британском, датском и нидерландском секторах Северного моря. В пределах лицензионных участков открыты многочисленные газовые и нефтяные месторождения. \nОсновными добывающими активами являются газовые месторождения К18-Гольф, Вингейт, Q1 и Силлиманит."]
["Примечание. Информация приведена по состоянию на 31 декабря 2020 г."]
[]
["Вернуться к содержанию"]

{"sheet":"Транспортировка","index":20,"n_rows":87,"n_cols":17,"rows_kept":87,"cut":false,"hidden":false,"merged":[[35,0,35,16],[37,0,37,16],[38,0,39,0],[83,0,83,11],[84,0,84,16],[62,0,62,16],[63,1,63,16],[51,0,51,16],[52,1,52,16],[38,1,38,16],[42,0,42,16],[43,0,44,0],[43,1,43,16],[49,0,49,16],[16,0,16,16],[17,1,17,16],[23,0,23,16],[25,0,25,16],[26,1,26,16],[11,1,11,16],[0,0,0,16],[1,0,1,16],[2,0,2,16],[3,1,3,16],[10,0,10,16]]}
["Транспортировка и подземное хранение"]
["Транспортировка"]
["Развитие и капитальный ремонт ГТС на территории России"]
[null,"За год, закончившийся 31 декабря"]
[null,2005,2006,2007,2008,2009,2010,2011,2012,2013,2014,2015,2016,2017,2018,2019,2020]
["Ввод в эксплуатацию новых магистральных газопроводов и газопроводов-отводов, км",1402,1526,1157,1381,865,{"$f":"ROUND(1338.6,0)","v":1339},2470,3213,703,1277,933,771,640,529,2279,1118]
["Реконструкция магистральных газопроводов, км",null,39,185,102,551,380,131,132,214,200,169,211,100,362,"–","–"]
["Капитальный ремонт, км",2166.8000000000002,2809,2697,2756.3,2383.6999999999998,2427.3000000000002,2436.6,2487,1819,1581,1441,823,810,771,782,597]
["Количество аварий на 1 000 км",0.14000000000000001,0.12,0.11,0.13,0.09,0.04,7.0000000000000007E-2,0.09,0.05,0.03,0.05,0.03,0.02,0.05,0.02,0.03]
[]
["Диагностическое обследование ГТС на территории России, тыс. км"]
[null,"За год, закончившийся 31 декабря"]
[null,2005,2006,2007,2008,2009,2010,2011,2012,2013,2014,2015,2016,2017,2018,2019,2020]
["Внутритрубная дефектоскопия",17.3,16.899999999999999,17.2,19.8,17.7,21.9,21.7,22.2,22.6,23.5,19.899999999999999,23.9,22.1,25.1,28.9,27.8]
["Коррозионное обследование",23.2,29.9,20.5,25.6,17,28.1,26.1,23,21.5,18.399999999999999,17.899999999999999,17.3,18,14.9,21.6,22.7]
[]
["Основные технические характеристики газотранспортных активов, эксплуатируемых газотранспортными дочерними обществами Группы Газпром в России"]
[null,"По состоянию на 31 декабря"]
[null,2005,2006,2007,2008,2009,2010,2011,2012,2013,2014,2015,2016,2017,2018,2019,2020]
["Протяженность магистральных газопроводов и газопроводов-отводов в однониточном исчислении*, тыс. км",155,156.9,158.19999999999999,159.5,160.4,161.69999999999999,164.7,168.3,168.9,170.7,171.2,171.8,172.1,172.6,175.2,176.8]
["Линейные компрессорные станции, ед.",210,217,218,214,215,215,211,222,247,250,250,253,254,254,254,254]
["Газоперекачивающие агрегаты (ГПА), ед.",3587,3629,3641,3669,3675,3659,3630,3738,3820,3825,3829,3852,3844,3812,"3 788","3 781"]
["Установленная мощность ГПА, тыс. МВт",40.200000000000003,41,41.4,41.6,42,42.1,41.7,43.9,45.9,46.1,46.2,46.7,46.7,47.1,46.8,46.8]
["* Начиная с данных по состоянию на 31 декабря 2013 г., протяженность приведена с учетом технологических перемычек."]
[]
["Структура эксплуатируемых газотранспортными дочерними обществами Группы Газпром магистральных газопроводов и газопроводов-отводов на территории России \nпо сроку эксплуатации*, тыс. км"]
[null,"По состоянию на 31 декабря"]
[null,null,null,null,null,null,2010,2011,2012,2013,2014,2015,2016,2017,2018,2019,2020]
["10 лет и менее",null,null,null,null,null,17.2,19.600000000000001,22.2,21.1,20.6,19.899999999999999,17.3,17.3,16.7,17.5,18.600000000000001]
["От 11 до 20 лет",null,null,null,null,null,25,21.8,20.399999999999999,20,20.7,19.100000000000001,15.8,16.2,15.7,15.5,15.9]
["От 21 года до 30 лет",null,null,null,null,null,70.900000000000006,64.599999999999994,61.7,56.5,50.6,47.3,40.9,40.9,34.799999999999997,35.299999999999997,24.4]
["От 31 года до 40 лет",null,null,null,null,null,23.8,31.8,36.799999999999997,41.7,46.6,49.2,55.2,55.2,59.1,60,62.8]
["От 41 года до 50 лет",null,null,null,null,null,19.3,19.600000000000001,18.8,19.7,20.6,23.3,24.9,24.8,26.3,26.7,31.5]
["Более 50 лет ",null,null,null,null,null,5.5,7.3,8.4,9.9,11.6,12.4,17.7,17.7,20,20.2,23.6]
["Всего",null,null,null,null,null,161.69999999999999,164.7,168.3,168.9,170.7,171.2,171.8,172.1,172.6,175.2,176.8]
["* Начиная с данных по состоянию на 31 декабря 2013 г., структура магистральных газопроводов приведена с учетом технологических перемычек. "]
[]
["Поступление газа в ГТС Газпрома на территории Российской Федерации, млрд м3"]
[null,"За год, закончившийся 31 декабря"]
[null,2005,2006,2007,2008,2009,2010,2011,2012,2013,2014,2015,2016,2017,2018,2019,2020]
["Поступление газа в ГТС",699.7,717.8,706.7,714.3,589.70000000000005,661.2,683.2,666.2,659.4,627.5,602.57000000000005,622.59,672.09,693.07,678.96,625.02]
[]
["Объемы транспортировки газа по газопроводам «Сила Сибири», «Северный поток», «Голубой поток», «Турецкий поток», млрд м3"]
[null,"За год, закончившийся 31 декабря"]
[null,null,null,null,null,null,null,2011,2012,2013,2014,2015,2016,2017,2018,2019,2020]
["Газопровод «Сила Сибири»",null,null,null,null,null,null,"x","x","x","x","x","x","x","x",0.33,4.0999999999999996]
["Газопровод «Северный поток» (через КС Портовая)",null,null,null,null,null,null,0.86,11.81,23.78,35.549999999999997,39.11,43.79,50.98,58.71,58.5,59.28]
["Газопровод «Голубой поток» (через КС Береговая)",null,null,null,null,null,null,13.97,14.66,13.66,14.42,15.68,13.06,15.89,13.25,11.1,8.76]
["Газопровод «Турецкий поток» (через КС Русская)*",null,null,null,null,null,null,"x","x","x","x","x","x","x","x","x",13.51]
["* Коммерческие поставки газа по газопроводу начаты в январе 2020 г."]
[]
["Оказание для ПАО «Газпром» услуг по транспортировке газа по территории сопредельных государств, млрд м3"]
[null,"За год, закончившийся 31 декабря"]
[null,null,null,null,null,null,null,null,null,null,null,2015,2016,2017,2018,2019,2020]
["Через газоизмерительную станцию «Иматра» \n(для поставки в Финляндию)",null,null,null,null,null,null,null,null,null,null,2.76,2.5299999999999998,2.36,2.62,2.46,1.61]
["Через Украину",null,null,null,null,null,null,null,null,null,null,67.08,82.2,93.46,86.78,89.59,55.9]
["Через Литву",null,null,null,null,null,null,null,null,null,null,2.0699999999999998,2.21,2.4300000000000002,2.63,2.4500000000000002,2.35]
["Через Латвию",null,null,null,null,null,null,null,null,null,null,1.34,0.42,0.06,0.16,0.11,"–"]
["Через Эстонию",null,null,null,null,null,null,null,null,null,null,2.4,1.72,1.24,1.44,1.51,"–"]
["Через Молдову",null,null,null,null,null,null,null,null,null,null,16.72,18.46,20.22,18.07,10.23,0.89]
["Через Казахстан",null,null,null,null,null,null,null,null,null,null,41.77,27.67,32.69,33.229999999999997,21.64,22.45]
[]
["Основные характеристики объектов транспорта газа дочерних обществ Группы Газпром на территории зарубежных стран "]
[null,"За год и по состоянию на 31 декабря"]
[null,null,null,null,null,null,null,2011,2012,2013,2014,2015,2016,2017,2018,2019,2020]
["Беларусь\n(ГТС ОАО «Газпром трансгаз Беларусь» и участок магистрального газопровода Ямал — Европа на территории Беларуси)"]
["Протяженность*, тыс. км",null,null,null,null,null,null,7.9,7.9,7.9,7.9,7.9,7.9,7.9,7.9,7.9,7.9]
["Количество КС, ед.",null,null,null,null,null,null,10,10,10,10,10,10,10,10,10,10]
["в т. ч.:"]
["ГТС ОАО «Газпром трансгаз Беларусь»",null,null,null,null,null,null,5,5,5,5,5,5,5,5,5,5]
["участок МГ Ямал — Европа на территории Беларуси",null,null,null,null,null,null,5,5,5,5,5,5,5,5,5,5]
["Поступление газа в ГТС, млрд м3",null,null,null,null,null,null,64.3,64.5,69.099999999999994,65.2,64.2,60.33,61.17,62.59,60.78,55.99]
["в т. ч. транзит",null,null,null,null,null,null,44.3,44.3,48.8,45.1,45.41,41.69,42.16,42.26,40.51,37.22]
["Армения\n(ЗАО «Газпром Армения»)"]
["Протяженность*, тыс. км",null,null,null,null,null,null,1.9,1.9,1.8,1.7,1.7,1.7,1.7,1.7,1.7,1.7]
["Количество КС, ед.",null,null,null,null,null,null,"–","–","–","–","–","–","–","–","–","–"]
["Поступление газа в ГТС, млрд м3",null,null,null,null,null,null,2.1,2.5,2.4,2.5,2.29,2.2400000000000002,2.38,2.46,2.5499999999999998,2.6]
["в т. ч. транзит",null,null,null,null,null,null,"–","–","–","–","–","–","–","–","–","–"]
["Кыргызстан\n(ОсОО «Газпром Кыргызстан»**)"]
["Протяженность*, тыс. км",null,null,null,null,null,null,"x","x","x",0.7,0.7,0.7,0.8,0.8,0.8,0.8]
["Количество КС, ед.",null,null,null,null,null,null,"x","x","x",1,1,1,1,1,1,1]
["Поступление газа в ГТС, млрд м3",null,null,null,null,null,null,"x","x","x",4.3,4.66,4.5199999999999996,6.64,6.35,6.79,7.08]
["в т. ч. транзит",null,null,null,null,null,null,"x","x","x",4,4.4000000000000004,4.25,6.36,6.03,6.49,6.75]
["* В однониточном исчислении."]
["** Показатели приведены начиная с года установления контроля со стороны Группы Газпром."]
[]
["Вернуться к содержанию"]

{"sheet":"Собственные нужды ГТС и ПХГ","index":21,"n_rows":7,"n_cols":7,"rows_kept":7,"cut":false,"hidden":false,"merged":[[0,0,0,6],[1,0,2,0],[1,1,1,6]]}
["Объем газа, использованный на собственные технологические нужды ГТС и ПХГ на территории Российской Федерации, млрд м3"]
[null,"За год, закончившийся 31 декабря"]
[null,2015,2016,2017,2018,2019,2020]
["Объем газа, использованный на собственные технологические нужды ГТС",31.95,31.98,37.479999999999997,40.14,37.99,32.53]
["Объем газа, использованный на собственные технологические нужды ПХГ",0.32,0.308,0.503,0.55500000000000005,0.53400000000000003,0.41599999999999998]
[]
["Вернуться к содержанию"]

{"sheet":"Газотранспортные проекты","index":22,"n_rows":32,"n_cols":6,"rows_kept":32,"cut":false,"hidden":false,"merged":[[29,0,29,5],[28,2,28,3],[0,0,0,5],[1,4,1,5],[3,4,3,5],[13,0,13,5],[14,0,15,0],[14,1,15,1],[14,2,14,5],[11,0,11,5],[2,4,2,5],[4,4,4,5],[5,4,5,5],[6,4,6,5],[7,4,7,5],[8,4,8,5],[9,4,9,5],[21,1,23,1],[21,5,23,5]]}
["Основные действующие маршруты транспортировки газа ПАО «Газпром» на экспорт"]
["Наименование","Годовая проектная производительность, млрд м3","Протяженность, км","Диаметр труб, мм","Страны, через территорию и/или территориальные воды которых проходит маршрут газопровода"]
["Ямал — Европа",32.9,"Более 2 000",1420,"Россия, Беларусь,  Польша,  Германия"]
["«Северный поток»",55,1224,1220,"Территориальные воды России, Дании, Германии.\nИсключительные экономические зоны России, Финляндии, Швеции, Дании, Германии"]
["Уренгой — Помары — Ужгород*",32,4451,1420,"Россия, Украина"]
["«Союз»*",26,2750,1420,"Россия, Казахстан, Украина"]
["«Прогресс»*",28.5,3473,1420,"Россия, Украина"]
["«Голубой поток»\n(морская часть)",16,"Две нитки протяженностью \n382 км и 389 км",600,"Россия, Турция"]
["«Турецкий поток»\n(морская часть)",31.5,"Две нитки протяженностью \n937 км и 939 км",813,"Россия, Турция"]
["«Сила Сибири»","До 48","2 250,9 (участок Чаяндинское НГКМ — граница КНР)",1420,"Россия"]
["* Газопроводы украинского коридора."]
["Примечание. Информация приведена по состоянию на 31 декабря 2020 г."]
[]
["Основные газотранспортные проекты Группы Газпром"]
["Наименование","Назначение","Проектные характеристики"]
[null,null,"Протяженность","Количество КС / общая мощность КС","Годовая производительность","Год ввода \nв эксплуатацию"]
["Лупинги газопровода Грязовец — Выборг с целью замыкания второй нитки на участке Грязовец — Волхов (расширение)","Поставка дополнительных объемов газа потребителям г. Санкт-Петербурга и Ленинградской области","217,15 км","–","7,0 млрд м3","2017–2021 гг."]
["«Северный поток — 2»","Поставка газа потребителям в страны Западной и Центральной Европы","Две нитки протяженностью \nоколо 1 230 км","–","55 млрд м3","В середине декабря 2020 г. возобновлены работы по трубоукладке. По состоянию на 31 декабря 2020 г. суммарно по двум ниткам газопровода уложено более 2 300 км труб в Балтийском море."]
["Мурманск — Волхов ","Транспортировка газа Штокмановского месторождения в ЕСГ России","Около 1 365 км\n(будет уточнена по результатам проектирования)","До 10 КС /\n1 225 МВт \n(будет уточнено по результатам проектирования)\n","До 46 млрд м3 (в зависимости от варианта обустройства Штокмановского месторождения)","Срок строительства и ввода газопровода в эксплуатацию будет определен после принятия инвестиционного решения по Штокмановскому месторождению."]
["«Бованенково — Ухта — 2»","Транспортировка газа с месторождений полуострова Ямал","1 108 км","9 КС / 830 МВт","57,5 млрд м3","2014–2023 гг."]
["«Ухта — Торжок — 2»","Поставка дополнительных объемов газа на Северо-Запад России для газоснабжения российских потребителей, а также поставок на экспорт по газопроводу «Северный поток — 2»","970 км","7 КС / 625 МВт","45 млрд м3","2014–2021 гг."]
["«Сила Сибири»","Транспортировка газа с Чаяндинского НГКМ и Ковыктинского ГКМ для газоснабжения регионов Дальневосточного ФО и поставок газа на рынок КНР","3 053,9 км","9 КС / 1 250 МВт","До 48 млрд м3","Поэтапный ввод начиная с 2019 г. в соответствии с обязательствами по договору купли-продажи природного газа."]
["участок \nЧаяндинское НГКМ — граница КНР",null,"2 250,9 км, \nкроме того лупинги\n1 483,6 км","8 КС / 1 186 МВт ","До 48 млрд м3"]
["участок \nКовыктинское ГКМ — Чаяндинское НГКМ",null,"803 км","1 КС / 64 МВт","26,6 млрд м3"]
["Развитие газотранспортных мощностей ЕСГ Северо-Западного региона, участок Грязовец — КС Славянская","Поставка дополнительных объемов газа потребителям Северо-Запада России и на экспорт по газопроводу \n«Северный поток — 2»","1 192 км","7 компрессорных \nцехов / 967 МВт","58,4 млрд м3\n(этапы 1–3), в том числе для подачи газа в газопровод «Северный\nпоток — 2» в объеме до 55 млрд м3","Поэтапный ввод начиная \nс 2020 г."]
["Сахалин — Хабаровск — Владивосток\n(второй пусковой комплекс)","Поставка дополнительных объемов газа потребителям Хабаровского и Приморского краев, а также на экспорт","352,9 км","8 КС / 464 МВт","Около 22 млрд м3 на полное развитие \n(будет уточнена по результатам проектирования)","Поэтапный ввод начиная \nс 2021 г.\n"]
["«Бованенково — Ухта — 3»","Транспортировка газа с месторождений полуострова Ямал","Около 1 260 км (будет уточнена по результатам проектирования)","10 КС / 1 486 МВт\n(будет уточнено по результатам проектирования)","Около 66 млрд м3","Поэтапный ввод начиная \nс 2023–2024 гг."]
["«Ухта — Торжок — 3»","Поставка дополнительных объемов газа на Северо-Запад России для газоснабжения российских потребителей, а также поставок на экспорт ","Около 972 км (будет уточнена по результатам проектирования)","6 компрессорных \nцехов / 740 МВт\n(будет уточнено по результатам проектирования)","Около 45 млрд м3","Поэтапный ввод начиная \nс 2023–2024 гг.\n"]
["«Сила Сибири — 2»","Поставка газа потребителям в России и на экспорт в КНР через территорию Монголии","Протяженность и прочие характеристики будут уточнены по результатам проектирования",null,"До 50 млрд м3","Проводится исследование возможности организации поставок газа из России в Китай через территорию Монголии в соответствии с Меморандумом о взаимопонимании, подписанным \nПАО «Газпром» и Правительством Монголии 5 декабря 2019 г. \nВ августе 2020 г. \nПАО «Газпром» и Правительство Монголии подписали Меморандум о намерениях в отношении создания компании специального назначения для разработки технико-экономического обоснования проекта строительства и эксплуатации газопровода на территории Монголии.\nПереговоры по проекту продолжаются."]
["Примечание. Информация приведена по состоянию на 31 декабря 2020 г. Сроки по вводу объектов в эксплуатацию и выходу на проектную производительность могут изменяться в зависимости от ситуации на рынке энергоносителей."]
[]
["Вернуться к содержанию"]

{"sheet":"Подземное хранение","index":23,"n_rows":70,"n_cols":17,"rows_kept":70,"cut":false,"hidden":false,"merged":[[67,0,67,16],[0,0,0,16],[1,0,1,16],[2,1,2,16],[11,0,11,16],[19,1,19,16],[29,0,29,16],[47,0,47,16],[48,1,48,16],[66,0,66,16]]}
["Подземное хранение газа"]
["Характеристика российских ПХГ Газпрома"]
[null,"По состоянию на 31 декабря"]
[null,2005,2006,2007,2008,2009,2010,2011,2012,2013,2014,2015,2016,2017,2018,2019,2020]
["Количество объектов \nподземного хранения газа в России, ед.",24,25,25,25,25,25,25,25,26,26,26,26,26,27,27,27]
["Объем активной емкости по обустройству, млрд м3 ",64.25,64.650000000000006,64.94,65.2,65.2,65.41,66.7,68.16,70.41,71.099999999999994,73.56,73.62,74.930000000000007,75.010000000000005,75.010000000000005,75.069999999999993]
["КС ПХГ, ед.",19,17,17,17,17,17,17,18,18,18,18,18,19,20,20,20]
["ГПА, ед.",247,220,230,232,232,233,235,242,226,233,226,219,221,217,203,203]
["Установленная мощность ГПА, МВт",1010,694,759,779,779,783,792,838,856,914,899,917,949,942,927,927]
["Количество эксплуатационных скважин на ПХГ, ед.",2509,2588,2618,2615,2601,2564,2602,2621,2689,2685,2686,2681,2694,2705,2711,2711]
[]
["Хранение газа на территории России"]
[null,2005,2006,2007,2008,2009,2010,2011,2012,2013,2014,2015,2016,2017,2018,2019,2020]
["Закачка газа в ПХГ, млн м3"]
["I кв.","–","–",1074.8,107.1,161.4,{"$f":"ROUND(866.627,1)","v":866.6},"–",357.6,55.7,189.4,"–","–",23.2,99.8,635.70000000000005,243.2]
["II кв.",19513.3,21189.200000000001,21295.599999999999,24370.5,3075,{"$f":"ROUND(24097.694,1)","v":24097.7},21291.8,23793.599999999999,21407.9,14963.8,10158.4,8468.7999999999993,17443.900000000001,23418.6,21177.3,12744.6]
["III кв.",22416.6,25659.5,19766.099999999999,24020.400000000001,10116.9,{"$f":"ROUND(20680.963,1)","v":20681},24248.5,18006.8,13784.8,16790.099999999999,14498.1,14209.2,24434.7,23616.1,21411.4,17735.400000000001]
["IV кв.",4385.1000000000004,3500.8,859.5,3150.4,2319.1,{"$f":"ROUND(2085.394,1)","v":2085.4},2657.2,1938.7,3120.1,3191.2,2425.3000000000002,1973.1," ",2349.9,1816.4,2076.6999999999998]
["Всего",46315,{"$f":"SUM(C15:C18)","v":50349.5},{"$f":"SUM(D15:D18)","v":42996},{"$f":"SUM(E15:E18)","v":51648.4},{"$f":"SUM(F15:F18)","v":15672.4},{"$f":"SUM(G15:G18)","v":47730.700000000004},48197.5,44096.7,38368.5,35134.5,27081.8,24651.1,44177.2,49484.4,45040.800000000003,32799.9]
[null,"III–IV кв., а также I–II кв. следующего года"]
[null,"2005/2006","2006/2007","2007/2008","2008/2009","2009/2010","2010/2011","2011/2012","2012/2013","2013/2014","2014/2015","2015/2016","2016/2017","2017/2018","2018/2019","2019/2020","2020/2021"]
["Отбор газа из ПХГ, млн м3"]
["III кв.",185.7,4.0999999999999996,89.7,107.1,155.80000000000001,135.1,300,143.9,63.2,41.9,92.8,114.2,164.4,99.8,450.5,343.9]
["IV кв.",12873.2,12743.4,21688.7,7634.2,18980.5,14428.8,13664.6,14418.3,9777,8262.5,5172.1000000000004,18834.599999999999,17117.2,20415.599999999999,15874.4,23619.5]
["I кв. следующего года",34936,19763.599999999999,28347.1,8653.9,26176.9,31740.7,29258.1,21815.7,21662.3,16353.2,24653.1,26175.1,31036.3,23702.9,15175.8,36521]
["II кв. следующего года",518.1,116.5,18.5,2234,48.5,1366.2,481.9,1091.9000000000001,2714.6,2653.2,1234.2,2022.8,430.6,513.4,1107.5,472.9]
["Всего",48513,{"$f":"SUM(C23:C26)","v":32627.599999999999},{"$f":"SUM(D23:D26)","v":50144},{"$f":"SUM(E23:E26)","v":18629.2},{"$f":"SUM(F23:F26)","v":45361.7},{"$f":"SUM(G23:G26)","v":47670.799999999996},43704.5,37469.800000000003,34217.1,27310.799999999999,31152.2,47146.7,48748.5,44731.7,32608.2,60957.3]
["Максимальная возможная суточная производительность на начало сезона отбора, млн м3 / сут.",568,600,608,620,620,620,647.70000000000005,671.1,727.8,770.4,789.9,801.3,805.3,812.5,843.3,843.3]
[]
["Закачка и отбор газа Группы Газпром из ПХГ зарубежных стран, млн м3"]
[null,2005,2006,2007,2008,2009,2010,2011,2012,2013,2014,2015,2016,2017,2018,2019,2020]
["Закачка газа в ПХГ за рубежом"]
["Страны БСС"]
["Всего в ПХГ в странах БСС",1550.9,1689.9,222.3,1389.1,658.1,1685.6,2338.6,2667.7,2494.6999999999998,2938.3,2507.3000000000002,2144.3000000000002,"1 274,9",1227.8,956.5,994.6]
["Дальнее зарубежье*"]
["Австрия",440.4,449,944.8,858.6,474.1,{"$f":"ROUND(580.758,1)","v":580.79999999999995},1093.7,1407.1,1472,1303.5,709.8,683.9,2222.5,1527.5,2124.5,1090.7]
["Великобритания",76.8,294.39999999999998,414.5,528.9,225.8,{"$f":"ROUND(233.672,1)","v":233.7},225.2,224.3,226.5,224,224.4,"–","–","–","–","–"]
["Венгрия","–","–","–","–","–","–","–","–","–",699.9,"–","–",898.4,290.2,1003,"–"]
["Германия",374.9,1142.7,1111,1384.8,583.6,{"$f":"ROUND(705.293,1)","v":705.3},155.19999999999999,2149.5,1464.2,886.1,797.2,654.1,1840,2072.5,3639.9,505.4]
["Нидерланды","–","–","–","–",328,{"$f":"ROUND(853.78,1)","v":853.8},1582.6,1276.7,617.29999999999995,1313.1,1176.9000000000001,1195,1782,1558.1,283.8,521.5]
["Сербия","–","–","–","–","–","–",279.39999999999998,336.2,93.5,118.4,"–","–",12.6,51.1,58.6,21]
["Словакия","–","–","–","–","–","–","–","–","–","–","–","–",738,283.60000000000002,1112.5999999999999,223.7]
["Франция","–","–","–",273.89999999999998,250,{"$f":"ROUND(298.162,1)","v":298.2},"–","–","–","–","–","–","–","–","–","–"]
["Чехия","–","–","–","–","–","–","–","–","–","–","–",105.3,190.8,393.8,26.8,47.4]
["Краткосрочные контракты на хранение в ПХГ Европы","–","–","–","–","–","–","–","–","–","–","–","–",909.9,412.9,"–","–"]
["Всего в ПХГ в странах дальнего зарубежья",{"$f":"SUM(B36:B44)","v":892.09999999999991},1886.1,2470.3000000000002,3046.2000000000003,1861.5,2671.7999999999997,3336.1,5393.7999999999993,3873.5,4545,2908.3,{"$f":"SUM(M36:M45)","v":2638.3},"8 594,2",6589.7,8249.2000000000007,2409.6999999999998]
["Всего",2443,3575.9999999999995,2692.6,4435.2999999999993,2519.6000000000004,4357.3999999999996,5674.7,8061.5,6368.2,7483.3,5415.6,{"$f":"M46+M34","v":4782.6000000000004},9869.1,7817.5,9205.7000000000007,3404.3]
["* Приведены объемы закачки газа ПАО «Газпром» по контрактам ООО «Газпром экспорт»."]
[null,"III−IV кв., а также I−II кв. следующего года"]
[null,"2005/2006","2006/2007","2007/2008","2008/2009","2009/2010","2010/2011","2011/2012","2012/2013","2013/2014","2014/2015","2015/2016","2016/2017","2017/2018","2018/2019","2019/2020","2020/2021"]
["Отбор газа из ПХГ за рубежом*"]
["Страны БСС"]
["Всего из ПХГ в странах БСС",984.1,291.10000000000002,352.3,762.8,1033.2,1679.7,2440.4,2269.9,2198.1999999999998,2414.6999999999998,2083.1,1997.1,1298.7,1067.5,875.3,1074.9000000000001]
["Дальнее зарубежье**"]
["Австрия",200,200,652.79999999999995,381.9,{"$f":"ROUNDDOWN(480.151,1)","v":480.1},543.70000000000005,982.6,1534.1,1171.5999999999999,835.8,820,1480.5,2054,546.5,1167.5999999999999,3342.5]
["Великобритания","–",371.2,422.4,227.5,{"$f":"ROUND(317.951,1)","v":318},435,225.2,224.3,226.5,224,224.4,"–","– ","– ","–","–"]
["Венгрия","–","–","–","–","–","–","–","–","–",699.9,"–","–",898.4,267.7,8.8000000000000007,292.7]
["Германия",661.4,887.4,952.2,790.1,{"$f":"ROUND(731.396,1)","v":731.4},481.8,716.9,2342.1999999999998,1123.7,753.4,978.1,936.9,2117.5,1008,774.2,4005.4]
["Нидерланды","–","–","–","–","–","–","–","–","–",405.4,1129.8,1981.3,1532.8,368.7,500.6,1650.4]
["Сербия","–","–","–","–","–","–",34.299999999999997,145.69999999999999,67.5,0.5,12,0.5,44.5,13.7,3.2,27.2]
["Словакия","–","–","–","–","–","–","–","–","–","–","–","–",673,201.7,75.7,1005.6]
["Франция","–","–","–",273.89999999999998,{"$f":"ROUND(248.515,1)","v":248.5},299.7,"–","–","–","–","–","–","–","–","–","–"]
["Чехия","–","–","–","–","–","–","–","–","–","–","–",104.5,183.2,147,26.6,299.8]
["Краткосрочные контракты на хранение в ПХГ Европы","–","–","–","–","–","–","–","–","–","–","–","–",974.9,"–","–","–"]
["Всего из ПХГ в странах дальнего зарубежья",{"$f":"SUM(B55:B63)","v":861.4},1458.6,2027.3999999999999,1673.4,1778,1760.2,1958.9999999999998,4246.3,2589.3000000000002,2919,3164.3,4503.7,8478.2999999999993,2553.3000000000002,2556.6999999999998,10623.6]
["Всего",1845.5,1749.7000000000003,2379.6999999999998,2436.1999999999998,2811.2,3439.9000000000005,4399.3999999999996,6516.2,4787.5,5333.7,5247.4,6500.8,9777,3620.8,3432,"11 698,5"]
["* Отбор не отражает объемы газа, проданные в ПХГ."]
["** Приведены объемы отбора газа ПАО «Газпром» по контрактам ООО «Газпром экспорт»."]
[]
["Вернуться к содержанию"]

{"sheet":"Объекты подземного хранения","index":24,"n_rows":42,"n_cols":11,"rows_kept":42,"cut":false,"hidden":false,"merged":[[23,2,23,3],[41,0,41,10],[39,0,39,10],[1,4,2,6],[15,6,16,6],[15,7,16,7],[15,8,16,8],[15,9,16,9],[15,10,16,10],[35,3,35,4],[36,3,36,4],[37,3,37,4],[38,0,38,4],[32,0,32,10],[33,0,34,0],[33,1,34,1],[33,9,34,9],[33,10,34,10],[24,2,24,3],[25,0,27,0],[25,2,27,3],[28,2,28,3],[33,2,34,2],[33,3,34,4],[33,5,34,5],[33,6,34,6],[33,7,33,8],[29,0,29,10],[30,0,30,10],[17,2,17,3],[18,2,18,3],[19,0,22,0],[20,2,20,3],[21,2,21,3],[22,2,22,3],[19,2,19,3],[13,0,13,10],[14,0,16,0],[14,1,16,1],[14,2,16,3],[14,4,14,10],[15,4,15,5],[11,0,11,10],[9,0,9,1],[9,2,9,3],[9,4,9,6],[9,7,9,8],[9,9,9,10],[10,0,10,1],[10,2,10,3],[10,4,10,6],[10,7,10,8],[10,9,10,10],[7,0,7,1],[7,2,7,3],[7,4,7,6],[7,7,7,8],[7,9,7,10],[8,0,8,1],[8,2,8,3],[8,4,8,6],[8,7,8,8],[8,9,8,10],[5,0,5,1],[5,2,5,3],[5,4,5,6],[5,7,5,8],[5,9,5,10],[6,0,6,1],[6,2,6,3],[6,4,6,6],[6,7,6,8],[6,9,6,10],[3,0,3,1],[3,2,3,3],[3,4,3,6],[3,7,3,8],[3,9,3,10],[4,0,4,1],[4,2,4,3],[4,4,4,6],[4,7,4,8],[4,9,4,10],[0,0,0,10],[1,0,2,1],[1,2,2,3],[1,7,1,10],[2,7,2,8],[2,9,2,10]]}
["Основные проекты по развитию подземного хранения газа на территории России"]
["Субъект Российской Федерации",null,"ПХГ",null,"Тип ПХГ",null,null,"Проектные характеристики"]
[null,null,null,null,null,null,null,"Объем оперативного резерва газа, млрд м3",null,"Максимальная суточная производительность, млн м3"]
["Волгоградская область",null,"Волгоградское",null,"В отложениях каменной соли",null,null,0.8,null,70]
["Калининградская область",null,"Калининградское",null,"В отложениях каменной соли",null,null,0.8,null,12]
["Республика Татарстан",null,"Арбузовское",null,"Водоносные структуры",null,null,0.7,null,7.6]
["Республика Удмуртия",null,"Удмуртский резервирующий комплекс",null,"Водоносные структуры",null,null,2.8,null,44.9]
["Тюменская область",null,"Пунгинское",null,"Истощенное месторождение",null,null,5.5,null,50]
["Курганская область",null,"Шатровское",null,"Водоносные структуры",null,null,1,null,14]
["Краснодарский край",null,"Кущевское",null,"Истощенное месторождение",null,null,6.5,null,70]
["Тульская область",null,"Новомосковское",null,"В отложениях каменной соли",null,null,0.3,null,40]
["Примечание. Информация приведена по состоянию на 31 декабря 2020 г."]
[]
["Характеристика зарубежных объектов ПХГ с участием Группы Газпром"]
["Страна","ПХГ","Условия участия \nГруппы Газпром",null,"Мощности ПХГ по состоянию на 31.12.2020 г."]
[null,null,null,null,"Суммарная активная емкость, \nмлрд м3",null,"Суточная производи-тельность на отбор, используемая Группой Газпром, \nмлн м3","КС","ГПА","Установ-ленная мощность ГПА, МВт","Эксплуата-ционные скважины / каверны"]
[null,null,null,null,"Всего","В т.ч. используемая Группой Газпром"]
["Австрия","Хайдах","Соинвестор \n(55,5 %)",null,3.1,"2,4 \n(из них \nООО «Газпром экспорт» — 2,4)","24,5 \n(из них \nООО «Газпром экспорт» — 24,5)",1,4,62,17]
["Сербия","Банатский Двор","Соинвестор\n(51 %)\n",null,"0,55*","0,28 \n(из них \nООО «Газпром экспорт» — 0,28)","2,5 \n(из них \nООО «Газпром экспорт» — 2,5)",1,2,5,18]
["Германия","Йемгум","Соинвестор \n(83,3 %)",null,0.9,"0,8 \n(ООО «Газпром экспорт» не используется)","19,9 \n(ООО «Газпром экспорт» не используется)",1,3,38,9]
[null,"Катарина","Соинвестор \n(50 %)",null,0.52,"0,52\n(из них \nООО «Газпром экспорт» — 0,52)","25,8 \n(из них \nООО «Газпром экспорт» — 25,8)",1,3,37,8]
[null,"Реден","В собственности",null,4.24,"4,24\n (из них \nООО «Газпром экспорт» — 3,3)","50,5 \n(из них \nООО «Газпром экспорт» — 50,4)",1,7,90,16]
[null,"Этцель","Соинвестор\n(доля в кавернах — 33 %, доля в трубопроводе — 16 %)",null,1,"0,3 \n(ООО «Газпром экспорт» не используется)","6,9 \n(ООО «Газпром экспорт» не используется)",1,3,24,9]
["Нидерланды","Бергермеер","Соинвестор**",null,4.5999999999999996,1.85,"26,1\n(из них \nООО «Газпром экспорт» — 26,1)",1,6,72,13]
["Чехия","Дамборжице","Соинвестор \n(50 %)",null,0.37,"0,3\n(из них \nООО «Газпром экспорт» — 0,3)","6,9 \n(из них \nООО «Газпром экспорт» — 6,9)",1,3,10.5,14]
["Беларусь","Прибугское","В собственности",null,0.5,0.5,8,1,5,7.1,41]
[null,"Осиповичское",null,null,0.4,0.4,6,1,6,4.4000000000000004,42]
[null,"Мозырское",null,null,0.3,0.3,20,1,2,4.5999999999999996,16]
["Армения","Абовянская \nстанция подземного хранения газа  ","В собственности",null,0.1,0.1,6,1,9,9.9,21]
["  * В т. ч. газ для технологических нужд в объеме 0,10 млрд м3."]
["** При создании ПХГ ПАО «Газпром» был предоставлен необходимый объем буферного газа взамен на право доступа к его мощностям."]
[]
["Перспективные объекты ПХГ с участием Группы Газпром за рубежом"]
["Страна","ПХГ","Характер строительства","Тип ПХГ",null,"Год начала проекта","Условия участия Группы Газпром","Проектные характеристики",null,"Год ввода в эксплуатацию","Год выхода на проектную мощность"]
[null,null,null,null,null,null,null,"Суммарная активная емкость, млрд м3","Суточная производи-тельность, млн м3 "]
["Германия","Катарина","Новое строительство","В отложениях каменной соли",null,"2011 г.","Соинвестор \n(50 %)",0.7,25.8,"2011 г.","2025 г."]
["Сербия","Банатский Двор","Расширение действующего ПХГ","Истощенное месторождение",null,"2009 г.","Соинвестор \n(51 %)","До 0,75","До 10","2011 г.","2022 г.*"]
["Чехия","Дамборжице","Новое строительство","Истощенное месторождение",null,"2014 г.","Соинвестор \n(50 %)",0.5,7.6,"2016 г.","2021 г."]
["* По предварительной оценке, срок будет уточнен по результатам проектирования."]
["Примечание. Информация приведена по состоянию на 31 декабря 2020 г. Сроки по вводу объектов в эксплуатацию и выходу на проектную производительность могут изменяться в зависимости от ситуации на рынке энергоносителей."]
[]
["Вернуться к содержанию"]

{"sheet":"Контракты на хранение","index":25,"n_rows":7,"n_cols":3,"rows_kept":7,"cut":false,"hidden":false,"merged":[[0,0,0,2]]}
["Среднесрочные коммерческие контракты на использование ООО «Газпром экспорт» мощностей ПХГ в европейских странах дальнего зарубежья, действовавшие к началу сезона отбора 2020/2021 г."]
["Страна","Суммарная \nактивная емкость, \nиспользуемая \nГруппой Газпром, \nмлрд м3","Суточная \nпроизводительность на отбор, \nиспользуемая \nГруппой Газпром, \nмлн м3"]
["Австрия",1.2,8.6]
["Словакия",0.86,5]
["Венгрия",0.39,4]
[]
["Вернуться к содержанию"]

{"sheet":"Переработка","index":26,"n_rows":143,"n_cols":17,"rows_kept":143,"cut":false,"hidden":false,"merged":[[79,0,79,16],[81,1,81,16],[138,0,138,16],[139,0,139,16],[140,0,140,16],[77,1,77,11],[66,1,66,16],[67,1,67,16],[68,1,68,16],[69,1,69,11],[70,1,70,11],[71,1,71,11],[72,1,72,11],[73,1,73,11],[74,1,74,11],[75,1,75,11],[76,1,76,11],[65,1,65,16],[0,0,0,16],[1,0,1,16],[3,1,3,16],[17,0,17,16],[21,0,21,16],[23,1,23,16],[28,0,28,16],[30,1,30,16],[34,0,34,16],[36,1,36,16],[64,0,64,16],[26,0,26,16],[19,0,19,16],[18,0,18,16]]}
["Переработка углеводородного сырья, газо- и нефтехимия, проекты производства СПГ"]
["Объемы переработки углеводородов Группой Газпром"]
["(без учета давальческого сырья)"]
[null,"За год, закончившийся  31 декабря"]
[null,2005,2006,2007,2008,2009,2010,2011,2012,2013,2014,2015,2016,2017,2018,2019,2020]
["Переработка природного и попутного газа, млрд м3"]
["ПАО «Газпром» и его основные дочерние общества*",33.880000000000003,33.47,33.32,33.28,30.39,33.619999999999997,33.159999999999997,32.229999999999997,31.11,30,30.64,30.06,29.94,30.14,30.6,29.76]
["Газпром нефтехим Салават**","–","–","–","–","–","–","–",0.22,0.41,0.45,0.44,0.49,0.43,0.47,0.44,0.45]
["Сибур Холдинг***",12.4,13.8,10.71,5.05,"x","x","x","x","x","x","x","x","x","x","x","x"]
["Газпром нефть","–","–","–","–","–","–","–","–","–","–",0.1,0.44,0.45,0.45,0.43,0.4]
["Всего",46.28,47.269999999999996,44.03,38.33,{"$f":"F7","v":30.39},33.619999999999997,33.159999999999997,32.450000000000003,31.52,30.45,31.18,30.99,30.82,31.06,31.47,30.61]
["Первичная переработка нефти и стабильного газового конденсата, млн т "]
["ПАО «Газпром» и его основные дочерние общества",5.99,5.82,5.91,5.81,5.56,5.88,5.91,6.61,6.74,6.71,6.44,6.58,6.49,6.21,6.65,6.64]
["Газпром нефть",4.09,24.36,26.23,28.39,33.43,37.9,40.49,43.34,42.63,43.48,43.07,41.89,40.11,42.91,41.48,40.39]
["в т. ч. за рубежом","–","–","–","–",2.39,2.85,2.36,4.08,3.8,3.78,3.54,3.23,3.42,3.56,3.14,3.32]
["Газпром нефтехим Салават**","–","–","–","–","–","–","–",4.2300000000000004,7.42,8.1300000000000008,6.44,6.47,6.48,6.74,6.83,6.66]
["Всего",{"$f":"B13+B14","v":10.08},{"$f":"C13+C14","v":30.18},32.14,{"$f":"E13+E14","v":34.200000000000003},{"$f":"F13+F14","v":38.99},43.78,46.400000000000006,{"$f":"I13+I14+I16","v":54.180000000000007},{"$f":"J13+J14+J16","v":56.790000000000006},{"$f":"K13+K14+K16","v":58.32},{"$f":"L13+L14+L16","v":55.949999999999996},54.94,53.08,55.86,54.96,53.69]
["* С учетом объемов переработки ООО «Газпром метанол» и АО «Газпром добыча Томск»."]
["** Показатели приведены начиная с 1 июня 2012 г."]
["*** Показатели приведены до момента деконсолидации с III кв. 2008 г."]
[]
["Переработка (очистка и стабилизация) нестабильного газового конденсата основными дочерними обществами ПАО «Газпром»*, млн т"]
["(без учета давальческого сырья)"]
[null,"За год, закончившийся  31 декабря"]
[null,2005,2006,2007,2008,2009,2010,2011,2012,2013,2014,2015,2016,2017,2018,2019,2020]
["Нестабильный газовый конденсат (нефть)",12.03,12.01,12.01,11.65,10.87,12.32,13.04,13.97,16.09,16.38,17.260000000000002,17.55,17.47,17.75,18.82,18.47]
["* С учетом объемов переработки ООО «Газпром добыча шельф Южно-Сахалинск» и АО «Газпром добыча Томск». Также учтены объемы переработки ООО «Газпром добыча Иркутск» и ООО «Сервиснефтегаз», финансовые показатели которых в связи с их несущественностью не включаются в консолидированную финансовую отчетность Группы Газпром по МСФО."]
[]
["Переработка на мощностях основных дочерних обществ ПАО «Газпром» природного и попутного газа компаний, не входящих в Группу Газпром, млрд м3"]
["(давальческое сырье)"]
[null,"За год, закончившийся  31 декабря"]
[null,2005,2006,2007,2008,2009,2010,2011,2012,2013,2014,2015,2016,2017,2018,2019,2020]
["Природный и попутный газ",7.36,8.3000000000000007,8.19,8.3699999999999992,8.67,8.34,8.3800000000000008,8.4600000000000009,8.61,8.9700000000000006,8.91,9.2799999999999994,9.15,9.5500000000000007,9.11,8.99]
[]
["Производство основных видов продукции переработки, газо- и нефтехимии Группой Газпром "]
["(без учета давальческого сырья)"]
[null,"За год, закончившийся  31 декабря"]
[null,2005,2006,2007,2008,2009,2010,2011,2012,2013,2014,2015,2016,2017,2018,2019,2020]
["Стабильный газовый конденсат и нефть, тыс. т",3728.7,3792.8,3653.2,3413.8,3408.2,3828.3,4595.1000000000004,4675.3,6035.3,6410.8,7448.1,8216.4,8688.7000000000007,8234.2999999999993,8362,9977.6]
["Сухой газ, млн м3",37418,38013.699999999997,35824.600000000006,30913.200000000001,24204.9,26198.3,25712.799999999999,24967.7,24194.799999999999,23329.5,24205.200000000001,23996.9,23607,23590.9,23928.9,23862.9]
["Сжиженные углеводородные газы (СУГ), тыс. т",4880.7,5325.1,5537.6,4104.1000000000004,2806.6,3119.3,2972.7,3097.3,3276.4,3371.1,3463.3,3525.4,3522.5,3614.3,3663.8,3567.6]
["     в т. ч. за рубежом","–","–","–","–",105.4,110.5,83,127.2,118,130.4,137.9,115,103,97,77.8,95.9]
["Автомобильный бензин, тыс. т",3125.7,7218.8,7518.7,7606.2,8648.7999999999993,9368.7999999999993,10253.299999999999,11706.9,12125.2,12067.9,12395.2,12270,11705.6,12044.9,11703.1,11823.2]
["     в т. ч. за рубежом","–","–","–","–",502.8,554.4,459,827.8,669.9,762.7,646.79999999999995,516,469,515.70000000000005,445.2,451.4]
["Дизельное топливо, тыс. т",2954.8,9056.9,9510.7000000000007,10406.6,11214.2,12830.9,12771.6,14459.5,16215.2,16281.4,14837,14971.4,14322.1,15662.5,15514.6,16262.6]
["     в т. ч. за рубежом","–","–","–","–",836,898.1,675,1251.9000000000001,1423.5,1493.8,1470.1,1363,1299,1571.2,1432.7,1593.3]
["Авиационное топливо, тыс. т",327.9,1790.2,1944.2,1967.3,2276,2598.1,2735.5,2813.7,2852,3161.9,3171,3213.2,3148.8,3553.3,3433.8,2758.3]
["     в т. ч. за рубежом","–","–","–","–",48.3,68.2,75,73.3,73.2,108.5,107.9,122,155,190.4,154.4,88]
["Мазут топочный, тыс. т",1077.8,4886.5,5653.9,6138.5,6355.6,8176.4,8642.5,10123.799999999999,9132,9318,8371.4,7787.2,6585.9,6880.6,7167.8,5386.1]
["     в т. ч. за рубежом","–","–","–","–",460.3,528.5,403,1081.7,739.4,717.8,450.6,334,318,253.7,186.4,169.8]
["Судовое топливо, тыс. т",null,null,null,null,null,null,null,3378.1149999999998,3311.1,4139,4172.2,3177.2,3367.3,2952,2795.3,2519]
["Битумы, тыс. т",null,null,null,null,null,null,null,1474.912,2056.5,1949.2,1883.8,2112,2662.1,3122.3,2959,3254.2]
["     в т. ч. за рубежом",null,null,null,null,null,null,null,173,245.3,262.2,333,335,553.29999999999995,600.29999999999995,572.29999999999995,631.4]
["Масла, тыс. т",53,327,346.4,328.3,371.4,367.1,391,380.3,396.2,374.3,404.1,421,480,487.2,539.29999999999995,433.5]
["Cера, тыс. т",5370.3,5353.5,5432.3,5385.9,4404.6000000000004,5252.4,5391.5,5327.6,4936.8999999999996,4747.8,4793.8,4905.6000000000004,5013.6000000000004,5179.7,5377.8,5021.6000000000004]
["     в т. ч. за рубежом","–","–","–","–","–",2,3.3,2.9,12,15.6,17.8,22,24,23,13.8,24.4]
["Гелий, тыс. м3",1636.4,3838.1,4874,5037.8999999999996,4892.6000000000004,4856.1000000000004,3526.4,4923.8999999999996,3570.7,3997.5,4969.7,5054.1000000000004,5102.2,5088.8999999999996,4731.5,4470.7]
["ШФЛУ, тыс. т",3006.6,3896.7,2648.9,1488.5,454,491.7,697.4,998.4,1587.6,1553.4,1728.2,1807,1349.7,1465.5,1383.8,1353.1]
["Этановая фракция, тыс. т",108.1,223.2,238.4,327.2,362.1,384.1,391.8,397.1,389,373.8,377.4,377.9,363,347.3,337.3,337.4]
["Мономеры, тыс. т",1848,2122.5,1997.9,1096.3,"–","–","–",97.8,242.6,262.2,243.4,294,264.89999999999998,335.8,293.3,320.2]
["Полимеры, тыс. т",469,490,506,290,"–","–","–",61.3,133.19999999999999,161.80000000000001,157.9,179.1,154.30000000000001,185.6,171.6,191.4]
["Продукция органического синтеза, тыс. т",990,1109,1134.5999999999999,544.5,"–","–","–",87.4,86.8,83.5,90.4,89.6,44.7,71.3,49.7,48.8]
["Минеральные удобрения и сырье для них, тыс. т",1482,1360.4,1598.1,1103.4000000000001,"–","–","–",326.10000000000002,752.1,778.2,775.9,953,913.2,836.4,799.7,800.6]
[]
["Области применения отдельных видов продукции переработки, газо- и нефтехимии, производимой Группой Газпром"]
["Наименование продукции","Применение"]
["Акриловая кислота, акрилаты","Производство впитывающих продуктов, водоэмульсионных красок и других адгезивных покрытий"]
["Битумы нефтяные","Дорожное строительство, гидроизоляционные материалы"]
["Битумопроизводные материалы","Строительство и ремонт автодорог, аэродромов, искусственных сооружений, гидрозащита и коррозийная защита, промышленное и гражданское строительство"]
["Гелий","Энергетика, металлургия, авиакосмическая промышленность, судостроение, машиностроение, медицина"]
["Минеральные удобрения (карбамид, аммиак жидкий\nтехнический, углекислота, аммиачная селитра)","Сельское хозяйство"]
["Мономеры (этилен, пропилен, стирол)","Сырье для нефтехимической промышленности"]
["Продукция органического синтеза (бутанол, пластификатор ДОФ)","Сырье для нефтехимической промышленности"]
["Полимерно-битумное вяжущее (ПВМ)","Дорожное строительство"]
["Полимеры (полиэтилен, полистирол)","Производство медицинских и бытовых изделий, пленок, упаковочных и изоляционных материалов"]
["Этановая фракция","Сырье для нефтегазохимической промышленности"]
["Коксы","Производство электродов, анодов. Цветная и черная металлургия"]
["Широкая фракция легких углеводородов (ШФЛУ)","Сырье для нефтегазохимической промышленности"]
[]
["Производство основных видов продукции переработки дочерними обществами Группы Газпром"]
["(без учета давальческого сырья)"]
[null,"За год, закончившийся  31 декабря"]
[null,2005,2006,2007,2008,2009,2010,2011,2012,2013,2014,2015,2016,2017,2018,2019,2020]
["ПАО «Газпром» и его основные дочерние общества*"]
["Стабильный газовый конденсат и нефть, тыс. т",3728.7,3792.8,3711.7,3413.8,3408.2,3828.3,4595.1000000000004,4675.3,6035.3,6410.8,7448.1,8216.4,8688.7000000000007,8234.2999999999993,8362,9977.6]
["Сухой газ, млн м3",26467,25938.1,26534.400000000001,26480.2,24204.9,26198.3,25712.799999999999,24967.7,24194.799999999999,23329.5,24119.200000000001,23620.1,23223.1,23211.3,23568.3,23525]
["СУГ, тыс. т",1881.9,1837.7,2109.8000000000002,2037.2,2025.2,2311.6,2281.6999999999998,2286.4,2287.4,2441.6999999999998,2487.4,2578.4,2828.5,2814.3,2944.4,2787.7]
["Автомобильный бензин, тыс. т",2242.6999999999998,2158.8000000000002,2141.8000000000002,2132.3000000000002,2018.1,2114.3000000000002,2153.3000000000002,2243.8000000000002,2428.8000000000002,2519.6999999999998,2532.6999999999998,2497.9,2234.5,2150.6999999999998,2319.8000000000002,2214.1999999999998]
["Дизельное топливо, тыс. т",1640.8,1442.9,1429.3,1394.1,1276.5,1366.2,1280.5999999999999,1554.5,1569,1585.7,1362.1,1435.6,1496.8,1373.4,1618.6,1546.2]
["Авиационное топливо, тыс. т",50.9,150.19999999999999,133.9,161.4,165.8,165.7,166.5,146,158.80000000000001,172.1,167.7,174.2,111.8,88.3,95,87.1]
["Мазут топочный, тыс. т",380.8,380.5,394.2,389.7,347.9,377.9,299.5,347.3,351.4,329.6,332.2,346.1,328.4,323.39999999999998,395.4,97.1]
["Cера, тыс. т",5361.8,5296.3,5370.1,5319.8,4322.1000000000004,5154.8999999999996,5283.5,5203.3999999999996,4790.3999999999996,4589.3999999999996,4623.8999999999996,4696.5,4847.8999999999996,4983.8999999999996,5154.3999999999996,4765.7]
["Гелий, тыс. м3",1636.4,3838.1,4874,5037.8999999999996,4892.6000000000004,4856.1000000000004,3526.4,4923.8999999999996,3570.7,3997.5,4969.7,5054.1000000000004,5102.2,5088.8999999999996,4731.5,4470.7]
["ШФЛУ, тыс. т",541.6,881.4,587.5,554.6,454,491.7,697.4,998.4,1587.6,1534.7,1661.9,1666.7,1149.4000000000001,1270.5,1212.4000000000001,1192.9000000000001]
["Этановая фракция, тыс. т",108.1,223.2,238.4,327.2,362.1,384.1,391.8,397.1,389,373.8,377.4,377.9,363,347.3,337.3,337.4]
["Газпром нефть"]
["Сухой газ, млн м3","–","–","–","–","–","–","–","–","–","–",86,376.8,383.9,379.6,360.6,337.9]
["СУГ, тыс. т",107.8,544.6,566.1,563.79999999999995,781.4,807.7,691,810.9,989,929.4,975.9,947,694,800,719.4,779.9]
["в т.ч. за рубежом","–","–","–","–",105.4,110.5,83,127.2,118,130.4,137.9,115,103,97,77.8,95.9]
["Автомобильный бензин, тыс. т",883,5060,5376.9,5473.9,6630.7,7254.5,8100,8961.6,8923,8844.7999999999993,9081.2000000000007,9176,8555,8863.7999999999993,8015.2,8429.9]
["в т.ч. за рубежом","–","–","–","–",502.8,554.4,459,827.8,669.9,762.7,646.79999999999995,516,469,515.70000000000005,445.2,451.4]
["Дизельное топливо, тыс. т",1314,7614,8081.4,9012.5,9937.7000000000007,11464.7,11491.1,11508.1,12087.8,12147.7,11874.5,12023,11325,12323.6,11870.4,12548.9]
["в т.ч. за рубежом","–","–","–","–",836,898.1,675,1251.9000000000001,1423.5,1493.8,1470.1,1363,1299,1571.2,1432.7,1593.3]
["Авиационное топливо, тыс. т",277,1640,1810.3,1805.9,2110.1999999999998,2432.5,2569,2667.7,2693.2,2989.8,3003.3,3039,3037,3465,3338.8,2671.2]
["в т.ч. за рубежом","–","–","–","–",48.3,68.2,75,73.3,73.2,108.5,107.9,122,155,190.4,154.4,88]
["Мазут топочный, тыс. т",697,4506,5259.7,5748.8,6007.7,7798.5,8343,8775.2000000000007,7476.9,7391.7,7198.6,6720,5696,6204.8,6447.2,5117.5]
["в т.ч. за рубежом","–","–","–","–",460.3,528.5,403,1081.7,739.4,717.8,450.6,334,318,253.7,186.4,169.8]
["Судовое топливо, тыс. т",null,null,null,null,null,null,null,3378.1149999999998,3311.1,4076.3,3666.9,2410,2671,2576.4,2490.8000000000002,2398.1]
["Битумы, тыс. т",null,null,null,null,null,null,null,1378,1935.5,1875.1,1857.6,2021,2569.1999999999998,2928.5,2780.9,3081.2]
["в т.ч. за рубежом",null,null,null,null,null,null,null,173,245.3,262.2,333,335,553.29999999999995,600.29999999999995,572.29999999999995,631.4]
["Масла, тыс. т",53,327,346.4,328.3,371.4,367.1,391,380.3,396.2,374.3,404.1,421,480,487.2,539.29999999999995,433.5]
["Cера, тыс. т",8.5,57.2,62.2,66.099999999999994,82.5,97.5,108,107.7,117,124,136.80000000000001,180,136,160,186.4,224.9]
["в т.ч. за рубежом","–","–","–","–","–",2,3.3,2.9,12,15.6,17.8,22,24,23,13.8,24.4]
["ШФЛУ, тыс. т","–","–","–","–","–","–","–","–","–","–",28,131.5,145.4,144.30000000000001,136.19999999999999,124.5]
["Газпром нефтехим Салават**"]
["Автомобильный бензин, тыс. т","x","x","x","x","x","x","x",501.5,773.3,703.4,781.3,596.1,916.1,1030.4000000000001,1368.1,1179.0999999999999]
["Дизельное топливо, тыс. т","x","x","x","x","x","x","x",1396.9,2558.4,2548.1,1600.5,1512.9,1500.3,1965.5,2025.6,2167.5]
["Мазут топочный, тыс. т","x","x","x","x","x","x","x",970.2,1303.8,1596.7,840.6,721.1,561.5,352.4,325.2,171.5]
["Судовое топливо, тыс. т","x","x","x","x","x","x","x","–","–",62.7,505.3,767.2,696.3,375.6,304.5,120.9]
["Битумы, тыс. т","x","x","x","x","x","x","x",96.9,120.9,74.099999999999994,26.2,91,92.9,193.8,178.1,173]
["Сера, тыс. т","x","x","x","x","x","x","x",16.600000000000001,29.5,34.4,33.1,29.1,29.7,35.799999999999997,37,31]
["ШФЛУ, тыс. т","x","x","x","x","x","x","x","–","–",18.7,38.299999999999997,8.8000000000000007,54.9,50.7,35.200000000000003,35.700000000000003]
["Мономеры, тыс. т","x","x","x","x","x","x","x",97.8,242.6,262.2,243.4,294,264.89999999999998,335.8,293.3,320.2]
["Полимеры, тыс. т","x","x","x","x","x","x","x",61.3,133.19999999999999,161.80000000000001,157.9,179.1,154.30000000000001,185.6,171.6,191.4]
["Продукция органического синтеза, тыс. т","x","x","x","x","x","x","x",87.4,86.8,83.5,90.4,89.6,44.7,71.3,49.7,48.8]
["Минеральные удобрения и сырье для них, тыс. т","x","x","x","x","x","x","x",326.10000000000002,752.1,778.2,775.9,953,913.2,836.4,799.7,800.6]
["Сибур Холдинг***"]
["Сухой газ, млн м3",10951,12075.6,9290.2000000000007,4433,"x","x","x","x","x","x","x","x","x","x","x","x"]
["Сжиженные углеводородные газы, тыс. т",2891,2942.8,2861.7,1503.1,"x","x","x","x","x","x","x","x","x","x","x","x"]
["ШФЛУ, тыс. т",2465,3015.3,2061.4,933.9,"x","x","x","x","x","x","x","x","x","x","x","x"]
["Бензин газовый стабильный тыс. т",562,613,677,284,"x","x","x","x","x","x","x","x","x","x","x","x"]
["Мономеры, тыс. т",1848,2122.5,1997.9,1096.3,"x","x","x","x","x","x","x","x","x","x","x","x"]
["Полимеры и изделия, тыс. т",469,490,506,290,"x","x","x","x","x","x","x","x","x","x","x","x"]
["Синтетические каучуки, тыс. т",584,624,553.4,267.89999999999998,"x","x","x","x","x","x","x","x","x","x","x","x"]
["Продукция органического синтеза, тыс. т",990,1109,1134.5999999999999,544.5,"x","x","x","x","x","x","x","x","x","x","x","x"]
["Метил третбутиловый эфир (МТБЭ), тыс. т",379,371.5,458.4,243.5,"x","x","x","x","x","x","x","x","x","x","x","x"]
["Минеральные удобрения и сырье для них, тыс. т",1482,1360.4,1598.1,1103.4000000000001,"x","x","x","x","x","x","x","x","x","x","x","x"]
["Шины, млн шт.",13.4,12.8,13.6,6.5,"x","x","x","x","x","x","x","x","x","x","x","x"]
["* С учетом объемов производства продукции переработки ООО «Газпром добыча шельф Южно-Сахалинск», ООО «Газпром метанол», АО «Газпром добыча Томск». Также учтены объемы производства продукции переработки \nООО «Газпром добыча Иркутск» и ООО «Сервиснефтегаз», финансовые показатели которых в связи с их несущественностью не включаются в консолидированную финансовую отчетность Группы Газпром по МСФО."]
["**  Показатели приведены начиная с 1 июня 2012 г."]
["*** Показатели приведены до момента деконсолидации с III кв. 2008 г."]
[]
["Вернуться к содержанию"]

{"sheet":"ГПЗ и НПЗ","index":27,"n_rows":37,"n_cols":6,"rows_kept":37,"cut":false,"hidden":false,"merged":[[0,0,0,5],[8,0,9,0],[8,1,9,1],[8,2,9,2],[27,0,27,5],[2,1,7,1]]}
["Предприятия по переработке углеводородного сырья и производству газо- и нефтехимической продукции "]
["Наименование","Компания","Местоположение","Год ввода в эксплуатацию / \nгод создания","Годовая мощность по переработке сырья / производству продукции \n(по состоянию на 31.12.2020 г.)","Основная продукция"]
["Астраханский ГПЗ","ООО «Газпром переработка»","Астрахань","1986 г.","12,0 млрд м3 природного газа, \n7,3 млн т нестабильного газового конденсата, \n2,5 млн т стабильного газового конденсата и нефти","Сухой товарный газ, стабильный газовый конденсат, СУГ, широкая фракция легких углеводородов (ШФЛУ), автомобильный бензин, дистиллят газового конденсата легкий, дизельное топливо, мазут, дистиллят газового конденсата тяжелый, дистиллят газового конденсата средний, газовая сера"]
["Оренбургский ГПЗ",null,"Оренбург","1974 г.","37,5 млрд м3 природного газа,\n6,26 млн т нестабильного газового конденсата и нефти","Сухой товарный газ, стабильный газовый конденсат, СУГ, ШФЛУ, сера газовая, одорант"]
["Оренбургский гелиевый завод",null,"Оренбург","1978 г.","15,0 млрд м3 природного газа ","Гелий газообразный и сжиженный, сухой товарный газ, этановая фракция, СУГ, ШФЛУ, пентан-гексановая фракция (ПГФ), углеводородная фракция"]
["Сосногорский ГПЗ",null,"Сосногорск, Республика Коми","1946 г.","3,0 млрд м3 природного газа,\n2,5 млн т нестабильного конденсата (стабилизация) ","Сухой товарный газ, СУГ, стабильный газовый конденсат, техуглерод"]
["Уренгойский завод по подготовке конденсата к транспорту",null,"Новый Уренгой","1985 г.","13,67 млн т нестабильного (невыветренного) конденсата (деэтанизация и стабилизация) или\n12,2 млн т выветренного конденсата ","Деэтанизированный газовый конденсат, стабильный газовый конденсат, СУГ, ШФЛУ, дизельное топливо, дистиллят газового конденсата легкий, топливо для реактивных двигателей ТС-1, газ деэтанизации"]
["Сургутский завод по стабилизации конденсата",null,"Сургут","1985 г.","12,05 млн т нефтегазоконденсатной смеси (стабилизация),\n4,0 млн т стабильного газового конденсата и нефти","Стабильный газовый конденсат (нефть), автомобильный бензин, дизельное топливо, топливо для реактивных двигателей ТС-1, СУГ, ШФЛУ, ПГФ, дистиллят газового конденсата легкий"]
["Завод по производству метанола, метанольного формалина и карбамидоформальдегидного концентрата ","ООО «Газпром метанол»","Томск","1983 г.","Сырье: \n926,01 млн м3 газа\nВыработка: 871,13 тыс. т метанола","Метанол"]
[null,null,null,"2016 г.","Сырье:\n45,77 тыс. т метанола,\n14,52 тыс. т карбамида\nВыработка:\n57,82 тыс. т карбамидоформальдегидного концентрата КФК-85,\n11,92 тыс. т формалина","Формалин метанольный, карбамидоформальдегидный концентрат"]
["Омский НПЗ","АО «Газпромнефть-ОНПЗ»","Омск","1955 г.","22,23 млн т нефти и конденсата","Бензин автомобильный, бензин газовый стабильный, дизельное топливо, авиакеросин, мазут, ароматические углеводороды, СУГ, кокс, нефтяные битумы, сера, катализаторы каталитического крекинга"]
["Московский НПЗ","АО «Газпромнефть-МНПЗ»","Москва","1938 г.","12,76 млн т нефти","Бензин автомобильный, дизельное топливо, авиакеросин, мазут, нефтяные битумы, СУГ, сера"]
["НПЗ \n(г. Панчево)","NIS","Панчево (Сербия)","1968 г.","4,6 млн т нефти","Бензин автомобильный, бензин газовый стабильный, дизельное топливо, авиакеросин, мазут, бензол, толуол, СУГ, битум нефтяной, полимер-битум, сера и пропилен"]
["НПЗ \n(г. Нови-Сад)","NIS","Нови-Сад (Сербия)","1968 г.","Находится на консервации","Бензин автомобильный, дизельное топливо, мазут и битумы"]
["Завод по смешению масел и смазок \n(г. Бари)","Gazpromneft Lubricants Italia S.p.A. ","Бари (Италия)","1976 г.","30 тыс. т масел и 6 тыс. т пластичных смазок","Масла индустриальные, масла автомобильные, смазки "]
["Московский завод смазочных материалов (МЗСМ)","АО «Газпромнефть МЗСМ» ","Фрязино, Московская область","2007 г. ","108 тыс. т масел","Моторные, трансмиссионные, индустриальные масла "]
["Омский завод смазочных материалов (ОЗСМ)","ООО «Газпромнефть — смазочные материалы»","Омск","2009 г.\n(создан филиал\n ООО «Газпромнефть — смазочные материалы» в г. Омске)","260 тыс. т масел","Моторные и индустриальные масла "]
["Рязанский опытный завод битумных материалов (РЗБМ)","ООО «Газпромнефть — Рязанский завод битумных материалов» ","Рязань","2011 г. (установка по производству ПБВ)","130 тыс. т ПБВ","Полимерно-битумное вяжущее (ПБВ)"]
["Битумный завод ","ТОО «Газпромнефть — Битум Казахстан»","Южно-Казахстанская область\n(Казахстан)","2011 г.","280 тыс. т","Дорожный и строительный битум"]
["ООО «НОВА-Брит»","ООО «НОВА-Брит»","Вязьма, Смоленская область","2005 г.","80 тыс. т","Битумопроизводные продукты для дорожного, аэродромного строительства, жилищно-коммунального хозяйства, мосто- и метростроения: битумные мастики и герметики, битумно-полимерные стыковочные ленты, битумные эмульсии, ПБВ, полимерно-битумные эмульсионные мастики, защитно-восстановительные составы, «жидкая» резина"]
["Сальский битумный терминал ","ООО «Газпромнефть — Битумный Терминал Юг»","Сальск, Ростовская область","2018 г.","Производство:\n60 тыс. т ПБВ\nПеревалка:\n120 тыс. т битумов нефтяных дорожных","ПБВ"]
["АО «СОВХИМТЕХ», ООО «Полиэфир», \nООО «БСВ-ХИМ»","Группа компаний «Росполихим»","Нижний Новгород","2001 г.","30 тыс. т продукции,\nв т. ч. 5 тыс. т масел","Авиационные, гидравлические, закалочные, компрессорные, вакуумные, трансмиссионные, холодильные, индустриальные масла, масла для прокатных станов, смазочно-охлаждающие жидкости, пластификаторы, консервационные смазочные материалы, противообледенительная жидкость, винилин, присадки, базовые основы для смазочных материалов"]
["НПЗ","ООО «Газпром нефтехим Салават»","Салават, Республика Башкортостан","1955 г.","10,0 млн т нефти и стабильного газового конденсата","Бензин автомобильный, фракция пентан-изопентановая, изомеризат, фракция изопентановая, бензол нефтяной, толуол нефтяной, дизельное топливо, мазут, топливо нефтяное АВТ, сырье для производства вязких нефтяных дорожных битумов, сера техническая, битумы нефтяные"]
["Завод «Мономер»","ООО «Газпром нефтехим Салават»","Салават, Республика Башкортостан","1991 г.","165,7 тыс. т полиэтилена,\n45,9 тыс. т полистирола,\n202,0 тыс. т стирола,\n230,0 тыс. т этилбензола,\n369,0 тыс. т этилена,\n163,0 тыс. т пропилена,\n152,3 тыс. т бензола,\n183,8 тыс. т спиртов,\n37,6 тыс. т 2-этилгексанола,\n21,9 тыс. т водорода,\n38,4 тыс. т пластификатора ДОФ,\n16,3 тыс. т фталевого ангидрида","Этилен, пропилен, бензол, фракция пентан-изопренциклопентадиеновая, фракция бутилен-бутадиеновая, смола пиролизная тяжелая, стирол, этилбензол, полистиролы, полиэтилен высокой плотности, полиэтилен высокого давления, спирт нормальный бутиловый технический, спирт изобутиловый технический, 2-этилгексанол, пластификатор ДОФ"]
["Газохимический завод","ООО «Газпром нефтехим Салават»","Салават, Республика Башкортостан","1964 г.","604,8 тыс. т аммиака,\n701,7 тыс. т карбамида","Аммиак, карбамид, аммиачная вода"]
["Завод по производству акриловой кислоты и бутилакрилата","ООО «Акрил Салават»","Салават, Республика Башкортостан","2016 г.","80 тыс. т бутилакрилата, \n35 тыс. т ледяной акриловой кислоты (полимерного качества)","Бутилакрилат, ледяная акриловая кислота"]
[]
["Кроме того, Группа Газпром имеет доступ к мощностям:"]
["Наименование","Компания","Местоположение","Год ввода в эксплуатацию / \nгод создания","Годовая мощность по переработке сырья / производству продукции \n(по состоянию на 31.12.2020 г.)","Основная продукция"]
["Ярославнефтеоргсинтез","ПАО «Славнефть-ЯНОС»","Ярославль","1958−1961 гг.","15,0 млн т нефти","Бензин автомобильный, бензин газовый стабильный, дизельное топливо, авиакеросин, мазут, масла, ароматические углеводороды, сера, серная кислота, парафино-восковая продукция"]
["Мозырский НПЗ","ОАО «Мозырский НПЗ»","Мозырь (Республика Беларусь)","1975 г.","14,0 млн т нефти","Бензины автомобильные, керосин осветительный, дизельное топливо, топливо печное бытовое, топочный мазут, битумы нефтяные, СУГ, вакуумный газойль, бензол нефтяной"]
["НПП Нефтехимия","ООО «НПП «Нефтехимия» \n(СП с ПАО «СИБУР Холдинг»)","Москва","2003 г.","150,0 тыс. т","Полипропилен"]
["Полиом","ООО «Полиом» \n(СП с ПАО «СИБУР Холдинг»)","Омск","2013 г.","218,4 тыс. т ","Полипропилен"]
["Тоталь – ПМБ","ООО «Газпромнефть — Тоталь ПМБ» \n(СП с концерном Total)","Москва","2014 г.","40,0 тыс. т","Полимерно-модифицированные битумы и полимер-битумное вяжущее, битумная эмульсия"]
["Южно-Приобский ГПЗ","ООО «Южно-Приобский ГПЗ» \n(СП с ПАО «СИБУР Холдинг»)","Ханты-Мансийск","2015 г.","900,0 млн м3 ПНГ","Сухой отбензиненный газ, ШФЛУ"]
[]
["Вернуться к содержанию"]

{"sheet":"Проекты на действующ. ГПЗ и НПЗ","index":28,"n_rows":28,"n_cols":6,"rows_kept":28,"cut":false,"hidden":false,"merged":[[0,0,0,5],[2,0,3,0],[6,0,12,0],[2,1,3,1],[4,1,5,1],[6,1,12,1],[20,3,22,3],[20,5,22,5],[24,0,24,5],[25,0,25,5],[4,0,5,0],[13,0,14,0],[18,0,23,0],[13,1,14,1],[15,0,16,0],[15,1,16,1],[18,1,23,1]]}
["Основные инвестиционные проекты на действующих предприятиях по переработке углеводородного сырья, производству газо- и нефтехимической продукции Группы Газпром"]
["Предприятие","Компания","Наименование проекта","Цель проекта","Проектная мощность по переработке сырья / производству продукции, \nиные характеристики проекта","Год ввода в эксплуатацию / эксплуатационной готовности"]
["Астраханский ГПЗ","ООО «Газпром переработка»","Стройка «Реконструкция I и II очередей Астраханского газового комплекса (АГК) как единого промышленного объекта»","Увеличение глубины переработки сырья, повышение качества и экологических характеристик товарной продукции (дизельное топливо, бензин).","В результате реализации проекта планируется обеспечить гарантированную переработку конденсата и ШФЛУ в объеме, соответствующем приему на переработку 12,0 млрд м3 газа в год.","2023 г."]
[null,null,"Реконструкция Астраханского ГПЗ для получения этановой фракции","Увеличение глубины переработки сырья, производство нового вида товарной продукции — этановой фракции.","До 320 тыс. т в год этановой фракции для последующего производства полиэтилена","2027 г."]
["Завод по производству метанола, метанольного формалина и карбамидоформальдегидного концентрата","ООО «Газпром метанол»","Проект по увеличению мощности производства метанола (2-я очередь)","Увеличение производительности агрегата до 3 100 т в сутки.","Сырье: \n1 020 млн м3 газа\nВыработка: \n1 000 тыс. т метанола","2023 г."]
[null,null,"Техническое перевооружение","Модернизация существующего технологического оборудования производств метанола, метанольного формалина и карбамидоформальдегидного концентрата.","Без изменения","Ежегодно"]
["Омский НПЗ","АО «Газпромнефть-ОНПЗ»","Строительство комплекса глубокой переработки нефти в составе установки гидрокрекинга вакуумного газойля, установок по производству водорода и серы*","Увеличение производства высокооктановых бензинов, авиакеросина и дизельного топлива.","2,0 млн т вакуумного газойля в год","2021 г."]
[null,null,"Строительство комбинированной установки первичной переработки нефти (ЭЛОУ-АВТ)*","Замена устаревших установок, обеспечение раздельной переработки нефти и газового конденсата для улучшения низкотемпературных свойств авиакеросинов.","8,4 млн т в год по нефти и 1,2 млн т в год по стабильному газовому конденсату","2021 г."]
[null,null,"Строительство установки замедленного коксования*","Прекращение выпуска мазута и увеличение производства светлых нефтепродуктов и кокса анодного качества.","2,0 млн т гудрона в год","2021 г."]
[null,null,"Строительство установки гидроочистки и депарафинизации дизельного топлива","Замена двух установок гидроочистки, увеличение объема производства зимнего дизельного топлива.","2,5 млн т в год","2021 г."]
[null,null,"Реконструкция установки замедленного \nкоксования 21-10/3М","Замена морально и физического устаревшего оборудования с увеличением межремонтного периода установки с 2 до 4 лет и возможностью производства игольчатого кокса.","767 тыс. т в год","2022 г."]
[null,null,"Реконструкция установки каталитического риформинга","Переработка вторичных бензинов и исключение высокосернистых низкооктановых компонентов.","Увеличение мощности с 600 тыс. т в год до 900 тыс. т в год","2021 г."]
[null,null,"Строительство очистных сооружений","Снижение концентрации вредных веществ в промышленных стоках, сокращение открытых площадных источников, снижение потребления свежей воды за счет возврата очищенных стоков на повторное использование.","3 450 м3 в час ","2022 г."]
["Московский НПЗ","АО «Газпромнефть-МНПЗ»","Строительство комплекса глубокой переработки нефти в составе установок гидрокрекинга и замедленного коксования, по производству серы и производству водорода*  ","Снижение выпуска мазута, увеличение производства светлых нефтепродуктов.","2,0 млн т вакуумного газойля и 2,4 млн т гудрона в год","2023–2025 гг. \n(поэтапный ввод)"]
[null,null,"Строительство автоматизированной установки тактового налива светлых нефтепродуктов в железнодорожный транспорт","Увеличение мощности системы отгрузки топлив, минимизация негативного воздействия на окружающую среду.","5,8 тыс. т нефтепродуктов в сутки, или 2,1 млн т нефтепродуктов в год","2023 г."]
["НПЗ \n(г. Панчево)","NIS","Реконструкция установки каталитического крекинга","Увеличение производительности установки.","Увеличение производительности с 600 до 660 тыс. т в год","2024 г."]
[null,null,"Строительство установки производства этил-трет-бутилового эфира","Производство биокомпонентов моторного топлива.","55 тыс. т в год","2024 г."]
["Омский завод смазочных материалов (ОЗСМ) ","ООО «Газпромнефть — смазочные материалы»","Строительство комплекса гидроизодепарафинизации остатка гидрокрекинга","Получение базовых масел групп II и III, которое позволит отказаться от использования импортных базовых масел в производстве синтетических смазочных материалов, снизить их себестоимость и расширить ассортимент.","220 тыс. т в год","2022–2023 гг."]
["НПЗ","ООО «Газпром нефтехим Салават»","Строительство комплекса каталитического крекинга","Углубление переработки вакуумного газойля и гидроочищенного вакуумного газойля с получением высокооктанового компонента товарных бензинов.","1,095 млн т вакуумного газойля в год","2021 г."]
[null,null,"Строительство производства элементарной серы (первая нитка)","Переработка дополнительных объемов сероводорода, образующегося на установках гидроочистки НПЗ после увеличения переработки высокосернистого сырья."," 60 тыс. т в год","2021 г."]
[null,null,"Реконструкция:","Увеличение производства товарных бензинов высокого экологического класса Евро-5.",null,"2021–2022 гг. \n(поэтапный ввод)"]
[null,null,"установки гидроочистки вакуумного газойля",null,"1,2 млн т в год по сырью"]
[null,null,"блока предгидроочистки установки каталитического риформинга",null,"1,0 млн т по сырью"]
[null,null,"Реконструкция очистных сооружений","Повышение качества очистки сточных вод до соответствия требованиям, предъявляемым к воде водных объектов рыбохозяйственного назначения высшей категории, хозяйственно-бытового, рекреационного водопользования; существенное увеличение доли повторного водоснабжения; двукратное уменьшение территории очистных сооружений; снижение выбросов вредных веществ в атмосферу.","x","2021–2023 гг. \n(поэтапный ввод)"]
["* Проекты увеличения глубины переработки."]
["Примечание. Информация приведена по состоянию на 31 декабря 2020 г. Сроки по вводу объектов в эксплуатацию и выходу на проектную производительность могут изменяться в зависимости от ситуации на рынке энергоносителей."]
[]
["Вернуться к содержанию"]

{"sheet":"Проекты Группы в переработке","index":29,"n_rows":21,"n_cols":6,"rows_kept":21,"cut":false,"hidden":false,"merged":[[0,0,0,5],[1,3,1,4],[2,3,2,4],[3,3,3,4],[4,3,4,4],[12,3,12,4],[13,3,13,4],[17,3,17,4],[18,3,18,4],[5,3,5,4],[14,0,14,5],[16,0,16,5],[7,0,7,5],[6,3,6,4],[8,0,8,5],[10,0,10,5],[11,3,11,4]]}
["Основные проекты Группы Газпром по созданию новых предприятий по переработке углеводородного сырья, производству продукции газо- и нефтехимии"]
["Наименование и цель проекта","Компания","Местоположение","Годовая проектная мощность по переработке сырья / производству продукции",null,"Год ввода \nв эксплуатацию"]
["Новоуренгойский газохимический комплекс (ГХК). \nЦель — переработка газов деэтанизации конденсата, месторождений Надым-Пур-Тазовского региона.\nПотенциальными рынками сбыта товарной продукции являются российские потребители, европейский и азиатский рынки.","ООО «Газпром Новоуренгойский газохимический комплекс»","Новый Уренгой","1 456 тыс. т этансодержащего газа, \n400 тыс. т полиэтилена низкой плотности\n",null,"Будет определен по результатам диагностического обследования объекта"]
["Амурский ГПЗ.\nЦель — комплексная переработка газа Якутского и Иркутского центров газодобычи. ","ООО «Газпром переработка Благовещенск»","Свободненский район, \nАмурская область","Переработка 42,0 млрд м3 природного газа.\nПроизводство\n38,0 млрд м3 товарного газа, \nдо 2,4 млн т этана, \nдо 1,56 млн т СУГ,\nдо 0,2 млн т ПГФ, \nдо 60,0 млн м3 гелия*",null,"Пуск первого пускового комплекса — 2021 г., остальных пусковых комплексов — 2022–2024 гг.\nВыход на проектную мощность — 2025 г."]
["Установка стабилизации конденсата ачимовских залежей Надым-Пур-Тазовского региона.\nЦель — создание на севере Тюменской области схемы подготовки и транспорта тяжелого парафинистого сырья (нефти и конденсата ачимовских залежей).","ООО «Газпром переработка»","Пуровский район, ЯНАО","По нестабильному конденсату — 4,0 млн т, \nпо деэтанизированному конденсату — 2,4 млн т,\nпо стабильному конденсату — 1,2 млн т,\nпо газам деэтанизации — 0,4 млрд м3",null,"2021 г."]
["Комплекс по переработке природного газа в этилен и пропилен с последующей переработкой олефинов в нефтехимические производные на базе ООО «Газпром нефтехим Салават».\nЦель — монетизация природного газа за счет производства продукции с высокой добавленной стоимостью.","ООО «Газпром нефтехим Салават»","Салават, Республика Башкортостан","Перспективные объемы доступного сырья — от 1,5 до \n3,0 млрд м3 природного газа*",null,"2026 г."]
["Производство катализаторов\nЦели:\n■ Создание нового наукоемкого бизнес направления в ПАО «Газпром нефть» по производству и сервисному сопровождению катализаторов каталитического крекинга, гидроочистки и гидрокрекинга.\n■ Решение вопросов импортозамещения и  коммерциализации собственных инноваций.\n■ Организация масштабного высокотехнологичного производства современных эффективных катализаторов нефтепереработки для обеспечения потребностей НПЗ Газпром нефти и других НПЗ России, стран СНГ и развивающихся стран дальнего зарубежья.","ООО «Газпромнефть — КС»","Омск","21 тыс. т катализаторов",null,"2022 г."]
["* Приведено в нормальных кубических метрах газа, которые соответствуют кубическим метрам газа, измеренным под давлением в одну атмосферу при  0° С."]
["Примечание. Информация приведена по состоянию на 31 декабря 2020 г."]
[]
["Проекты Группы Газпром по транспортировке жидких углеводородов из Надым-Пур-Тазовского региона"]
["Наименование проекта","Компания","Местоположение","Годовая проектная производительность",null,"Год ввода \nв эксплуатацию"]
["Нефтеперекачивающая станция Уренгойская ","ООО «Газпром инвест»","Пуровский район, ЯНАО","Транспортировка 5,0 млн т углеводородов",null,"2021 г."]
["Нефтеконденсатопровод Уренгой — Пурпе","ООО «Газпром инвест»","Пуровский район, ЯНАО","Транспортировка 5,0 млн т углеводородов ",null,"2021 г."]
["Примечание. Информация приведена по состоянию на 31 декабря 2020 г. Сроки по вводу объектов в эксплуатацию и выходу на проектную производительность могут изменяться в зависимости от ситуации \nна рынке энергоносителей."]
[]
["Мощности Группы Газпром по транспортировке жидких углеводородов из Надым-Пур-Тазовского региона"]
["Наименование проекта","Компания","Местоположение","Годовая проектная производительность",null,"Год ввода \nв эксплуатацию"]
["Конденсатопровод Уренгой — Сургут \n(II нитка).\nУчасток км 107 — км 288","ООО «Газпром переработка»","Пуровский район, ЯНАО","Транспортировка 12,0 млн т углеводородов ",null,"2018 г."]
[]
["Вернуться к содержанию"]

{"sheet":"СПГ проекты Группы","index":30,"n_rows":11,"n_cols":6,"rows_kept":11,"cut":false,"hidden":false,"merged":[[4,0,4,5],[5,1,5,3],[6,1,6,3],[7,1,7,3],[8,0,8,5],[0,0,0,5],[1,0,1,1],[1,2,1,3],[2,0,2,1],[2,2,2,3]]}
["Мощности Группы Газпром по приему, хранению и регазификации СПГ"]
["Наименование",null,"Назначение",null,"Годовая проектная производительность ","Год ввода \nв эксплуатацию"]
["Терминал по приему, хранению и регазификации СПГ на базе плавучей регазификационной установки в Калининградской области",null,"Обеспечение энергобезопасности Калининградской области",null,"3,7 млрд м3 газа","2018 г."]
[]
["Перспективные проекты Группы Газпром по производству мало- и среднетоннажного СПГ"]
["Наименование","Целевые рынки сбыта",null,null,"Годовая проектная производительность ","Год ввода \nв эксплуатацию"]
["Комплекс по производству, хранению и отгрузке СПГ (КСПГ) вблизи КС Портовая","Рынки стран региона Балтийского и Северного морей, бункеровка судов СПГ в Балтийском море, при необходимости — поставки СПГ на регазификационный терминал в Калининградской области ",null,null,"1,5 млн т СПГ","2021 г."]
["Завод по производству СПГ в районе г. Владивостока","Страны Азиатско-Тихоокеанского региона, включая Китай и Японию, а также бункеровка судов СПГ, в том числе на Дальнем Востоке России",null,null,"Будет определена по итогам разработки Обоснования инвестиций","Будет определен по итогам разработки Обоснования инвестиций"]
["Примечание. Информация приведена по состоянию на 31 декабря 2020 г. Сроки по вводу объектов в эксплуатацию и выходу на проектную производительность могут изменяться в зависимости от ситуации \nна рынке энергоносителей."]
[]
["Вернуться к содержанию"]

{"sheet":"Проекты с участием Группы","index":31,"n_rows":7,"n_cols":6,"rows_kept":7,"cut":false,"hidden":false,"merged":[[4,0,4,5],[0,0,0,5]]}
["Перспективные проекты по переработке углеводородного сырья, производству крупнотоннажного СПГ с участием Группы Газпром"]
["Наименование и цель проекта","Компания","Местоположение","Условия участия Группы Газпром","Годовая проектная мощность по переработке сырья / производству продукции","Год ввода \nв эксплуатацию"]
["Интегрированный комплекс по переработке и сжижению природного газа в Усть-Луге.\nЦель — комплексная переработка этансодержащего газа Надым-Пур-Тазовского региона ЯНАО.\nЦелевыми рынками сбыта СПГ являются страны Атлантического региона, Ближнего Востока, Южной Азии, предполагается проведение  маркетинговых исследований.","ООО «РусХимАльянс»\n(создано на паритетной основе ООО «Газпром инвест РГК» (дочернее общество \nООО «Газпром межрегионгаз») и \nАО «РусГазДобыча»)","Ленинградская область, Кингисеппский район","Финансирование проекта со стороны ПАО «Газпром» в доле: \n50 % — до привлечения проектного финансирования;\n15 % — после привлечения проектного финансирования.","Переработка 45 млрд м3 природного газа с производством сухого отбензиненного газа, СУГ, этановой и пентан-гексановой фракции, производство 13 млн т СПГ","Первая очередь — 2024 г.,\nвторая очередь — 2025 г. "]
["Третья технологическая линия завода СПГ проекта «Сахалин-2».\nЦелевыми рынками сбыта СПГ являются страны Азиатско-Тихоокеанского региона.  ","Sakhalin Energy Investment Company Ltd.\n(ассоциированная организация Группы Газпром)","о. Сахалин","Будут определены по результатам совместного решения акционеров Sakhalin Energy Investment Company Ltd.","До 5,4 млн т СПГ","Будет определен по результатам совместного решения акционеров Sakhalin Energy Investment Company Ltd."]
["Примечание. Информация приведена по состоянию на 31 декабря 2020 г. Сроки по вводу объектов в эксплуатацию и выходу на проектную производительность могут изменяться в зависимости от ситуации \nна рынке энергоносителей."]
[]
["Вернуться к содержанию"]

{"sheet":"Электроэнергетика","index":32,"n_rows":104,"n_cols":15,"rows_kept":104,"cut":false,"hidden":false,"merged":[[52,0,52,14],[53,1,53,14],[99,0,99,14],[100,0,100,14],[101,0,101,14],[53,0,54,0],[78,0,78,14],[79,0,80,0],[79,1,79,14],[74,0,74,16383],[75,0,75,16383],[76,0,76,16383],[50,0,50,14],[0,0,0,14],[1,0,1,14],[2,1,2,14],[48,0,48,14],[49,0,49,9],[2,0,3,0],[27,0,27,14],[28,0,29,0],[28,1,28,14],[23,0,23,16383],[24,0,24,16383],[25,0,25,16383]]}
["Электроэнергетика"]
["Электрические мощности Группы Газпром, МВт"]
["Генерирующая компания","По состоянию на 31 декабря"]
[null,2007,2008,2009,2010,2011,2012,2013,2014,2015,2016,2017,2018,2019,2020]
["На территории России"]
["Газпром энергохолдинг"]
["ПАО «Мосэнерго» ",11117,11904,11918,11900,12305,12299,12262,12737,12915,12963,12873,12798,12825,12825]
["ПАО «МОЭК» и его дочерние общества*","х","х","х","х","х","х",193,166,129,"–","–","–","–","–"]
["ПАО «ОГК-2»","х",8695,8695,8707,17869,18448,17995,18422,18024,18955,18997,18828,19012,17608]
["ОАО «ОГК-6»**","х",9052,9052,9162,"х","х","х","х","х","х","х","х","х","x"]
["ПАО «ТГК-1» и его дочерние общества","х","х",6313,6266,6837,6870,7238,7164,7057,6951,6950,6950,6918,6924]
["Всего",{"$f":"B7","v":11117},{"$f":"C7+C9+C10","v":29651},{"$f":"D7+D9+D10+D11","v":35978},{"$f":"E7+E9+E10+E11","v":36035},{"$f":"F7+F9+F11","v":37011},37617,37688,38489,38125,38869,38820,38576,38755,37357]
["Прочие активы"]
["Газпром нефтехим Салават***","х","х","х","х","х","х",541,541,541,893,893,893,893,893]
["Другие","–","–","–","–","–","–","–","–","–",3,3,3,3,3]
["Всего","х","х","х","х","х","х",541,541,541,{"$f":"K14+K15","v":896},896,896,896,896]
["Итого на территории России",11117,29651,35978,36035,37011,37617,38229,39030,38666,39765,39716,38472,39651,38253]
["На территории зарубежных стран"]
["ЗАО «Каунасская теплофикационная электростанция» (Литва)",170,170,170,170,170,170,"х","х","х","х","х","х","х","x"]
["ЗАО «Газпром Армения»","х","х","х","х",467,467,467,467,467,467,467,467,467,467]
["Другие","–","–","–","–","–","–","–","–","–",13,13,12,12,13]
["Итого на территории зарубежных стран",170,170,170,170,637,637,467,467,467,480,480,479,479,480]
["Итого",{"$f":"B17+B22","v":11287},29821,36148,36205,37648,38254,38696,39497,39133,40245,40196,39951,40130,38733]
["* Показатели приведены с момента установления контроля."]
["** В ноябре 2011 г. ОАО «ОГК-6» реорганизовано путем присоединения к ОАО «ОГК-2»."]
["*** Показатели приведены начиная с 2013 г."]
[]
["Тепловые мощности Группы Газпром, Гкал/ч"]
["Генерирующая компания","По состоянию на 31 декабря"]
[null,2007,2008,2009,2010,2011,2012,2013,2014,2015,2016,2017,2018,2019,2020]
["На территории России"]
["Газпром энергохолдинг"]
["ПАО «Мосэнерго» ",34297,34167,34900,34852,35083,35011,34809,40371,"43 315",42894,42761,43136,43211,43777]
["ПАО «МОЭК» и его дочерние общества*","х","х","х","х","х","х",17529,10546,6845,7036,7236,7091,6661,5519]
["ПАО «ОГК-2»","х",1700,1700,1649,4316,4473,4474,4336,4336,4169,4162,3934,3959,2827]
["ОАО «ОГК-6»**","х",2700,2700,2704,"х","х","х","х","х","х","х","х","х","x"]
["ПАО «ТГК-1» и его дочерние общества","х","х",14362,14426,14616,14497,14234,14152,14142,14532,13646,13745,13485,13480]
["Всего",{"$f":"B33","v":34297},{"$f":"C33+C35+C36","v":38567},{"$f":"D33+D35+D36+D37","v":53662},{"$f":"E33+E35+E36+E37","v":53631},{"$f":"F33+F35+F37","v":54015},{"$f":"G33+G35+G37","v":53981},{"$f":"H33+H35+H37+H34","v":71046},{"$f":"I33+I35+I37+I34","v":69405},68638,68631,67805,67906,67316,65603]
["Прочие активы"]
["Газпром нефтехим Салават***","х","х","х","х","х","х",1619,1619,1619,2352,2352,2352,2429,2429]
["Другие","–","–","–","–","–","–","–","–","–",759,801,518,489,499]
["Всего","–","–","–","–","–","–",1619,1619,1619,3111,3153,2870,2918,2928]
["Итого на территории России",{"$f":"B38","v":34297},38567,53662,53631,54015,53981,{"$f":"H38+H42","v":72665},{"$f":"I38+I42","v":71024},70257,70742,70958,70776,70234,68531]
["На территории зарубежных стран"]
["ЗАО «Каунасская теплофикационная электростанция» (Литва)",894,894,894,894,894,894,"х","x","x","x","x","x","x","x"]
["Другие","–","–","–","–","–","–","–","–","–",9,9,9,28,28]
["Итого на территории зарубежных стран",{"$f":"B45","v":894},894,894,894,894,894,"–","–","–",9,9,9,28,28]
["Итого",{"$f":"B43+B47","v":35191},39461,54556,54525,54909,54875,{"$f":"H43","v":72665},{"$f":"I43","v":71024},{"$f":"J43","v":70257},{"$f":"K43+K47","v":70751},{"$f":"L43+L47","v":70967},70785,70262,68559]
["* Показатели приведены с момента установления контроля. Начиная с 2015 г. показатели приводятся с учетом дочерних обществ ПАО «МОЭК» — ООО «ТСК Новая Москва» и ООО «ТСК Мосэнерго»."]
["** В ноябре 2011 г. ОАО «ОГК-6» реорганизовано путем присоединения к ОАО «ОГК-2»."]
["*** Показатели приведены начиная с 2013 г. Начиная с 2018 г. установленные тепловые мощности Ново-Салаватская ТЭЦ в составе Газпром нефтехим Салавата приводятся с учетом установленной тепловой мощности паровых котлов."]
[]
["Производство электроэнергии Группой Газпром, млрд кВт●ч"]
["Генерирующая компания","За год, закончившийся 31 декабря"]
[null,2007,2008,2009,2010,2011,2012,2013,2014,2015,2016,2017,2018,2019,2020]
["На территории России"]
["Газпром энергохолдинг"]
["ПАО «Мосэнерго» ",31.9,64.27,61.75,64.97,64.650000000000006,61.33,58.64,56.67,54.71,59.07,57.87,58.31,60.11,54.43]
["ПАО «МОЭК» и его дочерние общества*","х","х","х","х","х","х",0.39,0.41,0.13,"–","–","–","–","–"]
["ПАО «ОГК-2»","х",24.9,47.17,47.59,79.8,75.2,70.66,68.69,64.36,67.09,63.43,58.92,54.69,44.25]
["ОАО «ОГК-6»**","х",19.5,28.953028563,34.89,"х","х","х","x","x","x","x","x","x","x"]
["ПАО «ТГК-1» и его дочерние общества","х","х","х",27.16,28.36,30.39,29.3,26.43,25.81,27.67,29.51,29.33,28.27,27.91]
["Всего",{"$f":"B58","v":31.9},{"$f":"C58+C60+C61","v":108.66999999999999},{"$f":"D58+D60+D61","v":137.87302856299999},{"$f":"E58+E60+E61+E62","v":174.60999999999999},{"$f":"F58+F60+F62","v":172.81},{"$f":"G58+G60+G62","v":166.92000000000002},158.99,152.19999999999999,145.01,153.82999999999998,150.81,146.56,143.07,126.59]
["Прочие активы"]
["Газпром нефтехим Салават***","х","х","х","х","х","х",2.4700000000000002,2.37,2.35,2.9,4.6500000000000004,4.9400000000000004,4.92,4.38]
["Другие","–","–","–","–","–","–","–","–","–",0,0,0,0.01,0.01]
["Всего","–","–","–","–","–","–",2.4700000000000002,2.37,2.35,2.9,4.6500000000000004,4.9400000000000004,4.93,4.3899999999999997]
["Итого на территории России",{"$f":"B63","v":31.9},108.66999999999999,137.87302856299999,{"$f":"E63","v":174.60999999999999},172.81,166.92000000000002,161.46,154.57,147.36000000000001,156.72999999999999,155.46,151.5,148,130.97999999999999]
["На территории зарубежных стран"]
["ЗАО «Каунасская теплофикационная электростанция» (Литва)",0.6,0.71,0.6,0.4,0.4,0.3,"х","х","х","х","х","х","х","х"]
["ЗАО «Газпром Армения»","х","х","х","х","х",0.9,1.08,0.86,0.64,0.69,0.99,1.62,0.94,1.08]
["Другие","–","–","–","–","–","–","–","–","–",0.09,0.1,7.0000000000000007E-2,0.08,7.0000000000000007E-2]
["Итого на территории зарубежных стран",{"$f":"B70","v":0.6},{"$f":"C70","v":0.71},{"$f":"D70","v":0.6},{"$f":"E70","v":0.4},{"$f":"F70","v":0.4},{"$f":"G70+G71","v":1.2},1.08,0.86,0.64,0.78,1.0900000000000001,1.69,1.02,1.1499999999999999]
["Итого",{"$f":"B68+B73","v":32.5},109.37999999999998,138.47302856299999,175.01,173.21,168.12,162.54,155.43,148,157.51,156.55000000000001,153.19,149.02000000000001,132.13]
["* Показатели приведены с момента установления контроля."]
["** В ноябре 2011 г. ОАО «ОГК-6» реорганизовано путем присоединения к ОАО «ОГК-2»."]
["*** Показатели приведены начиная с 1 января 2013 г."]
[]
["Производство тепла Группой Газпром, млн Гкал"]
["Генерирующая компания","За год, закончившийся 31 декабря"]
[null,2007,2008,2009,2010,2011,2012,2013,2014,2015,2016,2017,2018,2019,2020]
["На территории России"]
["Газпром энергохолдинг"]
["ПАО «Мосэнерго» ",28,62.44,65.41,69.87,66.41,68.349999999999994,67.599999999999994,70.319999999999993,71.680000000000007,81.83,79.45,82.29,75.37,74.25]
["ПАО «МОЭК» и его дочерние общества*","x","x","x","x","x","x",7.7,18.43,10.74,6.09,5.79,10.17,9.07,8]
["ПАО «ОГК-2»","x",1.2,2.4,2.38,6.33,6.32,6.81,7.09,6.52,6.9,6.76,7.01,6.65,5.84]
["ОАО «ОГК-6»**","x",2.2000000000000002,4.38,4.3499999999999996,"x","x","x","x","x","x","x","x","x","x"]
["ПАО «ТГК-1» и его дочерние общества","x","x","x",28.82,26.05,26.44,25.32,24.34,23.02,24.44,24.71,24.89,24.17,23.05]
["Всего",{"$f":"B84","v":28},{"$f":"C84+C86+C87","v":65.84},{"$f":"D84+D86+D87","v":72.19},{"$f":"E84+E86+E87+E88","v":105.41999999999999},{"$f":"F84+F86+F88","v":98.789999999999992},{"$f":"G84+G86+G88","v":101.10999999999999},107.43,120.18,113.51,123.36,120.77,124.36,115.26,111.14]
["Прочие активы"]
["Газпром нефтехим Салават***","x","x","x","x","x","x",5.0999999999999996,5.04,5.1100000000000003,5.44,5.78,6.07,6.31,6.44]
["Другие","–","–","–","–","–","–","–","–","–",0.69,0.79,0.82,0.81,0.89]
["Всего","–","–","–","–","–","–",5.0999999999999996,5.04,5.1100000000000003,6.13,6.57,6.89,7.12,7.33]
["Итого на территории России",{"$f":"B89","v":28},65.84,72.19,105.41999999999999,98.789999999999992,101.10999999999999,112.53,125.22,118.62,129.49,127.34,131.25,122.38,118.47]
["На территории зарубежных стран"]
["ЗАО «Каунасская теплофикационная электростанция» (Литва)",1.3,1.26,1.3,1.4,1.4,1.4,"x","x","x","x","x","x","x","x"]
["Другие","–","–","–","–","–","–","–","–","–",0,"–","–","–","–"]
["Итого на территории зарубежных стран",{"$f":"B96","v":1.3},1.26,1.3,1.4,1.4,1.4,"–","–","–",0,"–","–","–","–"]
["Итого",{"$f":"B94+B98","v":29.3},67.100000000000009,73.489999999999995,106.82,100.19,102.50999999999999,112.53,125.22,118.62,129.49,127.34,131.25,122.38,118.47]
["* Показатели приведены с момента установления контроля. Начиная с 2015 г. показатели приводятся с учетом дочерних обществ ПАО «МОЭК» — ООО «ТСК Новая Москва» и ООО «ТСК Мосэнерго»."]
["** В ноябре 2011 г. ОАО «ОГК-6» реорганизовано путем присоединения к ОАО «ОГК-2»."]
["*** Показатели приведены начиная с 1 января 2013 г."]
[]
["Вернуться к содержанию"]

{"sheet":"Проекты в электроэнергетике ","index":33,"n_rows":46,"n_cols":6,"rows_kept":46,"cut":false,"hidden":false,"merged":[[7,1,8,1],[43,0,43,6],[41,0,41,6],[42,0,42,6],[29,0,37,0],[30,3,30,4],[30,5,30,6],[32,3,32,4],[33,3,33,4],[32,5,32,6],[33,5,33,6],[35,5,35,6],[35,3,35,4],[37,3,37,4],[37,5,37,6],[38,0,40,0],[38,1,40,1],[18,3,18,4],[22,0,28,0],[25,1,28,1],[27,3,27,4],[38,3,38,4],[29,1,30,1],[31,1,33,1],[34,1,35,1],[36,1,37,1],[31,3,31,4],[34,3,34,4],[29,3,29,4],[22,1,24,1],[22,3,22,4],[27,5,27,6],[28,3,28,4],[28,5,28,6],[25,3,25,4],[25,5,25,6],[26,3,26,4],[26,5,26,6],[11,0,11,6],[10,0,10,6],[16,1,17,1],[17,5,17,6],[17,3,17,4],[16,5,16,6],[38,5,38,6],[39,3,39,4],[39,5,39,6],[40,3,40,4],[40,5,40,6],[19,5,19,6],[19,3,19,4],[20,3,20,4],[20,5,20,6],[36,3,36,4],[36,5,36,6],[31,5,31,6],[29,5,29,6],[23,3,23,4],[34,5,34,6],[21,3,21,4],[21,5,21,6],[22,5,22,6],[23,5,23,6],[24,3,24,4],[24,5,24,6],[0,0,0,6],[1,0,1,6],[2,0,3,0],[2,1,3,1],[2,2,3,2],[2,3,2,6],[3,5,3,6],[7,2,8,2],[18,5,18,6],[4,5,4,6],[5,5,5,6],[6,5,6,6],[7,5,7,6],[8,5,8,6],[9,0,9,6],[13,0,13,6],[14,3,14,4],[14,5,14,6],[15,0,21,0],[15,3,15,4],[15,5,15,6],[16,3,16,4],[19,1,20,1]]}
["Инвестиционные проекты в электроэнергетике"]
["Основные проекты по созданию новых мощностей"]
["Объект","Компания","Назначение","Проектные характеристики"]
[null,null,null,"Количество и\nтип блоков","Установленная электрическая\nмощность","Год ввода в эксплуатацию"]
["Свободненская ТЭС","ООО «Свободненская ТЭС»","Обеспечение энергоснабжения Амурского ГПЗ","2 ПСУ","160,0 МВт","2021 г."]
["ТЭЦ в г. Панчево (Сербия)","Газпром энергохолдинг Сербия TE-TO Панчево о.о.о.","Обеспечение тепловой энергией НПЗ в \nг. Панчево, а также продажи электроэнергии на открытом рынке электроэнергии","ПГУ \n(2 ГТУ и ПСУ)","200,0 МВт","2021 г."]
["Малая ГЭС на р. Паз в Мурманской области*","ПАО «ТГК-1»","Увеличение выработки электроэнергии","ГА","16,5 МВт","2024 г."]
["Парогазовый дубль-блок Новочеркасской ГРЭС**","ПАО «ОГК-2»","Замещение угольных блоков новыми парогазовыми установками в целях повышения энергоэффективности и снижения негативного воздействия на окружающую среду","ПГУ \n(2 ГТУ и ПСУ)","324,0 МВт","2027 г."]
["Парогазовый моноблок Новочеркасской ГРЭС**",null,null,"ПГУ \n(ГТУ и ПСУ)","165,0 МВт","2027 г."]
["* Проект, отобранный по итогу конкурсного отбора инвестиционных проектов по строительству генерирующих объектов, функционирующих на основе возобновляемых источников энергии (ВИЭ), по которым планируется к осуществлению торговля мощностью по договору купли-продажи (поставки) мощности квалифицированных объектов ВИЭ (ДПМ ВИЭ)."]
["** Проекты, отобранные в рамках процедуры отбора проектов модернизации, предусматривающих установку газовых турбин, относимых к образцам инновационного энергетического оборудования (инновационные проекты ПГУ)."]
["Примечание. Сроки по вводу объектов в эксплуатацию могут изменяться в зависимости от ситуации на рынке энергоносителей."]
[]
["Основные проекты по реконструкции и модернизации"]
["Компания","Электростанция","Объект","Год начала поставки мощности / ввода в эксплуатацию",null,"Мощность после реализации проекта, МВт"]
["ПАО «ТГК-1»","Верхне-Туломская ГЭС-12","Гидроагрегаты № 1–4","2020–2023 гг.",null,300]
[null,"Автовская ТЭЦ","Турбоагрегат ТГ-7*","2022 г.",null,116.4]
[null,null,"Турбоагрегат ТГ-6*","2024 г.",null,120]
[null,"Центральная ТЭЦ  ","Водогрейная котельная Электростанции № 2","2023 г.",null,"849,0**"]
[null,"Северная ТЭЦ","Котельное оборудование энергоблока № 4 \n(ТГ-4)*","2025 г.",null,100]
[null,null,"Оборудование энергоблока № 2 (ТГ-2)*","2027 г.",null,100]
[null,"Василеостровская ТЭЦ","Турбоагрегат ТГ-4*","2027 г.",null,25]
["ПАО «ОГК-2»","Киришская ГРЭС","Паровая турбина ТГ-2 ПТ-60*","2022 г.",null,65]
[null,null,"Паровая турбина ТГ-1*","2024 г.",null,60]
[null,null,"Оборудование ТЭЦ-части с заменой паровой турбины ТГ-4 ПТ-60*","2025 г.",null,65]
[null,"Сургутская ГРЭС-1","Энергоблок № 13*","2025 г.",null,190]
[null,null,"Энергоблок № 16*","2025 г.",null,215]
[null,null,"Энергоблок № 2*","2027 г.",null,215]
[null,null,"Энергоблок № 12*","2027 г.",null,190]
["ПАО «Мосэнерго»","ТЭЦ-22 ","Оборудование энергоблока № 9","2021 г.",null,295]
[null,null,"Оборудование энергоблока № 10 (ТГ-10)*","2024 г.",null,250]
[null,"ТЭЦ-23","Турбоагрегат ТГ-4*","2024 г.",null,110]
[null,null,"Оборудование энергоблока № 7 (ТГ-7)*","2027 г.",null,259]
[null,null,"Турбоагрегат ТГ-3*","2027 г.",null,110]
[null,"ТЭЦ-21","Турбоагрегат ПТ-80 ст. № 7 (ТГ-7)*","2025 г.",null,80]
[null,null,"Турбоагрегат ТГ-6*","2027 г.",null,110]
[null,"ТЭЦ-25","Оборудование энергоблока № 4 (ТГ-4)*","2025 г.",null,257]
[null,null,"Оборудование энергоблока № 3 (ТГ-3)*","2027 г.",null,259]
["ООО «Ново-Салаватская ТЭЦ»","Ново-Салаватская ТЭЦ","Турбоагрегат ТГ-5*","2022 г.",null,105]
[null,null,"Турбоагрегат ТГ-1*","2023 г.",null,50]
[null,null,"Турбоагрегат ТГ-7*","2024 г.",null,135]
["* Проекты, отобранные в рамках процедуры конкурентного отбора проектов модернизации генерирующих объектов тепловых электростанций, по которым планируется к осуществлению торговля мощностью по договорам купли-продажи (поставки) мощности модернизированных генерирующих объектов."]
["** Данный показатель является результатом пересчета в мегаватты (МВт) тепловой мощности объекта равной 730,0 Гкал/ч."]
["Примечание. Сроки по вводу объектов в эксплуатацию могут изменяться в зависимости от ситуации на рынке энергоносителей."]
[]
["Вернуться к содержанию"]

{"sheet":"Реализация газа","index":34,"n_rows":124,"n_cols":12,"rows_kept":124,"cut":false,"hidden":false,"merged":[[107,1,107,11],[115,0,115,11],[116,1,116,11],[121,0,121,11],[47,1,47,11],[53,0,53,11],[55,0,55,11],[56,1,56,11],[104,0,104,11],[106,0,106,11],[46,0,46,11],[0,0,0,11],[1,0,1,11],[2,0,2,11],[4,1,4,11],[6,0,6,4],[24,0,24,11],[25,0,25,11],[27,0,27,11],[29,1,29,11],[43,0,43,11],[44,0,44,11]]}
["Маркетинг"]
["Реализация газа"]
["Выручка от продажи газа"]
["(за вычетом НДС, акциза и таможенных пошлин)"]
[null,"За год, закончившийся 31 декабря"]
[null,"2010*","2011*",2012,2013,2014,2015,2016,2017,2018,2019,2020]
["млн руб."]
["Россия",636843,738601,760885,794349,820567,805615,819924,875685,954493,970913,940155]
["Дальнее зарубежье",1099225,1439069,1469455,1682761,1752147,2165500,2140027,2221217,2951215,2490372,1811636]
["Страны БСС",450137,637178,529516,420320,411722,429660,309644,292777,348625,356102,295254]
["Ретроактивные корректировки цены на газ","–","–",-102749,74393,949,26482,33175,-49092,49338,-16657,2294]
["Всего",2186205,2814848,2657107,2971823,2985385,3427257,3302770,3340587,4303671,3800730,3049339]
["млн долл.**"]
["Россия",20962.574061882817,25131,24481,24901,21258,13138,12269,15018,15175,15020,12980]
["Дальнее зарубежье",36182.521395655036,48965,47280,52751,45392,35315,32022,38093,46919,38527,25012]
["Страны БСС",14816.886109282423,21680,17037,13176,10666,7007,4633,5021,5543,5509,4076]
["Ретроактивные корректировки цены на газ","–","–",-3306,2332,25,432,496,-842,784,-258,32]
["Всего",71961.981566820279,95776,85492,93160,77341,55892,49420,57290,68421,58798,42100]
["млн евро**"]
["Россия",15838,18059,19060,18739,16093,11849,11082,13264,12879,13420,11341.59846744774]
["Дальнее зарубежье",27337,35185,36810,39697,34363,31850,28923,33645,39822,34421,21854.745314520642]
["Страны БСС",11195,15579,13264,9916,8075,6319,4185,4435,4704,4922,3561.8087590959099]
["Ретроактивные корректировки цены на газ","–","–",-2574,1755,19,389,448,-744,666,-230,27.673763245768107]
["Всего",54370,68823,66560,70107,58550,50407,44638,50600,58071,52533,36787]
["* Показатели за 2010–2011 гг. не корректировались в соответствии с МСФО 11 «Совместное предпринимательство»."]
["**Данные не являются частью финансовой отчетности и рассчитаны по среднему обменному курсу за соответствующий период."]
[]
["Средняя цена реализации газа "]
["(за вычетом НДС, включая акциз и таможенные пошлины)"]
[null,"За год, закончившийся 31 декабря"]
[null,"2010*","2011*",2012,2013,2014,2015,2016,2017,2018,2019,2020]
["Россия"]
["руб. / 1 000 м3",2296.8000000000002,2631.7,2867.9,3264.6,3506.5,3641.3,3815.5,3808.3,3981.3,4118.2,"4 176,9"]
["долл.** / 1 000 м3",75.7,89.5,92.3,102.3,90.8,59.4,57.1,65.3,63.3,63.7,57.7]
["евро** / 1 000 м3",57,64.3,71.8,77,68.8,53.6,51.6,57.7,53.7,56.9,50.4]
["Дальнее зарубежье"]
["руб. / 1 000 м3",9166.6,11259.1,11969.8,12137.9,13487.2,15057.3,11763.3,11670.5,15499.5,13613,10355.9]
["долл. / 1 000 м3",301.8,383,385.1,380.5,349.4,245.6,176,200.2,246.4,210.6,143]
["евро** / 1 000 м3",227.6,275.3,299.8,286.3,264.5,221.5,159,176.8,209.1,188.2,124.9]
["Страны БСС"]
["руб. / 1 000 м3",7039,8509.2999999999993,9489.5,8499.9,10115.9,11911,10263.1,9237,10225.9,10175.9,"9 899,8"]
["долл. / 1 000 м3",231.7,289.5,305.3,266.5,262.10000000000002,194.2,153.6,158.4,162.6,157.4,136.69999999999999]
["евро** / 1 000 м3",174.8,208.1,237.7,200.5,198.4,175.2,138.69999999999999,139.9,138,140.6,119.4]
["* Показатели за 2010–2011 гг. не корректировались в соответствии с МСФО 11 «Совместное предпринимательство»."]
["**Данные не являются частью финансовой отчетности и рассчитаны по среднему обменному курсу за соответствующий период."]
[]
["Реализация газа Группой Газпром, млрд м3"]
[null,"За год, закончившийся 31 декабря"]
[null,"2010*","2011*",2012,2013,2014,2015,2016,2017,2018,2019,2020]
["Объем продаж газа в России",277.3,280.7,265.3,243.3,234,221.2,214.9,229.9,239.7,235.8,225.1]
["Объем продаж газа в дальнее зарубежье",148.1,156.6,151,174.3,159.4,184.4,228.3,242,243.3,232.4,219]
["Объем продаж газа в страны БСС",70.2,81.7,66.099999999999994,59.4,48.1,40.299999999999997,33.200000000000003,35,38.1,38.700000000000003,31.2]
["Всего",495.6,519,482.4,477,441.5,445.9,476.4,506.9,521.1,506.9,475.3]
["* Показатели за 2010–2011 гг. не корректировались в соответствии с МСФО 11 «Совместное предпринимательство»."]
[]
["Реализация газа Группой Газпром в зарубежные страны, млрд м3"]
[null,"За год, закончившийся 31 декабря"]
[null,2010,2011,2012,2013,2014,2015,2016,2017,2018,2019,2020]
["Объем продаж газа в дальнее зарубежье"]
["Европейские страны дальнего зарубежья"]
["Австрия",5.6,5.4,5.4,5.2,4.2,5,7.5,9.8000000000000007,9,9.1,10.6]
["Бельгия",0.5,"–","–","–","–",1.5,2.5,2.7,2.8,1.3,1.3]
["Болгария",2.2999999999999998,2.5,2.5,2.9,2.8,3.1,3.2,3.3,3.2,2.4,2.2999999999999998]
["Босния и Герцеговина",0.2,0.3,0.3,0.2,0.2,0.2,0.2,0.2,0.2,0.2,0.2]
["Великобритания",10.7,12.9,11.7,16.600000000000001,15.5,22.5,25.7,29.1,34.200000000000003,59,8.9]
["Венгрия",6.9,6.3,5.3,6,5.4,6,5.7,7,7.3,10.5,8.6]
["Германия",35.299999999999997,34.1,34,41,40.299999999999997,47.4,57.9,67.099999999999994,65.7,44.9,41.6]
["Греция",2.1,2.9,2.5,2.6,1.7,2,2.7,2.9,3.3,2.5,3.1]
["Дания","–","–",0.3,0.3,0.4,0.7,1.7,1.8,1.7,1.7,1.8]
["Ирландия","–","–",0.3,0.5,0.2,0.2,0.1,0.1,0.3,0.1,"–"]
["Испания","–","–","–","–","–","–","–",0.2,0.1,0.5,0.8]
["Италия",13.1,17.100000000000001,15.1,25.3,21.7,24.4,24.7,23.7,22.6,22,20.9]
["Нидерланды",4.3,4.5,2.9,2.9,4.7,8.4,27.5,17.399999999999999,21.4,16.3,48.1]
["Польша",11.8,10.3,13.1,12.9,9.1,8.9,11.1,10.5,9.9,9.6999999999999993,9.6999999999999993]
["Румыния",2.6,3.2,2.5,1.4,0.5,0.3,1.7,1.4,1.5,1.1000000000000001,1]
["Северная Македония",0.1,0.1,0.1,0,0.1,0.1,0.2,0.3,0.2,0.2,0.3]
["Сербия",2.1,2.1,1.9,2,1.5,1.9,1.9,2.2000000000000002,2.2000000000000002,2.2000000000000002,1.4]
["Словакия",5.8,5.9,4.3,5.5,4.4000000000000004,3.8,3.7,4.5,5,6.5,7.6]
["Словения",0.5,0.5,0.5,0.5,0.4,0.5,0.5,0.6,0.5,0.3,0.4]
["Турция",18,26,27,26.7,27.3,27,24.8,29,24,15.4,16.399999999999999]
["Финляндия",4.8,4.2,3.7,3.5,3.1,2.8,2.5,2.4,2.6,2.5,1.6]
["Франция",8.9,8.5,8.1999999999999993,8.6,7.6,10.5,12.5,13.3,13.3,13,14]
["Хорватия",1.1000000000000001,"–",0,0.2,0.6,0.6,0.8,2.8,2.8,2.8,1.8]
["Чехия",9,8.1999999999999993,8.3000000000000007,7.9,0.8,0.9,3.1,3.8,2.6,2.2000000000000002,4]
["Швейцария",0.3,0.3,0.3,0.4,0.3,0.3,0.3,0.4,0.6,0.3,0.4]
["Китай*",null,null,null,null,null,0.2,0.1,0.8,0.8,1.5,5]
["в т. ч. по магистральному газопроводу \n«Сила Сибири»",null,null,null,null,null,"x","x","x","x",0.3,4.0999999999999996]
["Другие страны дальнего зарубежья",2.1,1.3,0.8,1.2,6.6,5.2,5.7,4.7,5.5,4.2,7.2]
["Всего",148.09999999999997,156.6,151,174.3,159.4,184.4,228.3,242,243.3,232.4,219]
["Объем продаж газа в страны БСС"]
["Азербайджан","–","–","–","–","–",0.1,"–",0.4,1,"–","–"]
["Армения",1.4,1.6,1.7,1.7,1.8,1.8,1.8,1.8,1.8,2,2.1]
["Беларусь",21.6,23.3,19.7,19.8,19.600000000000001,18.399999999999999,18.3,18.8,20,19.899999999999999,18.399999999999999]
["Грузия",0.2,0.2,0.2,0.2,0.3,0.3,0.1,0.1,0,0.2,0.2]
["Казахстан",3.4,3.3,3.7,4.7,5.0999999999999996,4.7,4.7,4.8,6.2,7.7,3.4]
["Кыргызстан","–","–","–","–",0.1,0.3,0.3,0.3,0.3,0.3,0.3]
["Латвия",0.7,1.2,1.1000000000000001,1.1000000000000001,1,1.3,1.3,1.8,1.3,1.7,1.6]
["Литва",2.8,3.2,3.1,2.7,2.5,2.2000000000000002,0.9,1.4,1.4,0.9,0.9]
["Молдова",3.2,3.1,3.1,2.4,2.8,2.9,3,2.7,3,2.9,3.1]
["Узбекистан","–",0.3,"–",0.3,"–","–","–","–","–","–",0.9]
["Украина",36.5,44.8,32.9,25.8,14.5,7.8,2.4,2.4,2.7,2.8,"–"]
["Эстония",0.4,0.7,0.6,0.7,0.4,0.5,0.4,0.5,0.4,0.3,0.3]
["Южная Осетия",0,0,0,0,0,0,0,0,0,0,0]
["Всего",70.2,81.7,66.099999999999994,59.4,48.1,40.299999999999997,33.200000000000003,35,38.1,38.700000000000003,31.2]
["* В 2010–2014 гг. объемы реализации газа в Китай учтены в объемах реализации в «Другие страны дальнего зарубежья»."]
[]
["Участие Газпрома в обеспечении внутреннего потребления газа в России, млрд м3"]
[null,"За год, закончившийся 31 декабря"]
[null,2010,2011,2012,2013,2014,2015,2016,2017,2018,2019,2020]
["Внутреннее потребление газа в России",460.3,473,466.1,461.3,458.4,444.3,456.7,468,493.2,481,460.5]
["Поставка потребителям России по ГТС Газпрома*",351.7,362.5,360,351.7,353.7,339.4,348.8,351.3,361.7,353.9,338.8]
["в т. ч. Группой Газпром по ГТС (с учетом покупки у компаний, не входящих в Группу Газпром)",290.2,288.89999999999998,274.5,249.1,237.8,222,226.9,231.3,244.1,240,225.9]
["Поставка потребителям России по ГТС Газпрома от добычи Группы Газпром*",288.10000000000002,290.2,274.7,254.5,237,211.2,210.2,216.3,224.9,221.2,208.4]
["* Без учета технологических нужд ГТС."]
[]
["Средневзвешенные оптовые регулируемые цены на газ в России, руб. / 1 000 м3"]
["","За год, закончившийся 31 декабря"]
[null,null,null,2012,2013,2014,2015,2016,2017,2018,2019,2020]
["Все категории",null,null,2963,3393.2,3656.5,3759.4,3938.2,3988.5,4117.2,4224.8,"4 286,2"]
["Промышленные потребители",null,null,3105,3564.4,3848.9,3958.1,4158.1000000000004,4202.3,4316.3999999999996,4423.7,"4 499,2"]
["Население",null,null,2428.9,2801.1,3082.9,3253,3422.8,3512.9,3640,3734.4,"3 813,1"]
["Примечание. Без учета объемов газа, поставляемого в соответствии с Постановлением Правительства Российской Федерации от 28 мая 2007 г. № 333 «О совершенствовании государственного регулирования цен на газ»."]
[]
["Вернуться к содержанию"]

{"sheet":"Продажи СПГ","index":35,"n_rows":32,"n_cols":12,"rows_kept":32,"cut":false,"hidden":false,"merged":[[0,0,0,11],[1,1,1,11],[3,0,3,3],[28,0,28,11],[29,0,29,11]]}
["Объемы продаж крупнотоннажного СПГ Группой Газпром на рынки зарубежных стран"]
[null,"За год, закончившийся 31 декабря"]
[null,2010,2011,2012,2013,2014,2015,2016,2017,2018,2019,2020]
["трлн БТЕ"]
["Аргентина","–","–","–",18.899999999999999,41.1,16.2,19.7,"–","–","–","–"]
["Бельгия","–","–","–","–","–","–","–","–","–","–",3.8]
["Великобритания",3.5,4.7,"–","–","–","–","–","–","–",21.4,32.799999999999997]
["Греция","–","–","–","–","–","–","–","–","–","–",3.2]
["Египет","–","–","–","–","–",3.4,3.4,"–","–","–","–"]
["Индия","–",18.5,15,6.1,"–",18.7,22.7,9.9,36.1,39.9,94.7]
["Испания","–","–","–","–","–","–","–",6.5,2.9,10.9,25.5]
["Китай",19.600000000000001,28.3,19.7,"–",6.6,6.6,3.4,29.4,29.2,41.4,26.5]
["Кувейт","–",6.4,"–","–",3,3.3,3.3,16.899999999999999,20.100000000000001,"–",3.1]
["Малайзия","–","–","–","–",6.5,"–","–","–","–","–","–"]
["Нидерланды","–","–","–","–","–","–","–","–","–","–",50.7]
["Мексика","–","–","–","–","–","–",6.5,"–","–","–","–"]
["ОАЭ","–",3.2,"–","–","–","–",6.5,3.1,"–","–","–"]
["Республика Корея",19.399999999999999,16.2,9.4,25.2,36.200000000000003,26.5,3.3,13.2,26.4,20.2,30.2]
["Сингапур","–","–","–","–","–","–","–","–","–","–",3.3]
["Таиланд","–",3.1,"–","–","–","–","–",3.3,"–","–",3.1]
["Тайвань (Китай)",16.100000000000001,9.6999999999999993,6.3,"–","–",9.9,26,19.8,19.3,3.3,14]
["Франция","–","–","–","–","–","–","–","–","–","–",24.8]
["Япония",29.6,19.5,18.399999999999999,29,49.2,78.099999999999994,78.5,56.9,29.7,19.600000000000001,16.7]
["Поставки на условиях FOB","–","–","–","–",17.100000000000001,7,3,"–",21.4,23.5,50.8]
["Всего*",88.3,109.6,68.7,72.099999999999994,159.6,169.6,176.5,159.19999999999999,185,180.1,383.3]
["в т.ч. продажи СПГ с проекта \n«Сахалин-2»",75.2,45.8,29.6,29.7,53.1,86,59.4,72.900000000000006,70.099999999999994,60.1,69.900000000000006]
["Всего, млн т",1.85,2.2999999999999998,1.44,1.51,3.35,3.56,3.71,3.34,3.88,3.78,7.44]
["Всего, млрд м3",2.4700000000000002,3.07,1.92,2.02,4.47,4.75,4.9400000000000004,4.46,5.18,5.04,10.92]
["* Итоговые значения могут отличаться от сумм слагаемых в результате округлений. "]
["Примечание. Рассчитано в соответствии с принципами, используемыми при подготовке управленческой отчетности. В связи с различиями в методологии подготовки консолидированной финансовой и управленческой отчетности показатели, рассчитанные по данным методикам, могут быть несопоставимы. "]
[]
["Вернуться к содержанию"]

{"sheet":"Конечные потребители","index":36,"n_rows":19,"n_cols":12,"rows_kept":19,"cut":false,"hidden":false,"merged":[[0,0,0,11],[1,0,2,0],[1,1,1,11],[16,0,16,11]]}
["Объемы реализации газа конечным потребителям дочерними организациями Группы Газпром \nв странах дальнего зарубежья, млн м3"]
[null,"За год, закончившийся  31 декабря"]
[null,2010,2011,2012,2013,2014,2015,2016,2017,2018,2019,2020]
["Австрия","–","–","–","–","–",303.5,872.2,869.7,733.3,771.8,745.1]
["Бельгия","–","–","–","–","–",620.70000000000005,1530.7,1881.3,1736.4,1168.5,1013.3]
["Великобритания",1633.6,1959.6,2437,2682.7,2734.7,3028,3825.6,4610.7,4917.2,4935.3,4605.7]
["Венгрия","–","–","–","–","–",104.8,197.4,296.2,330.1,349.3,7]
["Германия","–","–","–","–","–",3665.7,13163.4,14892.5,14012.4,9992.6,10440]
["Ирландия",590.79999999999995,600.9,551.4,350.2,158,187.4,59.8,96.2,316.39999999999998,109.2,"–"]
["Нидерланды","–","–",18.8,31.5,29.4,1335.5,3220.8,2075,2991.5,2578.3000000000002,2227.9]
["Румыния","–","–","–","–","–",22.8,169.7,221.5,70.8,41.8,4.8]
["Северная Македония",null,"–","–","–",88.5,93,139.5,"–","–","–","–"]
["Словакия","–",31,40,72.599999999999994,"–","–",6.5,173.8,242,246.8,72.599999999999994]
["Франция",874,492.7,457.7,384.3,510.1,780.9,947.9,1014.3,1083,1621.9,1259.0999999999999]
["Чехия",409,398,526,390.7,"–",233.9,809.1,1755.3,1961.5,1123.3,976.8]
["Всего",3507.4,3482.2,4030.9,3912,3520.7,10376.200000000001,24942.6,27886.5,28394.6,22938.799999999999,21352.3]
["Примечание. Учтены объемы реализации газа Gazprom Germania GmbH и его дочерними организациями промышленным предприятиям, компаниям коммунально-бытового сектора, электростанциям."]
[]
["Вернуться к содержанию"]

{"sheet":"Газораспределение","index":37,"n_rows":45,"n_cols":12,"rows_kept":45,"cut":false,"hidden":false,"merged":[[19,0,20,0],[19,1,19,11],[42,0,42,11],[0,0,0,11],[1,0,2,0],[1,1,1,11],[15,0,15,11],[18,0,18,11],[16,0,16,11]]}
["Газораспределение и газификация в России"]
[null,"За год и по состоянию на 31 декабря"]
[null,2010,2011,2012,2013,2014,2015,2016,2017,2018,2019,2020]
["Протяженность наружных газопроводов, обслуживаемых дочерними и зависимыми газораспределительными организациями (ГРО) Газпрома, тыс. км",632.70000000000005,668.6,689.5,716.1,734,746.3,760.1,773.4,786.7,802.8,817.1]
["Транспортировка природного газа по газораспределительным системам, обслуживаемым дочерними и зависимыми ГРО Газпрома, млрд м3",225,226.2,253.4,248.7,246.7,231.3,208,239,239.7,232.6,223.2]
["Потребители, обслуживаемые дочерними и зависимыми ГРО Газпрома (природный газ), в т.ч.:"]
["квартиры и частные домовладения, млн ед.",23.9,25.7,26,26.7,27,26.8,27,28.5,27.7,28,28.3]
["промышленные объекты, тыс. ед.",19.7,22.3,21.8,22.6,31.5,32.799999999999997,32.9,31.6,32.4,32.799999999999997,33]
["сельскохозяйственные объекты, тыс. ед.",4.0999999999999996,4.4000000000000004,4.7,5.2,6.5,6.9,7.2,7.6,32.200000000000003,9.1,9.8000000000000007]
["котельные*, тыс. ед.",41.4,44.1,44.3,44.5,"x","x","x","x","x","x","x"]
["коммунально-бытовые объекты, тыс. ед.",218.2,230,241.9,255.1,286.89999999999998,303.60000000000002,312.3,326.10000000000002,332.6,344,353.6]
["Протяженность завершенных строительством межпоселковых газопроводов в рамках реализации программ газификации и газоснабжения регионов Российской Федерации, тыс. км ",2.1,2.5,3.4,2.5,1.4,1.3,1.4,1.8,2,1.9,2.2000000000000002]
["Уровень газификации природным газом**, в т.ч.:",0.629,0.63100000000000001,0.64400000000000002,0.65300000000000002,0.65400000000000003,0.66200000000000003,0.67200000000000004,0.68100000000000005,0.68600000000000005,0.70099999999999996,0.71399999999999997]
["города и поселки городского типа",0.69799999999999995,0.69899999999999995,0.70099999999999996,0.70899999999999996,0.70299999999999996,0.70399999999999996,0.70899999999999996,0.71399999999999997,0.71899999999999997,0.73,0.73699999999999999]
["сельская местность",0.45800000000000002,0.46700000000000003,0.53100000000000003,0.54,0.54600000000000004,0.56100000000000005,0.57099999999999995,0.58699999999999997,0.59399999999999997,0.61799999999999999,0.64800000000000002]
["* В связи с изменением методики учета с 2014 г. количество обслуживаемых котельных учитывается в составе категорий «Промышленные объекты» или «Коммунально-бытовые объекты» в зависимости от вида деятельности организации, заключившей договор на обслуживание объекта."]
["** Расчет показателей за 2010–2019 гг. выполнен от объема жилого фонда, фиксированного по состоянию на 2005 г. Начиная с показателей за 2020 г. уровень газификации природным газом определяется в соответствии с Методикой расчета показателей газификации, утвержденной приказом Минэнерго России от 2 апреля 2019 № 308."]
[]
["Деятельность Группы Газпром в области газораспределения на территории зарубежных стран"]
[null,"За год и по состоянию на 31 декабря"]
[null,null,null,null,2013,2014,2015,2016,2017,2018,2019,2020]
["Армения"]
["Протяженность обслуживаемых распределительных газопроводов, км",null,null,null,14069,14135,14330,14701,15063,18245,18808,18815]
["Объем транспортировки газа по газораспределительным сетям, млн м3",null,null,null,1883.8,2055.5,1861.7,1888.1,1985.2,2187,2233.1,2297.1999999999998]
["Обслуживаемые потребители, в т.ч.:"]
["Квартиры и частные домовладения, тыс. ед.",null,null,null,648,659,669,678,689,702,714,725]
["Промышленные объекты, ед.",null,null,null,1667,1766,1819,1873,1933,1991,2070,2146]
["Сельскохозяйственные объекты, ед.",null,null,null,387,448,476,508,566,654,800,903]
["Коммунально-бытовые объекты, ед.",null,null,null,11450,11931,12502,12254,13044,13522,14320,15900]
["Кыргызстан"]
["Протяженность обслуживаемых распределительных газопроводов, км",null,null,null,"x",2826,2861,2896,3093,3632,"3 717",3882]
["Объем транспортировки газа по газораспределительным сетям, млн м3",null,null,null,"x",239.3,261.10000000000002,262.7,282.5,312.39999999999998,314.39999999999998,324.8]
["Обслуживаемые потребители, в т.ч.:"]
["Квартиры и частные домовладения, тыс. ед.",null,null,null,"x",289,292,296,303,317,343,355]
["Промышленные объекты, ед.",null,null,null,"x",155,159,200,203,203,203,192]
["Коммунально-бытовые объекты, ед.",null,null,null,"x",2636,2729,2890,2992,3189,"3 400",3383]
["Румыния*"]
["Протяженность обслуживаемых распределительных газопроводов, км",null,null,null,"x","x",256,284,296,313,"x","x"]
["Объем транспортировки газа по газораспределительным сетям, млн м3",null,null,null,"x","x",61.5,63,71.5,73,"x","x"]
["Обслуживаемые потребители, в т.ч.:"]
["Квартиры и частные домовладения, тыс. ед.",null,null,null,"x","x",33,37,41,44,"x","x"]
["Промышленные предприятия, ед.",null,null,null,"x","x",1383,1457,1590,1685,"x","x"]
["* В 2019 г. прекращено участие Группы Газпром в дочерней организации, осуществляющей деятельность в области газораспределения на территории Румынии."]
[]
["Вернуться к содержанию"]

{"sheet":"Продажа жидких и продуктов","index":38,"n_rows":87,"n_cols":12,"rows_kept":87,"cut":false,"hidden":false,"merged":[[21,0,21,11],[0,0,0,11],[1,0,1,11],[3,0,4,0],[3,1,3,11],[20,0,20,11],[55,0,56,0],[55,1,55,11],[23,0,23,11],[24,0,25,0],[24,1,24,11],[30,0,30,11],[32,0,32,11],[33,0,33,3],[34,0,35,0],[34,1,34,11],[51,0,51,11],[52,0,52,11],[54,0,54,11],[80,0,81,0],[80,1,80,11],[84,0,84,11],[61,0,61,11],[63,0,63,11],[64,0,65,0],[64,1,64,11],[77,0,77,11],[79,0,79,11]]}
["Реализация нефти, газового конденсата и продуктов переработки"]
["Выручка от реализации нефти и газового конденсата"]
["(за вычетом НДС и таможенных пошлин)"]
[null,"За год, закончившийся 31 декабря"]
[null,"2010*","2011*",2012,2013,2014,2015,2016,2017,2018,2019,2020]
["млн руб."]
["Россия",23148,41442,40726,32094,51603,77519,81302,71434,64645,62173,47647]
["Дальнее зарубежье",146959,157645,204648,128007,141618,155509,307128,438754,631560,648752,420989]
["Страны БСС",25967,36345,30186,50115,16013,27580,23528,29770,38748,41865,18713]
["Всего",196074,235432,275560,210216,209234,260608,411958,539958,734953,752790,487349]
["млн долл.**"]
["Россия",762,1410,1310,1006,1337,1264,1217,1225,1028,962,658]
["Дальнее зарубежье",4837,5364,6585,4013,3669,2536,4596,7525,10041,10036,5812]
["Страны БСС",855,1237,971,1571,415,450,352,511,616,648,258]
["Всего",6454,8011,8866,6590,5421,4250,6165,9261,11685,11646,6728]
["млн евро**"]
["Россия",576,1013,1020,757,1012,1140,1099,1082,872,859,575]
["Дальнее зарубежье",3655,3854,5126,3020,2777,2287,4151,6646,8522,8967,5079]
["Страны БСС",646,889,756,1182,314,406,318,451,523,579,226]
["Всего",4877,5756,6902,4959,4103,3833,5568,8179,9917,10405,5880]
["* Показатели за 2010–2011 гг. не корректировались в соответствии с МСФО 11 «Совместное предпринимательство»."]
["** Данные не являются частью финансовой отчетности и рассчитаны по среднему обменному курсу за соответствующий период."]
[]
["Объемы реализации нефти и газового конденсата Группой Газпром по географическим сегментам, млн т"]
[null,"За год, закончившийся 31 декабря"]
[null,2010,2011,2012,2013,2014,2015,2016,2017,2018,2019,2020]
["Россия",3.26,4.09,3.49,2.62,4.71,5.35,5.92,4.26,2.66,2.62,2.89]
["Дальнее зарубежье",16.329999999999998,13.53,14.77,9.2100000000000009,9.77,9.76,17.059999999999999,21.62,21.15,22.78,20.11]
["Страны БСС",3.02,2.99,2.5299999999999998,4.12,1.17,1.88,1.69,1.71,1.74,1.71,1.1200000000000001]
["Всего",22.61,20.61,20.79,15.95,15.65,16.989999999999998,24.67,27.59,25.55,27.11,24.12]
["Примечание. Без учета внутригрупповых продаж."]
[]
["Выручка от реализации продуктов нефтегазопереработки "]
["(за вычетом НДС, акциза и таможенных пошлин)"]
[null,"За год, закончившийся 31 декабря"]
[null,"2010*","2011*",2012,2013,2014,2015,2016,2017,2018,2019,2020]
["млн руб."]
["Россия",412208,588250,742473,821487,953136,981792,980352,1115125,1394137,1355139,1221857]
["Дальнее зарубежье",260812,336146,393475,449669,586204,468464,428327,454330,640977,629731,469373]
["Страны БСС",36042,48630,73267,80557,79874,105335,88883,117635,144658,126311,107166]
["Всего",709062,973026,1209215,1351713,1619214,1555591,1497562,1687090,2179772,2111181,1798396]
["млн долл.**"]
["Россия",13568,20015,23889,25752,24693,16011,14669,19124,22164,20964,16869]
["Дальнее зарубежье",8585,11437,12660,14096,15187,7640,6409,7792,10190,9742,6480]
["Страны БСС",1186,1655,2357,2525,2069,1718,1330,2017,2300,1954,1480]
["Всего",23339,33107,38906,42373,41949,25369,22408,28933,34654,32660,24829]
["млн евро**"]
["Россия",10251,14383,18599,19379,18693,14440,13250,16891,18812,18730,14740]
["Дальнее зарубежье",6486,8219,9857,10608,11496,6890,5789,6882,8649,8704,5662]
["Страны БСС",896,1189,1835,1900,1566,1549,1201,1782,1952,1746,1293]
["Всего",17633,23791,30291,31887,31755,22879,20240,25555,29413,29180,21695]
["* Показатели за 2010–2011 гг. не корректировались в соответствии с МСФО 11 «Совместное предпринимательство»."]
["** Данные не являются частью финансовой отчетности и рассчитаны по среднему обменному курсу за соответствующий период."]
[]
["Объемы реализации продуктов переработки Группой Газпром по географическим сегментам, млн т"]
[null,"За год, закончившийся 31 декабря"]
[null,2010,2011,2012,2013,2014,2015,2016,2017,2018,2019,2020]
["Россия",28.72,32.71,36.1,38.409999999999997,41.55,41.28,41.11,40.83,43.18,43.12,40.04]
["Дальнее зарубежье",19.7,18.579999999999998,22.58,25.21,29.84,23.84,22.6,20.85,21.31,23.51,23.19]
["Страны БСС",3.78,4.4400000000000004,5.17,4.6399999999999997,3.97,4.3,4.24,4.28,4.37,3.55,3.4]
["Всего",52.2,55.73,63.85,68.260000000000005,75.36,69.42,67.95,65.959999999999994,68.86,70.180000000000007,66.63]
["Примечание. Без учета внутригрупповых продаж."]
[]
["Реализация продуктов переработки, газо- и нефтехимии Группой Газпром по видам, млн т"]
[null,"За год, закончившийся 31 декабря"]
[null,2010,2011,2012,2013,2014,2015,2016,2017,2018,2019,2020]
["Автомобильный бензин",9.81,12.72,12.51,12.69,13.45,13.65,14.92,13.39,13.64,13.53,13.26]
["Дизельное топливо",13.19,13.9,15.46,18.28,17.309999999999999,15.49,15.85,15.89,17.2,17.36,17.84]
["Авиационное топливо",2.77,3,3.3,3.76,3.96,3.76,3.51,3.6,3.94,3.98,3.09]
["Мазут топочный",9.4700000000000006,10.67,9.5399999999999991,10.27,11.17,8.58,7.62,5.78,6.46,7,5.49]
["Масла",0.4,0.44,0.38,0.48,0.39,0.43,0.44,0.41,0.48,0.48,0.44]
["СУГ",3.16,3.17,3.49,3.66,5.44,4.8499999999999996,4.49,3.7,4.0999999999999996,4.25,3.62]
["Cера",6.44,5.49,5.71,5,5.54,5.19,5.46,5.31,5.24,6.46,6.06]
["Минеральные удобрения","–","–",0.43,0.46,0.7,0.69,0.95,0.89,0.86,0.81,0.79]
["Полимеры","–","–",0.14000000000000001,0.13,0.17,0.16,0.14000000000000001,0.11,0.11,0.1,0.16]
["Прочие продукты переработки, газо- и нефтехимии",6.96,6.34,12.89,13.53,17.23,16.62,14.57,16.88,16.829999999999998,16.21,15.88]
["Всего",52.199999999999996,55.730000000000004,63.85,68.260000000000005,75.36,69.42,67.95,65.959999999999994,68.86,70.180000000000007,66.63]
["Примечание. Без учета реализации гелия и внутригрупповых продаж."]
[]
["Реализация гелия Группой Газпром"]
[null,"За год, закончившийся 31 декабря"]
[null,2010,2011,2012,2013,2014,2015,2016,2017,2018,2019,2020]
["Гелий газообразный, млн м3",4.8600000000000003,3.51,2.74,3.01,2.74,3.04,3.18,3.32,3.42,3.63,3.61]
["Гелий жидкий, т","–","–",391.6,94,139.96,314.14999999999998,299.32,289.56,260.08,214.56,142.11000000000001]
["Примечание. Без учета внутригрупповых продаж."]
[]
["Вернуться к содержанию"]

{"sheet":"Продажи энергии ","index":39,"n_rows":24,"n_cols":11,"rows_kept":24,"cut":false,"hidden":false,"merged":[[21,0,21,10],[0,0,0,10],[1,0,1,10],[3,1,3,10],[10,0,10,4],[15,0,15,4],[20,0,20,10]]}
["Реализация электроэнергии и тепла, услуг по транспортировке газа"]
["Выручка от продажи электрической и тепловой энергии "]
["(за вычетом НДС)"]
[null,"За год, закончившийся 31 декабря"]
[null,"2011*",2012,2013,2014,2015,2016,2017,2018,2019,2020]
["млн руб."]
["Россия",333204,326737,362415,409087,403084,461908,487283,501362,495581,467689]
["Дальнее зарубежье",7878,11186,10983,15383,19057,17350,13599,15643,19447,27581]
["Страны БСС",3469,5586,2191,2481,2524,2458,2937,5090,3345,4199]
["Всего",344551,343509,375589,426951,424665,481716,503819,522095,518373,499469]
["млн долл.**"]
["Россия",11337,10513,11361,10598,6573,6912,8357,7971,7667,6457]
["Дальнее зарубежье",268,360,344,399,311,260,233,249,301,381]
["Страны БСС",118,180,69,64,41,37,50,81,52,58]
["Всего",11723,11053,11774,11061,6925,7209,8640,8301,"8 020",6896]
["млн евро**"]
["Россия",8147,8185,8550,8023,5929,6243,7381,6765,6850,5642]
["Дальнее зарубежье",193,280,259,302,280,234,206,211,269,333]
["Страны БСС",85,140,52,49,37,33,44,69,46,51]
["Всего",8425,8605,8861,8374,6246,6510,7631,7045,7165,6026]
["* Показатели за 2011 г. не корректировались в соответствии с МСФО 11 «Совместное предпринимательство»."]
["** Данные не являются частью финансовой отчетности и рассчитаны по среднему обменному курсу за соответствующий период."]
[]
["Вернуться к содержанию"]

{"sheet":"Услуги по транспортировке","index":40,"n_rows":17,"n_cols":12,"rows_kept":17,"cut":false,"hidden":false,"merged":[[11,1,11,11],[0,0,0,11],[2,1,2,11],[7,0,7,11],[8,0,8,11],[10,0,10,11]]}
["Выручка от продажи услуг по транспортировке газа "]
["(за вычетом НДС)"]
[null,"За год, закончившийся 31 декабря"]
[null,"2010*","2011*",2012,2013,2014,2015,2016,2017,2018,2019,2020]
["млн руб.",92631,112995,125386,163265,172842,193965,198971,235061,225673,215335,223824]
["млн долл.** ",3051,3845,4034,5118,4478,3163,2977,4031,3588,3331,3090]
["млн евро** ",2300,2763,3141,3851,3390,2853,2689,3560,3045,2976,2700]
["* Показатели не корректировались в соответствии с МСФО 11 «Совместное предпринимательство»."]
["** Данные не являются частью финансовой отчетности и рассчитаны по среднему обменному курсу за соответствующий период."]
[]
["Оказание услуг по транспортировке газа компаниям, не входящим в Группу Газпром, млрд м3"]
[null,"За год, закончившийся 31 декабря"]
[null,2010,2011,2012,2013,2014,2015,2016,2017,2018,2019,2020]
["Всего",72.599999999999994,81.5,95.8,111.4,121.1,121.5,129,137.9,136.4,132.1,129]
["в т. ч. российский газ",64.5,72.8,86.9,104.3,113.7,113.9,121.3,130.4,128.30000000000001,124.3,121.3]
[]
["Вернуться к содержанию"]

{"sheet":"Воздействие на окружающую среду","index":41,"n_rows":30,"n_cols":14,"rows_kept":30,"cut":false,"hidden":false,"merged":[[27,0,27,13],[0,0,0,13],[1,0,1,13],[2,1,2,13],[18,0,18,13],[19,1,19,13],[15,0,15,13],[16,0,16,13]]}
["Экология и энергосбережение"]
["Основные показатели воздействия Группы Газпром* на окружающую среду в Российской Федерации"]
[null,"За год, закончившийся 31 декабря"]
[null,2008,2009,2010,2011,2012,2013,2014,2015,2016,2017,2018,2019,2020]
["Выбросы загрязняющих веществ в атмосферу, тыс. т",3340.7,3391.1,3225.3,3124.2,3410.9,3076.4,2797.6,2830.6,2868.5,2795.9,2894,2862.7,2445.6999999999998]
["в т. ч.:   оксид углерода",785.5,645.79999999999995,666.8,687.2,1031.9000000000001,653.4,547,533.6,550.5,529.9,594.1,596.4,550.70000000000005]
["    оксиды азота",339.4,335.3,377.4,372.6,378.3,352.9,313.10000000000002,286.3,288.5,313.60000000000002,328.6,307.7,284.2]
["    диоксид серы",248.6,249.1,296.10000000000002,260.89999999999998,310,296.89999999999998,289.3,328.4,346.1,262.7,276.2,221.5,172]
["    углеводороды**",1712.4,1859.8,1589.1,1491.1,1606.6,1534,1398.5,1430.8,1462.3,1495.7,1497.8,1542.6,1266.4000000000001]
["Выбросы парниковых газов (область охвата 1), \nмлн т CO2-экв.","х",235.7,253.22,244.7,232.5,229.1,228.3,220,228.2,233.8,240,236.5,210.3]
["Сбросы сточных вод в поверхностные водные объекты, \nмлн м3",3895.1,5175.8999999999996,5364.1,5257.7,4893,"4 389,9","4 179,1",3853.8,3855.5,3905.3,3658.4,3241.8,2610.8000000000002]
["в т.ч. нормативно чистых и нормативно очищенных на очистных сооружениях",3853.1,5031.3,5348.9,5096.2,4691.6000000000004,4227.8999999999996,3991.6,3660.6,3691.2,3781.7,3579.5,3152.7,2533.6999999999998]
["Образование отходов, тыс. т",4084.5,5210.8,5600.3,"4 973,8",5226.6000000000004,4693.7,4831.3999999999996,4954,4289.8,4130.3,3555.1,3337.1,3229.8]
["Площадь нарушенных земель в течение года, тыс. га",13,6.8,15.4,2.2999999999999998,14.4,13.1,15.4,58.1,27,42.2,25.8,22.9,23.8]
["Площадь рекультивированных земель, тыс. га",8.3000000000000007,12.6,9.8000000000000007,11.6,9.6999999999999993,14,12.6,18.2,42.5,19.600000000000001,15.8,17.7,15.8]
["* С учетом показателей ассоциированной организации Sakhalin Energy Investment Company Ltd. и совместного предприятия ООО «Газпром газомоторное топливо»."]
["** Выбросы диоксида углерода (углекислого газа) и метана, относящихся к газам, которые, предположительно, вызывают парниковый эффект (далее — парниковые газы)."]
[]
["Затраты на охрану окружающей среды по Группе Газпром* в Российской Федерации, млн руб."]
[null,"За год, закончившийся 31 декабря"]
[null,2008,2009,2010,2011,2012,2013,2014,2015,2016,2017,2018,2019,2020]
["Текущие эксплуатационные затраты",17162.3,10376.5,10289.799999999999,11232.7,18354.7,20328.099999999999,18047.900000000001,16399.900000000001,17189.7,18219.8,22638,14964.6,13979.4]
["Затраты на оплату услуг природоохранного назначения","x","x","x","x",3849.5,8021.9,9403.5,12806.3,14725.6,14495.6,14584.1,15601.9,18980.3]
["Затраты на капитальный ремонт основных производственных фондов по охране окружающей среды",1428.8,962.7,1243.2,2571.8000000000002,2444.6,3106.5,4204.8999999999996,2962.9,2187.9,1752.6,1932.2,1613.7,1481]
["Плата за негативное воздействие на окружающую среду",2678.8,1218.4000000000001,1234.4000000000001,1017.2,1563.1,2952.5,1746.9,1790.4,824.8,768,615.79999999999995,617.70000000000005,693.1]
["Инвестиции в основной капитал, направленные на охрану окружающей среды и рациональное использование природных ресурсов",3493.7,6323.6,7744.4,9785.7000000000007,12885.8,24947.9,15578.3,15754.3,22541.9,35584.5,29188.6,20421.3,13987.2]
["Всего",24763.599999999999,18881.2,20511.8,24607.4,39097.699999999997,59356.9,48981.5,49713.8,57469.9,70820.5,68958.7,53219.199999999997,"49 121,0"]
["* С учетом расходов ассоциированной организации Sakhalin Energy Investment Company Ltd. и совместного предприятия ООО «Газпром газомоторное топливо»."]
[]
["Вернуться к содержанию"]

{"sheet":"Выбросы парниковых газов","index":42,"n_rows":71,"n_cols":6,"rows_kept":71,"cut":false,"hidden":false,"merged":[[16,0,16,5],[17,1,17,5],[22,0,22,5],[24,0,24,5],[43,0,43,5],[25,1,25,5],[30,0,30,5],[32,0,32,5],[33,1,33,5],[0,0,0,5],[1,1,1,5],[12,0,12,5],[13,0,13,5],[14,0,14,5],[66,1,66,5],[65,0,65,5],[44,0,44,5],[46,0,46,5],[47,1,47,5],[53,0,53,5],[54,0,54,5],[56,0,56,5],[57,1,57,5],[63,0,63,5]]}
["Выбросы парниковых газов (область охвата 1)* по Группе Газпром в Российской Федерации, \nмлн т CO2-экв."]
[null,"За год, закончившийся 31 декабря"]
[null,2016,2017,2018,2019,2020]
["Компании газового бизнеса Группы Газпром"]
["ПАО «Газпром» и его дочерние общества**",101.2,113.2,120.1,117.1,101]
["Sakhalin Energy Investment Company Ltd.***",3.4,3.2,3.2,3.1,3.4]
["Другие компании газового бизнеса Группы Газпром",3.1,2.2000000000000002,2.1,5.2,1.9]
["Всего по компаниям газового бизнеса Группы Газпром",107.7,118.6,125.4,125.4,106.3]
["Газпром энергохолдинг",99.7,96.2,94.1,89,81.3]
["Газпром нефть",16.2,13.3,14.3,16,16.7]
["Газпром нефтехим Салават",4.5999999999999996,5.7,6.2,6,6]
["Всего",228.2,233.8,240,236.5,210.3]
["* Прямые выбросы парниковых газов (область охвата 1) — выбросы, образующиеся в результате хозяйственной деятельности отчитывающейся организации."]
["** Дочерние общества со 100 % участием ПАО «Газпром», занятые в деятельности по геологоразведке, добыче, транспортировке, подземному хранению газа, переработке углеводородов на территории России, обеспечению работы ЕСГ России. Перечень приведен в разделе «Глоссарий основных понятий и сокращений». Также учтены показатели совместного предприятия ООО «Газпром газомоторное топливо»."]
["*** Ассоциированная организация."]
[]
["Удельные выбросы парниковых газов (область охвата 1) в организациях Группы Газпром \nв Российской Федерации, кг CO2-экв. / т н. э. реализованных продуктов"]
[null,"За год, закончившийся 31 декабря"]
[null,2016,2017,2018,2019,2020]
["Компании газового бизнеса Группы Газпром*",237,252,259,259,239]
["Газпром энергохолдинг",3965,3982,3757,3736,3490]
["Газпром нефть",161,164,203,218,218]
["* Перечень приведен в разделе «Глоссарий основных понятий и сокращений»."]
[]
["Удельные выбросы парниковых газов (область охвата 1) в организациях Группы Газпром \nв Российской Федерации, кг CO2-экв. / барр. н. э. реализованных продуктов"]
[null,"За год, закончившийся 31 декабря"]
[null,2016,2017,2018,2019,2020]
["Компании газового бизнеса Группы Газпром*",35,37,38,38,35]
["Газпром энергохолдинг",579,582,549,546,510]
["Газпром нефть",24,24,30,32,32]
["* Перечень приведен в разделе «Глоссарий основных понятий и сокращений»."]
[]
["Выбросы парниковых газов (область охвата 1) по Группе Газпром \nв Российской Федерации в детализации по видам парниковых газов, млн т CO2-экв."]
[null,"За год, закончившийся 31 декабря"]
[null,2016,2017,2018,2019,2020]
["Группа Газпром"]
["CO2 (углекислый газ)",186.8,200.3,207.1,203.3,184]
["CH4 (метан)*",41.4,33.5,32.9,33.200000000000003,26.3]
["Всего",228.2,233.8,240,236.5,210.3]
["В т. ч. компании газового бизнеса Группы Газпром**"]
["CO2 (углекислый газ)",70.099999999999994,85.1,92.5,92.1,80.400000000000006]
["CH4 (метан)*",37.6,33.5,32.9,33.200000000000003,25.9]
["Всего",107.7,118.6,125.4,125.3,106.3]
["* Для оценки выбросов ископаемого метана (CH4) в СО2-эквиваленте применяется переводной коэффициент 25."]
["** Перечень приведен в разделе «Глоссарий основных понятий и сокращений»."]
[]
["Выбросы парниковых газов (область охвата 2)* в Российской Федерации в организациях Группы Газпром, млн т CO2-экв."]
[null,"За год, закончившийся 31 декабря"]
[null,2016,2017,2018,2019,2020]
["ПАО «Газпром» и его дочерние общества**",7.4,8,8.1999999999999993,6.1,4.8]
["Газпром энергохолдинг","–","–","–","–","–"]
["Газпром нефть",8.4,6.6,4.5,5.2,4.4000000000000004]
["Газпром нефтехим Салават","х","х",2.6,2.5,2.6]
["* Косвенные энергетические выбросы парниковых газов (область охвата 2) — выбросы, образующиеся в результате потребления отчитывающейся организацией электрической и тепловой энергии, полученной от внешних генерирующих объектов."]
["** Дочерние общества со 100 % участием ПАО «Газпром», занятые в деятельности по геологоразведке, добыче, транспортировке, подземному хранению газа, переработке углеводородов на территории России, обеспечению работы ЕСГ России. Перечень приведен в разделе «Глоссарий основных понятий и сокращений». Также учтены показатели совместного предприятия ООО «Газпром газомоторное топливо»."]
[]
["Выбросы парниковых газов (область охвата 3)* для реализованных продуктов Группы Газпром в детализации по видам реализованных продуктов, млн т CO2-экв."]
[null,"За год, закончившийся 31 декабря"]
[null,2016,2017,2018,2019,2020]
["Природный газ",874.1,930.1,956.2,930.1,872.1]
["Нефть и газовый конденсат",75.900000000000006,84.9,78.599999999999994,83.8,74.2]
["Другие энергоресурсы",141.19999999999999,129.1,138.19999999999999,140.6,132.19999999999999]
["Всего","1 091,2","1 144,1","1 173,0","1 154,5","1 078,5"]
["* Косвенные выбросы парниковых газов (область охвата 3) — выбросы, образующиеся в результате использования продукции, поставляемой отчитывающейся организацией в качестве топлива или сырья."]
[]
["Удельные выбросы парниковых газов (область охвата 3) для реализованных продуктов Группы Газпром"]
[null,"За год, закончившийся 31 декабря"]
[null,2016,2017,2018,2019,2020]
["кг CO2-экв. / барр. н. э. реализованных продуктов",302,300.89999999999998,300.60000000000002,301.60000000000002,301.39999999999998]
[]
["Вернуться к содержанию"]

{"sheet":"Энергосбережение","index":43,"n_rows":17,"n_cols":14,"rows_kept":17,"cut":false,"hidden":false,"merged":[[0,0,0,13],[1,1,1,13],[13,0,13,13],[14,0,14,13]]}
["Энергосбережение в ПАО «Газпром» и его дочерних обществах, включенных в программы энергосбережения ПАО «Газпром»*"]
[null,"За год, закончившийся 31 декабря"]
[null,2008,2009,2010,2011,2012,2013,2014,2015,2016,2017,2018,2019,2020]
["Природный газ"]
["млн м3",2357.4,2179.3000000000002,2307.6999999999998,2390.1999999999998,1807,1922.3,2070.6999999999998,2255.3000000000002,2285,3013.5,2951.9,"3 286,9",3273.8]
["тыс. т у. т.**",2687.5,2484.4,2630.8,2724.8,2060,2191.4,2360.6,2571,2641.1,{"$f":"ROUND(K5*1.155,1)","v":3480.6},3409.5,"3 796,4",3781.2]
["Электроэнергия"]
["млн кВт·ч",250.8,171.6,181.6,194.1,255.4,293.39999999999998,254.6,260.60000000000002,256,331.4,364.3,330.5,305.89999999999998]
["тыс. т у. т.**",81.5,55.8,59,63.1,83,95.4,82.8,84.7,84.5,{"$f":"ROUND(K8*0.325,1)","v":107.7},118.4,107.4,99.4]
["Тепловая энергия"]
["тыс. Гкал",204.3,180.4,200.2,102.9,241.8,217.9,237.2,205,254.2,268.39999999999998,235.9,252.7,251.9]
["тыс. т у. т.**",29.3,25.8,28.6,14.7,34.5,31.1,33.9,29.3,36.4,{"$f":"ROUND(K11*0.143,1)","v":38.4},33.700000000000003,36.1,36]
["Всего, тыс. т у.т.",2798.3,2566.0000000000005,2718.4,2802.6,2177.5,2317.9,2477.3000000000002,2685,2762,{"$f":"K6+K9+K12","v":3626.7},3561.6,"3 939,9","3 916,6"]
["* Перечень приведен в разделе «Глоссарий основных понятий и сокращений»."]
["** Пересчет объемов экономии ТЭР в т у.т. проводился с использованием следующих соотношений: 1 тыс. м3 газа = 1,155 т у.т. (2015 г. и ранее: 1 тыс. м3 газа = 1,14 т у.т.); 1 тыс. кВт·ч = 0,325 т у.т.; 1 тыс. Гкал = 0,143 т у.т."]
[]
["Вернуться к содержанию"]

{"sheet":"Производственная безопасность","index":44,"n_rows":34,"n_cols":7,"rows_kept":34,"cut":false,"hidden":false,"merged":[[31,0,31,6],[30,0,30,6],[0,0,0,6],[1,0,1,6],[2,1,2,6],[10,0,10,6],[12,0,12,6],[13,1,13,6]]}
["Производственная безопасность"]
["Показатели производственной безопасности организаций Группы Газпром, входящих в сферу действия ЕСУПБ*"]
[null,"За год, закончившийся 31 декабря"]
[null,2015,2016,2017,2018,2019,2020]
["Количество происшествий в области промышленной безопасности на опасных производственных объектах",52,31,26,16,10,14]
["Количество пожаров на объектах",5,4,4,3,2,6]
["Количество пострадавших в результате несчастных случаев",102,77,61,89,47,39]
["Количество погибших в результате несчастных случаев",7,4,6,3,7,5]
["Коэффициент травматизма с потерей рабочего времени\n(LTIFR)*",0.18,0.16,0.11,0.17,0.09,0.08]
["Коэффициент частоты смертельного травматизма \n(FAR)*",1.42,0.79,1.17,0.56999999999999995,1.35,0.97]
["* Понятия определены в разделе «Глоссарий основных понятий и сокращений»."]
[]
["Показатели производственной безопасности организаций Группы Газпром, не входящих в сферу действия ЕСУПБ"]
[null,"За год, закончившийся 31 декабря"]
[null,2015,2016,2017,2018,2019,2020]
["Газпром нефтехим Салават"]
["Количество происшествий в области промышленной безопасности на опасных производственных объектах",4,3,1,9,2,1]
["Количество пострадавших в результате несчастных случаев",2,1,2,"–",2,"–"]
["Коэффициент травматизма с потерей рабочего времени\n(LTIFR)*",0.15,7.0000000000000007E-2,0.14000000000000001,"–",0.13,"–"]
["Коэффициент частоты смертельного травматизма \n(FAR)*","–","–",6.97,"–","–","–"]
["Газпром нефть"]
["Количество происшествий в области промышленной безопасности на опасных производственных объектах",2513,2387,2183,"1 069",920,600]
["Количество пострадавших в результате \nнесчастных случаев**",100,69,74,85,68,75]
["Коэффициент травматизма с потерей рабочего времени (LTIFR)*,**",0.93,0.56000000000000005,0.6,0.64,0.5,0.54]
["Коэффициент частоты смертельного травматизма \n(FAR)*,**",2.21,3.09,3.08,0.74,1.46,"–"]
["Газпром энергохолдинг"]
["Количество происшествий в области промышленной безопасности на опасных производственных объектах",196,177,129,99,71,56]
["Количество пострадавших в результате несчастных случаев",13,19,16,18,8,5]
["Коэффициент травматизма с потерей рабочего времени (LTIFR)*",0.2,0.3,0.25,0.28000000000000003,0.12,0.08]
["Коэффициент частоты смертельного травматизма \n(FAR)*","–",1.56,1.57,"–","–","–"]
["* Понятия определены в разделе «Глоссарий основных понятий и сокращений»."]
["** Показатели за 2015–2019 гг. скорректированы с учетом зарубежных активов Газпром нефти в Сербии, Ираке, Италии, странах Восточной Европы и Центральной Азии."]
[]
["Вернуться к содержанию"]

{"sheet":"НИОКР","index":45,"n_rows":14,"n_cols":14,"rows_kept":14,"cut":false,"hidden":false,"merged":[[0,0,0,13],[1,0,1,13],[2,1,2,13],[8,0,8,13],[9,1,9,13]]}
["Управление патентными правами, НИОКР"]
["Количество патентов на объекты патентных прав, принадлежащих ПАО «Газпром» и его дочерним обществам, и их использование в производственной деятельности"]
[null,"За год и по состоянию на 31 декабря"]
[null,null,null,null,null,null,2013,2014,2015,2016,2017,2018,2019,2020]
["Общее количество патентов на объекты патентных прав, принадлежащих ПАО «Газпром» и его дочерним обществам, ед.",null,null,null,null,null,2035,2131,2238,2269,2342,2555,2674,2786]
["в т. ч. использовано в производственной деятельности",null,null,null,null,null,350,351,356,406,427,441,459,516]
["Экономический эффект от использования объектов патентных прав в производстве, млрд руб.",null,null,null,null,null,1.8,3.1,6.1,7.1,7.9,10.3,14.5,5.2]
[]
["Объем НИОКР в денежном выражении, выполненных по заказу Группы Газпром, млрд руб."]
[null,"За год, закончившийся 31 декабря"]
[null,2008,2009,2010,2011,2012,2013,2014,2015,2016,2017,2018,2019,2020]
["Объем НИОКР в денежном выражении, выполненных по заказу Группы Газпром (без НДС)",4.9000000000000004,7.4,7,7.9,7.7,6.8,10.8,9.9,6.3,8.1999999999999993,9,12.1,21.4]
[]
["Вернуться к содержанию"]

{"sheet":"Персонал","index":46,"n_rows":24,"n_cols":14,"rows_kept":24,"cut":false,"hidden":false,"merged":[[21,0,21,13],[0,0,0,13],[1,0,1,8],[2,0,3,0],[2,1,2,13],[20,0,20,13]]}
["Персонал"]
["Структура персонала Группы Газпром"]
[null,"По состоянию на 31 декабря"]
[null,2008,2009,2010,2011,2012,2013,2014,2015,2016,2017,2018,2019,2020]
["Списочная численность работников Группы, \nтыс. человек"]
["ПАО «Газпром»",10.1,17.3,20.7,22.1,23.3,24.1,24.3,24.8,25.6,26.2,26.7,27.1,27.3]
["Дочерние общества по добыче, транспортировке, переработке и подземному хранению газа*",221.3,216.8,217.1,219.3,222.5,228.6,233.3,235.4,237.4,235.6,232.9,234.9,234.1]
["Газпром нефть",48.2,65.2,62.5,57.6,58.6,62.8,66.400000000000006,65,71.400000000000006,67.599999999999994,68.5,72.7,77.400000000000006]
["Газпром энергохолдинг",24.8,31.5,25.9,27.7,26.5,50.8,45.5,45,44.9,44.2,43.3,45.7,44]
["Газпром нефтехим Салават","x","x","x","x",15.6,16.2,15.7,15.5,15.4,16.3,15.2,14.7,14]
["Прочие дочерние общества и организации",71.900000000000006,62.8,74.400000000000006,77.7,84.7,77,74.400000000000006,76.7,72.7,79.7,79.5,78.7,80.8]
["Всего",{"$f":"SUM(B6:B11)","v":376.30000000000007},{"$f":"SUM(C6:C11)","v":393.6},{"$f":"SUM(D6:D11)","v":400.59999999999991},{"$f":"SUM(E6:E11)","v":404.4},431.2,459.5,459.6,462.4,467.4,469.6,466.1,473.8,477.6]
["в т. ч. по категориям:"]
["руководители",0.11600000000000001,0.123,0.122,0.128,0.13,0.13400000000000001,0.13700000000000001,0.13700000000000001,0.13900000000000001,0.13900000000000001,0.14199999999999999,0.14399999999999999,0.14199999999999999]
["специалисты и другие служащие",0.26600000000000001,0.26100000000000001,0.28399999999999997,0.29599999999999999,0.30099999999999999,0.308,0.309,0.315,0.316,0.315,0.32400000000000001,0.33,0.33400000000000002]
["рабочие",0.61799999999999999,0.61599999999999999,0.59399999999999997,0.57599999999999996,0.56899999999999995,0.55800000000000005,0.55400000000000005,0.54800000000000004,0.54500000000000004,0.54600000000000004,0.53400000000000003,0.52600000000000002,0.52400000000000002]
["в т. ч. по возрастным группам:"]
["до 30 лет",0.16700000000000001,0.187,0.183,0.187,0.192,0.19,0.185,0.17899999999999999,0.16900000000000001,0.153,0.14399999999999999,0.13400000000000001,0.126]
["от 30 до 50 лет",0.59899999999999998,0.57200000000000006,0.57099999999999995,0.56400000000000006,0.55600000000000005,0.55299999999999994,0.56000000000000005,0.56899999999999995,0.58299999999999996,0.59899999999999998,0.61399999999999999,0.621,0.626]
["50 лет и старше",0.23400000000000001,0.24099999999999999,0.246,0.249,0.252,0.25700000000000001,0.255,0.252,0.248,0.248,0.24199999999999999,0.245,0.248]
["* Состав учитываемых обществ приведен в Глоссарии."]
["Примечание. Без учета показателей организаций, инвестиции в которые классифицированы как совместные операции."]
[]
["Вернуться к содержанию"]

{"sheet":"Услов. обознач.","index":47,"n_rows":16,"n_cols":2,"rows_kept":16,"cut":false,"hidden":false,"merged":[[0,0,0,1],[1,0,1,1],[8,0,8,1]]}
["Справочная информация"]
["Условные обозначения"]
["Знак","Значение"]
["х","Данные не могут быть приведены"]
["–","Явление отсутствует"]
[0,"Менее чем 0,05"]
[0,"Менее чем 0,005"]
[]
["Коэффициенты пересчета"]
["Мера","Соответствие"]
["1 тыс. м3 природного газа","6,49 барр. н. э."]
["1 т нефти","7,33 барр. н. э."]
["1 т газового конденсата","8,18 барр. н. э."]
["1 млн БТЕ","При подготовке данных за 2020 г.:\n0,0285 тыс. м3 СПГ\n0,0194 т СПГ\nПри подготовке данных за 2019 г. и предшествующие годы:\n0,028 тыс. м3 газа\n0,021 т СПГ"]
[]
["Вернуться к содержанию"]

{"sheet":"Глоссарий","index":48,"n_rows":109,"n_cols":2,"rows_kept":109,"cut":false,"hidden":false,"merged":[[0,0,0,1],[49,0,76,0]]}
["Глоссарий основных понятий и сокращений"]
["Термины и сокращения","Описание"]
["АДР ПАО «Газпром»","Американская депозитарная расписка, выпущенная на акции ПАО «Газпром»"]
["АТР","Азиатско-Тихоокеанский регион"]
["барр.","Баррель"]
["барр. н. э.","Баррель нефтяного эквивалента"]
["БТЕ","Британская тепловая единица"]
["ГА","Гидроагрегат"]
["ГКМ","Газоконденсатное месторождение"]
["ГПА","Газоперекачивающий агрегат"]
["ГПЗ","Газо- и/или конденсатоперерабатывающий завод"]
["ГРО","Газораспределительная организация"]
["ГРР","Геолого-разведочные работы"]
["Группа Газпром, Группа, Газпром","Совокупность компаний, состоящая из ПАО «Газпром» (головная компания) и его дочерних организаций"]
["ГРЭС","Государственная районная электростанция"]
["ГТС","Газотранспортная система"]
["ГТУ","Газотурбинная установка"]
["ГХК","Газохимический комплекс"]
["ГЭС","Гидроэлектростанция"]
["Долгосрочный рисковый операторский договор","Договор между владельцем лицензии и оператором проекта разработки месторождения, в соответствии с которым оператор инвестирует собственные средства в разработку и несет все риски (включая геологические), что позволяет ему консолидировать запасы, добычу и финансовый результат от реализации проекта"]
["Дальнее зарубежье","Зарубежные страны, кроме стран БСС, составляющие географический сегмент «Европа и другие страны» в консолидированной финансовой отчетности по МСФО"]
["Дочерние общества \nПАО «Газпром», включенные в программы энергосбережения \nПАО «Газпром»","ООО «Газпром добыча Астрахань», \nООО «Газпром добыча Краснодар»,\nООО «Газпром добыча Надым», \nООО «Газпром добыча Ноябрьск», \nООО «Газпром добыча Оренбург», \nООО «Газпром добыча Уренгой», \nООО «Газпром добыча шельф Южно-Сахалинск» (c 2020 г.), \nООО «Газпром добыча Ямбург»,  \nОАО «Газпром трансгаз Беларусь», \nООО «Газпром трансгаз Волгоград», \nООО «Газпром трансгаз Екатеринбург», \nООО «Газпром трансгаз Казань», \nООО «Газпром трансгаз Краснодар», \nООО «Газпром трансгаз Махачкала», \nООО «Газпром трансгаз Москва», \nООО «Газпром трансгаз Нижний Новгород», \nООО «Газпром трансгаз Самара», \nООО «Газпром трансгаз Санкт-Петербург», \nООО «Газпром трансгаз Саратов»,\nООО «Газпром трансгаз Ставрополь», \nООО «Газпром трансгаз Сургут», \nООО «Газпром трансгаз Томск», \nООО «Газпром трансгаз Уфа», \nООО «Газпром трансгаз Ухта», \nООО «Газпром трансгаз Чайковский», \nООО «Газпром трансгаз Югорск», \nООО «Газпром ПХГ», \nООО «Газпром переработка», \nООО «Газпром энерго», \nООО «Газпром межрегионгаз»"]
["Дочерние общества со 100 % участием ПАО «Газпром», занятые в деятельности по геологоразведке, добыче, транспортировке, подземному хранению, переработке углеводородов на территории России, обеспечению работы ЕСГ России","ООО «Газпром добыча Астрахань», \nООО «Газпром добыча Иркутск», \nООО «Газпром добыча Краснодар», \nООО «Газпром добыча Кузнецк», \nООО «Газпром добыча Надым», \nООО «Газпром добыча Ноябрьск», \nООО «Газпром добыча Оренбург», \nООО «Газпром добыча Уренгой», \nООО «Газпром добыча шельф Южно-Сахалинск», \nООО «Газпром добыча Ямбург», \nООО «Газпром недра», \nООО «Газпром трансгаз Волгоград», \nООО «Газпром трансгаз Екатеринбург», \nООО «Газпром трансгаз Казань», \nООО «Газпром трансгаз Краснодар», \nООО «Газпром трансгаз Махачкала», \nООО «Газпром трансгаз Москва», \nООО «Газпром трансгаз Нижний Новгород», \nООО «Газпром трансгаз Самара», \nООО «Газпром трансгаз Санкт-Петербург», \nООО «Газпром трансгаз Саратов», \nООО «Газпром трансгаз Ставрополь», \nООО «Газпром трансгаз Сургут», \nООО «Газпром трансгаз Томск», \nООО «Газпром трансгаз Уфа», \nООО «Газпром трансгаз Ухта», \nООО «Газпром трансгаз Чайковский», \nООО «Газпром трансгаз Югорск», \nООО «Газпром трансгаз Грозный», \nООО «Газпром ПХГ», \nООО «Газпром переработка», \nООО «Газпром НГХК», \nООО «Газпром энерго», \nООО «Газпром центрремонт», \nООО «Газпром геотехнологии», \n"]
[null,"ООО Авиапредприятие «Газпром авиа», \nООО «Газпромтранс», \nООО «Газпром флот», \nООО «Газпром инвест», \nООО «Газпром социнвест», \nОАО «Газпромтрубинвест»"]
["ДКС","Дожимная компрессорная станция"]
["Доллары, долл.","Доллары США"]
["ДОФ","Диоктилфталат"]
["ДПМ","Договор предоставления мощности"]
["ЕСГ","Единая система газоснабжения"]
["ЕСУПБ","Единая система управления производственной безопасностью ПАО «Газпром»"]
["Запасы углеводородов категорий А+В1+С1","Разведанные запасы по российской классификации с высокой степенью геологической изученности, которые соответствуют ранее принятым категориям А+В+С1 (для запасов нефти, газа и газового конденсата предусмотрен коэффициент извлечения, рассчитанный на основе геолого-технологических факторов)"]
["кВт●ч","Киловатт в час"]
["КИГ","Коэффициент извлечения газа"]
["Компании газового бизнеса Группы Газпром","Дочерние общества со 100 % участием ПАО «Газпром», занятые в деятельности по геологоразведке, добыче, транспортировке, подземному хранению, переработке углеводородов на территории России, обеспечению работы ЕСГ России, совместное предприятие ООО «Газпром газомоторное топливо», входящие в Группу Газпром ООО «Газпром межрегионгаз», Группа Востокгазпром (АО «Газпром добыча Томск»), АО «Дальтрансгаз», ОАО «Севернефтегазпром», ЗАО «Пургаз», ПАО «Газпром спецгазавтотранс», а также ассоциированная организация \nSakhalin Energy Investment Company Ltd."]
["Коэффициент травматизма с потерей рабочего времени (LTIFR)","Число пострадавших в результате несчастных случаев с потерей рабочего времени / общее число часов, отработанных всем персоналом × 1 000 000"]
["Коэффициент частоты смертельного травматизма (FAR)","Число пострадавших в результате несчастных случаев / общее число часов, отработанных всем персоналом × 100 000 000"]
["КПГ","Компримированный природный газ"]
["КС","Компрессорная станция"]
["КСПГ","Комплекс по производству, хранению и отгрузке СПГ"]
["ЛФБ","Лондонская фондовая биржа"]
["м3","Кубический метр природного газа, измеряемый под давлением в одну атмосферу \nпри 20°С"]
["МГ","Магистральный газопровод"]
["МСФО","Международные стандарты финансовой отчетности"]
["НГКМ","Нефтегазоконденсатное месторождение"]
["НДС","Налог на добавленную стоимость"]
["НИОКР","Научно-исследовательские и опытно-конструкторские работы"]
["НПЗ","Нефтеперерабатывающий завод"]
["Объем добычи углеводородов","Объем фактически добытых углеводородов, определяемый как сумма объема фактически добытых углеводородов, предназначенного для реализации, а также объема фактически добытых углеводородов, израсходованных на собственные нужды"]
["Организации, входящие в сферу действия ЕСУПБ","ПАО «Газпром», его основные дочерние общества по разведке, добыче, переработке, транспортировке, подземному хранению газа и энергетике, а также дочерние общества, обеспечивающие работу ЕСГ России"]
["ПАО «Газпром» и его основные дочерние общества","ПАО «Газпром» и его дочерние общества по добыче, транспортировке, переработке и подземному хранению газа: "]
[null,"ООО «Газпром добыча Ямбург»"]
[null,"ООО «Газпром добыча Уренгой»"]
[null,"ООО «Газпром добыча Надым»"]
[null,"ООО «Газпром добыча Ноябрьск»"]
[null,"ООО «Газпром добыча Оренбург»"]
[null,"ООО «Газпром добыча Астрахань»"]
[null,"ООО «Газпром переработка»"]
[null,"ООО «Газпром добыча Краснодар»"]
[null,"ООО «Газпром трансгаз Ухта»"]
[null,"ООО «Газпром трансгаз Сургут»"]
[null,"ООО «Газпром трансгаз Югорск»"]
[null,"ООО «Газпром трансгаз Санкт-Петербург»"]
[null,"ООО «Газпром трансгаз Москва»"]
[null,"ООО «Газпром трансгаз Томск»"]
[null,"ООО «Газпром трансгаз Чайковский»"]
[null,"ООО «Газпром трансгаз Екатеринбург»"]
[null,"ООО «Газпром трансгаз Ставрополь»"]
[null,"ООО «Газпром трансгаз Махачкала»"]
[null,"ООО «Газпром трансгаз Нижний Новгород»"]
[null,"ООО «Газпром трансгаз Саратов»"]
[null,"ООО «Газпром трансгаз Волгоград»"]
[null,"ООО «Газпром трансгаз Самара»"]
[null,"ООО «Газпром трансгаз Уфа»"]
[null,"ООО «Газпром трансгаз Казань»"]
[null,"ООО «Газпром трансгаз Краснодар»"]
[null,"ОАО «Газпром трансгаз Беларусь»"]
[null,"ООО «Газпром ПХГ»"]
["ПБВ","Полимерно-битумное вяжущее"]
["ПГУ","Парогазовая установка"]
["ПГФ","Пентан-гексановая фракция"]
["ПНГ","Попутный нефтяной газ"]
["Производственная безопасность","Состояние защищенности основных фондов, работников Группы Газпром, а также третьих лиц (включая их имущество) и окружающей среды от воздействия негативных факторов, происшествий, вредных и опасных производственных факторов. Составляющими производственной безопасности являются охрана труда, промышленная и пожарная безопасность, безопасность дорожного движения"]
["ПСУ","Паросиловая установка"]
["ПХГ","Подземное хранилище газа"]
["Реализация Группой Газпром углеводородов и продуктов их переработки","Объемы газа, нефти, газового конденсата и продуктов их переработки, как от собственной добычи / производства, так и закупленные у сторонних компаний, реализуемые потребителям рассматриваемого рынка сбыта без учета внутригрупповых продаж"]
["Рубль, руб.","Российский рубль"]
["СП","Совместное предприятие"]
["СПГ","Сжиженный природный газ"]
["Среднесуточная добыча","Показатель, значение которого рассчитывается исходя из количества календарных дней в году"]
["СРП","Соглашение о разделе продукции"]
["СРРП","Соглашение о разведке и разделе продукции"]
["Стандарты PRMS ","Международная классификация и оценка запасов углеводородов по стандартам PRMS («Система управления углеводородными ресурсами»)"]
["Страны БСС","Бывшие республики Союза Советских Социалистических Республик, кроме Российской Федерации, составляющие географический сегмент «Страны бывшего СССР (кроме Российской Федерации)» в консолидированной финансовой отчетности по МСФО"]
["СУГ","Сжиженные углеводородные газы"]
["т","Метрическая тонна"]
["ТЭО","Технико-экономическое обоснование"]
["ТЭС","Тепловая электростанция"]
["ТЭЦ","Теплоэлектроцентраль"]
["УКПГ","Установка комплексной подготовки газа"]
["УППГ","Установка предварительной подготовки газа"]
["Условное топливо (угольный эквивалент), у. т.","Единица учета тепловой ценности топлива, применяемая для сопоставления различных видов топлива"]
["ФО","Федеральный округ"]
["ХМАО — Югра","Ханты-Мансийский автономный округ — Югра"]
["ЦКР Роснедр по УВС","Центральная комиссия по согласованию технических проектов разработки месторождений углеводородного сырья и иной проектной документации Роснедр"]
["ЦПС","Центральный пункт сбора нефти"]
["ШФЛУ","Широкая фракция легких углеводородов"]
["ЯНАО","Ямало-Ненецкий автономный округ"]
[]
["Вернуться к содержанию"]

{"sheet":"Фин. коэффициенты","index":49,"n_rows":22,"n_cols":2,"rows_kept":22,"cut":false,"hidden":false,"merged":[[16,0,16,1],[0,0,0,1],[2,0,2,1],[5,0,5,1],[7,0,7,1],[13,0,13,1]]}
["Порядок расчета скорректированных показателей финансовой отчетности и финансовых коэффициентов"]
["Показатель","Описание"]
["Скорректированные показатели финансовой отчетности"]
["Прибыль за год, относящаяся к акционерам ПАО «Газпром», (скорректированная)","Прибыль за год, относящаяся к акционерам ПАО «Газпром», скорректированная на:\n■ прибыль (убыток) по курсовым разницам, отражаемые в составе финансовых доходов и расходов; \n■ курсовые разницы по операционным статьям; \n■ убыток от обесценения (восстановление убытка от обесценения) объектов основных средств и незавершенного строительства; \n■ убыток от обесценения (восстановление убытка от обесценения) инвестиций в ассоциированные организации и совместные предприятия; \n■ разницу между долей в прибыли ассоциированных организаций и совместных предприятий и поступлениями от ассоциированных организаций и совместных предприятий"]
["Чистый долг (скорректированный)","Чистый долг, скорректированный на депозиты, находящиеся в составе прочих оборотных и прочих внеоборотных активов"]
["Показатели отчета о движении денежных средств"]
["Коэффициент самофинансирования","Отношение чистых денежных средств от операционной деятельности к капитальным вложениям (показатели в соответствии с отчетом о движении денежных средств)"]
["Коэффициенты рентабельности"]
["Рентабельность прибыли от продаж (операционная рентабельность)","Отношение прибыли от продаж к выручке от продаж"]
["Рентабельность приведенного показателя EBITDA","Отношение приведенного показателя EBITDA к выручке от продаж"]
["Рентабельность прибыли за год","Отношение прибыли за год к выручке от продаж"]
["Рентабельность активов (ROA)","Отношение прибыли за год к среднему значению активов на начало и конец периода"]
["Рентабельность акционерного (собственного) капитала (ROE)","Отношение прибыли за год к среднему значению акционерного капитала на начало и конец периода (включая неконтролирующую долю участия)"]
["Коэффициенты ликвидности"]
["Коэффициент текущей ликвидности","Отношение оборотных активов к краткосрочным обязательствам "]
["Коэффициент быстрой ликвидности","Отношение оборотных активов за вычетом товарно-материальных запасов к краткосрочным обязательствам"]
["Прочие коэффициенты"]
["Коэффициент EV / EBITDA","Отношение стоимости компании (определяется как сумма рыночной капитализации и чистого долга) на конец периода к приведенному показателю EBITDA за период"]
["Коэффициент P / E","Отношение цены акции на конец периода к показателю прибыли в расчете на одну акцию, относящуюся к акционерам, за соответствующий период"]
["Коэффициент P / S","Отношение рыночной капитализации на конец периода к выручке от продаж соответствующего периода"]
[]
["Вернуться к содержанию"]